Body Name,Body,Organisational unit,Service division,Expenditure category,Date,Transacton number,Net amount,Supplier,Narrative
Tendring DC,http://statistics.data.gov.uk/id/local-authority-district/22UN,Corporate Services,1880 - Office Accommodation Expenses,2100 - Building Repairs,20/02/2013,2106113-1,1600,REDACTED PERSONAL DATA,REDACTED PERSONAL DATA
Tendring DC,http://statistics.data.gov.uk/id/local-authority-district/22UN,Corporate Services,1880 - Office Accommodation Expenses,2100 - Building Repairs,20/02/2013,2106113-2,305,REDACTED PERSONAL DATA,REDACTED PERSONAL DATA
Tendring DC,http://statistics.data.gov.uk/id/local-authority-district/22UN,Corporate Services,7100 - Community Health/Safety,4300 - Printing & Stationery,05/02/2013,2105497-1,150,2112525 - Acorn Essex Ltd,Shredder
Tendring DC,http://statistics.data.gov.uk/id/local-authority-district/22UN,Corporate Services,1880 - Office Accommodation Expenses,4000 - Furniture,12/02/2013,2105663-1,20,2112525 - Acorn Essex Ltd,Acorn
Tendring DC,http://statistics.data.gov.uk/id/local-authority-district/22UN,Corporate Services,5240 - HRA - Managing Tenancies,4312 - Tenancy Stationery,20/02/2013,2106333-1,374,2112525 - Acorn Essex Ltd,Acorn
Tendring DC,http://statistics.data.gov.uk/id/local-authority-district/22UN,Corporate Services,7300 - Licencing,4080 - Materials & Consumables,20/02/2013,2106334-1,119.95,2112525 - Acorn Essex Ltd,Acorn
Tendring DC,http://statistics.data.gov.uk/id/local-authority-district/22UN,Corporate Services,1880 - Office Accommodation Expenses,2100 - Building Repairs,12/02/2013,2105662-1,485,2101609 - Adcock Refrigeration & Air Conditioning Ltd,Adcock
Tendring DC,http://statistics.data.gov.uk/id/local-authority-district/22UN,Corporate Services,1880 - Office Accommodation Expenses,2100 - Building Repairs,12/02/2013,2105675-1,684,2101609 - Adcock Refrigeration & Air Conditioning Ltd,Adcock
Tendring DC,http://statistics.data.gov.uk/id/local-authority-district/22UN,Corporate Services,1880 - Office Accommodation Expenses,2100 - Building Repairs,12/02/2013,2105660-1,550,2102096 - Alan Lillington,ALS - Cleaning
Tendring DC,http://statistics.data.gov.uk/id/local-authority-district/22UN,Corporate Services,1880 - Office Accommodation Expenses,2100 - Building Repairs,12/02/2013,2105661-1,30,2102096 - Alan Lillington,ALS Cleaning
Tendring DC,http://statistics.data.gov.uk/id/local-authority-district/22UN,Corporate Services,1320 - Print Unit Service Unit,4080 - Materials & Consumables,12/02/2013,2105829-1,115.03,2102096 - Alan Lillington,Comb Binders
Tendring DC,http://statistics.data.gov.uk/id/local-authority-district/22UN,Corporate Services,1950 - Transport,3062 - Running Costs - Petrol,20/02/2013,2106218-1,173.35,2101825 - Allstar Business Solutions Ltd,Courier Diesel
Tendring DC,http://statistics.data.gov.uk/id/local-authority-district/22UN,Corporate Services,1320 - Print Unit Service Unit,4080 - Materials & Consumables,20/02/2013,2106364-1,115.03,2103017 - ALS Presentation Ltd,Comb Binders
Tendring DC,http://statistics.data.gov.uk/id/local-authority-district/22UN,Corporate Services,1320 - Print Unit Service Unit,4302 - External Print Unit Expenses,05/02/2013,2105491-1,137.5,REDACTED PERSONAL DATA,REDACTED PERSONAL DATA
Tendring DC,http://statistics.data.gov.uk/id/local-authority-district/22UN,Corporate Services,1320 - Print Unit Service Unit,4302 - External Print Unit Expenses,05/02/2013,2105492-1,110,REDACTED PERSONAL DATA,REDACTED PERSONAL DATA
Tendring DC,http://statistics.data.gov.uk/id/local-authority-district/22UN,Corporate Services,1320 - Print Unit Service Unit,4302 - External Print Unit Expenses,26/02/2013,2106461-1,137.5,2100069 - Autoprint,45478
Tendring DC,http://statistics.data.gov.uk/id/local-authority-district/22UN,Corporate Services,1320 - Print Unit Service Unit,4080 - Materials & Consumables,05/02/2013,2105432-1,68.04,2100111 - Banner Business Supplies Ltd,Paper
Tendring DC,http://statistics.data.gov.uk/id/local-authority-district/22UN,Corporate Services,6580 - Member Support Cost,4300 - Printing & Stationery,05/02/2013,2105445-1,63.83,REDACTED PERSONAL DATA,REDACTED PERSONAL DATA
Tendring DC,http://statistics.data.gov.uk/id/local-authority-district/22UN,Corporate Services,1100 - Head of Corporate Services and Admin Service Unit,4300 - Printing & Stationery,05/02/2013,2105445-2,45.32,REDACTED PERSONAL DATA,REDACTED PERSONAL DATA
Tendring DC,http://statistics.data.gov.uk/id/local-authority-district/22UN,Corporate Services,1100 - Head of Corporate Services and Admin Service Unit,4300 - Printing & Stationery,05/02/2013,2105446-1,38.68,REDACTED PERSONAL DATA,REDACTED PERSONAL DATA
Tendring DC,http://statistics.data.gov.uk/id/local-authority-district/22UN,Corporate Services,6580 - Member Support Cost,4300 - Printing & Stationery,05/02/2013,2105447-1,42.72,REDACTED PERSONAL DATA,REDACTED PERSONAL DATA
Tendring DC,http://statistics.data.gov.uk/id/local-authority-district/22UN,Corporate Services,1100 - Head of Corporate Services and Admin Service Unit,4300 - Printing & Stationery,05/02/2013,2105447-2,19.95,REDACTED PERSONAL DATA,REDACTED PERSONAL DATA
Tendring DC,http://statistics.data.gov.uk/id/local-authority-district/22UN,Corporate Services,1100 - Head of Corporate Services and Admin Service Unit,4300 - Printing & Stationery,05/02/2013,2105448-1,80.47,REDACTED PERSONAL DATA,REDACTED PERSONAL DATA
Tendring DC,http://statistics.data.gov.uk/id/local-authority-district/22UN,Corporate Services,1370 - Streets & Seafronts Service Unit,4300 - Printing & Stationery,05/02/2013,2105448-2,11.12,REDACTED PERSONAL DATA,REDACTED PERSONAL DATA
Tendring DC,http://statistics.data.gov.uk/id/local-authority-district/22UN,Corporate Services,6580 - Member Support Cost,4300 - Printing & Stationery,05/02/2013,2105448-3,76.74,REDACTED PERSONAL DATA,REDACTED PERSONAL DATA
Tendring DC,http://statistics.data.gov.uk/id/local-authority-district/22UN,Corporate Services,1370 - Streets & Seafronts Service Unit,4300 - Printing & Stationery,05/02/2013,2105449-1,61.42,REDACTED PERSONAL DATA,REDACTED PERSONAL DATA
Tendring DC,http://statistics.data.gov.uk/id/local-authority-district/22UN,Corporate Services,1100 - Head of Corporate Services and Admin Service Unit,4300 - Printing & Stationery,05/02/2013,2105450-1,37.22,REDACTED PERSONAL DATA,REDACTED PERSONAL DATA
Tendring DC,http://statistics.data.gov.uk/id/local-authority-district/22UN,Corporate Services,1370 - Streets & Seafronts Service Unit,4300 - Printing & Stationery,05/02/2013,2105450-2,68.04,REDACTED PERSONAL DATA,REDACTED PERSONAL DATA
Tendring DC,http://statistics.data.gov.uk/id/local-authority-district/22UN,Corporate Services,1100 - Head of Corporate Services and Admin Service Unit,4300 - Printing & Stationery,05/02/2013,2105451-1,41.85,REDACTED PERSONAL DATA,REDACTED PERSONAL DATA
Tendring DC,http://statistics.data.gov.uk/id/local-authority-district/22UN,Corporate Services,1100 - Head of Corporate Services and Admin Service Unit,4300 - Printing & Stationery,05/02/2013,2105452-1,49.83,REDACTED PERSONAL DATA,REDACTED PERSONAL DATA
Tendring DC,http://statistics.data.gov.uk/id/local-authority-district/22UN,Corporate Services,1100 - Head of Corporate Services and Admin Service Unit,4300 - Printing & Stationery,05/02/2013,2105453-1,98.97,REDACTED PERSONAL DATA,REDACTED PERSONAL DATA
Tendring DC,http://statistics.data.gov.uk/id/local-authority-district/22UN,Corporate Services,1370 - Streets & Seafronts Service Unit,4300 - Printing & Stationery,05/02/2013,2105453-2,47.92,REDACTED PERSONAL DATA,REDACTED PERSONAL DATA
Tendring DC,http://statistics.data.gov.uk/id/local-authority-district/22UN,Corporate Services,1100 - Head of Corporate Services and Admin Service Unit,4300 - Printing & Stationery,05/02/2013,2105454-1,0.43,REDACTED PERSONAL DATA,REDACTED PERSONAL DATA
Tendring DC,http://statistics.data.gov.uk/id/local-authority-district/22UN,Corporate Services,6580 - Member Support Cost,4300 - Printing & Stationery,05/02/2013,2105455-1,33.39,REDACTED PERSONAL DATA,REDACTED PERSONAL DATA
Tendring DC,http://statistics.data.gov.uk/id/local-authority-district/22UN,Corporate Services,1100 - Head of Corporate Services and Admin Service Unit,4300 - Printing & Stationery,05/02/2013,2105455-2,25.29,REDACTED PERSONAL DATA,REDACTED PERSONAL DATA
Tendring DC,http://statistics.data.gov.uk/id/local-authority-district/22UN,Corporate Services,1100 - Head of Corporate Services and Admin Service Unit,4300 - Printing & Stationery,05/02/2013,2105550-1,118.94,REDACTED PERSONAL DATA,REDACTED PERSONAL DATA
Tendring DC,http://statistics.data.gov.uk/id/local-authority-district/22UN,Corporate Services,1100 - Head of Corporate Services and Admin Service Unit,4300 - Printing & Stationery,05/02/2013,2105551-1,114.96,REDACTED PERSONAL DATA,REDACTED PERSONAL DATA
Tendring DC,http://statistics.data.gov.uk/id/local-authority-district/22UN,Corporate Services,1210 - Facilities Management Service Unit,4300 - Printing & Stationery,12/02/2013,2105980-1,2145,REDACTED PERSONAL DATA,REDACTED PERSONAL DATA
Tendring DC,http://statistics.data.gov.uk/id/local-authority-district/22UN,Corporate Services,1210 - Facilities Management Service Unit,4300 - Printing & Stationery,12/02/2013,2105981-1,28.2,REDACTED PERSONAL DATA,REDACTED PERSONAL DATA
Tendring DC,http://statistics.data.gov.uk/id/local-authority-district/22UN,Corporate Services,1210 - Facilities Management Service Unit,4300 - Printing & Stationery,12/02/2013,2105982-1,50.73,REDACTED PERSONAL DATA,REDACTED PERSONAL DATA
Tendring DC,http://statistics.data.gov.uk/id/local-authority-district/22UN,Corporate Services,1210 - Facilities Management Service Unit,4300 - Printing & Stationery,12/02/2013,2105983-1,39.25,REDACTED PERSONAL DATA,REDACTED PERSONAL DATA
Tendring DC,http://statistics.data.gov.uk/id/local-authority-district/22UN,Corporate Services,1210 - Facilities Management Service Unit,4300 - Printing & Stationery,12/02/2013,2105985-1,10.5,REDACTED PERSONAL DATA,REDACTED PERSONAL DATA
Tendring DC,http://statistics.data.gov.uk/id/local-authority-district/22UN,Corporate Services,1210 - Facilities Management Service Unit,4300 - Printing & Stationery,12/02/2013,2105986-1,8.8,REDACTED PERSONAL DATA,REDACTED PERSONAL DATA
Tendring DC,http://statistics.data.gov.uk/id/local-authority-district/22UN,Corporate Services,1320 - Print Unit Service Unit,4080 - Materials & Consumables,20/02/2013,2106212-1,43.88,2100111 - Banner Business Supplies Ltd,Paper
Tendring DC,http://statistics.data.gov.uk/id/local-authority-district/22UN,Corporate Services,1320 - Print Unit Service Unit,4080 - Materials & Consumables,20/02/2013,2106213-1,17.58,2100111 - Banner Business Supplies Ltd,Envelopes
Tendring DC,http://statistics.data.gov.uk/id/local-authority-district/22UN,Corporate Services,1100 - Head of Corporate Services and Admin Service Unit,4300 - Printing & Stationery,20/02/2013,2106217-1,26.6,2100111 - Banner Business Supplies Ltd,Misc Stationery
Tendring DC,http://statistics.data.gov.uk/id/local-authority-district/22UN,Corporate Services,6580 - Member Support Cost,4300 - Printing & Stationery,20/02/2013,2106217-2,15.17,2100111 - Banner Business Supplies Ltd,Misc Stationery
Tendring DC,http://statistics.data.gov.uk/id/local-authority-district/22UN,Corporate Services,6580 - Member Support Cost,4670 - Hire of Premises,26/02/2013,2106472-1,13.44,2100111 - Banner Business Supplies Ltd,Misc Stationery
Tendring DC,http://statistics.data.gov.uk/id/local-authority-district/22UN,Corporate Services,1100 - Head of Corporate Services and Admin Service Unit,4300 - Printing & Stationery,26/02/2013,2106472-2,91.57,2100111 - Banner Business Supplies Ltd,Misc Stationery
Tendring DC,http://statistics.data.gov.uk/id/local-authority-district/22UN,Corporate Services,1320 - Print Unit Service Unit,4080 - Materials & Consumables,26/02/2013,2106478-1,54.85,REDACTED PERSONAL DATA,REDACTED PERSONAL DATA
Tendring DC,http://statistics.data.gov.uk/id/local-authority-district/22UN,Corporate Services,7100 - Community Health/Safety,4300 - Printing & Stationery,05/02/2013,7008857-1,73.67,2100111 - Banner Business Supplies Ltd,SASCO YEAR PLANNER
Tendring DC,http://statistics.data.gov.uk/id/local-authority-district/22UN,Corporate Services,7100 - Community Health/Safety,4300 - Printing & Stationery,05/02/2013,7008859-1,51.38,2100111 - Banner Business Supplies Ltd,LOOP PAPER FOLDERS
Tendring DC,http://statistics.data.gov.uk/id/local-authority-district/22UN,Corporate Services,6980 - Essex Family Needs Project,5500 - Miscellaneous Expenses,05/02/2013,2105579-1,20000,2112862 - Barnardo Services Ltd,Barnardo's - Essex Family
Tendring DC,http://statistics.data.gov.uk/id/local-authority-district/22UN,Corporate Services,9900 - General Fund Balance Sheet,B382 - Rechargeable Works - Other,20/02/2013,2106245-1,3185,REDACTED PERSONAL DATA,REDACTED PERSONAL DATA
Tendring DC,http://statistics.data.gov.uk/id/local-authority-district/22UN,Corporate Services,7040 - Civic Ceremonial Expenses,4100 - Contract Catering,26/02/2013,2106532-1,1921.2,REDACTED PERSONAL DATA,REDACTED PERSONAL DATA
Tendring DC,http://statistics.data.gov.uk/id/local-authority-district/22UN,Corporate Services,1150 - Other Corporate Services Mgt & Central Admin Service Unit,4300 - Printing & Stationery,26/02/2013,7009011-1,130,2108648 - Bond International Software (UK) Ltd,TEAMSPIRIT LASER P60S
Tendring DC,http://statistics.data.gov.uk/id/local-authority-district/22UN,Corporate Services,1180 - Benefit Fraud Investigation Service Unit,4880 - Subscriptions Paid,05/02/2013,2105594-1,402.72,2102227 - Brighton & Hove City Council,NAFN
Tendring DC,http://statistics.data.gov.uk/id/local-authority-district/22UN,Corporate Services,1180 - Benefit Fraud Investigation Service Unit,4880 - Subscriptions Paid,05/02/2013,2105594-2,146,2102227 - Brighton & Hove City Council,NAFN
Tendring DC,http://statistics.data.gov.uk/id/local-authority-district/22UN,Corporate Services,1860 - Depots General,2304 - Energy Costs - Electricity,12/02/2013,2105814-1,122.05,2100197 - British Gas Trading Ltd,British Gas
Tendring DC,http://statistics.data.gov.uk/id/local-authority-district/22UN,Corporate Services,1880 - Office Accommodation Expenses,2304 - Energy Costs - Electricity,12/02/2013,2105814-10,1747.1,2100197 - British Gas Trading Ltd,British Gas
Tendring DC,http://statistics.data.gov.uk/id/local-authority-district/22UN,Corporate Services,1860 - Depots General,2304 - Energy Costs - Electricity,12/02/2013,2105814-11,136.19,2100197 - British Gas Trading Ltd,British Gas
Tendring DC,http://statistics.data.gov.uk/id/local-authority-district/22UN,Corporate Services,1880 - Office Accommodation Expenses,2304 - Energy Costs - Electricity,12/02/2013,2105814-12,1397.4,2100197 - British Gas Trading Ltd,British Gas
Tendring DC,http://statistics.data.gov.uk/id/local-authority-district/22UN,Corporate Services,1860 - Depots General,2304 - Energy Costs - Electricity,12/02/2013,2105814-13,-172.22,2100197 - British Gas Trading Ltd,British Gas
Tendring DC,http://statistics.data.gov.uk/id/local-authority-district/22UN,Corporate Services,1880 - Office Accommodation Expenses,2304 - Energy Costs - Electricity,12/02/2013,2105814-14,-232.01,2100197 - British Gas Trading Ltd,British Gas
Tendring DC,http://statistics.data.gov.uk/id/local-authority-district/22UN,Corporate Services,1880 - Office Accommodation Expenses,2304 - Energy Costs - Electricity,12/02/2013,2105814-2,173.9,2100197 - British Gas Trading Ltd,British Gas
Tendring DC,http://statistics.data.gov.uk/id/local-authority-district/22UN,Corporate Services,1880 - Office Accommodation Expenses,2304 - Energy Costs - Electricity,12/02/2013,2105814-3,75.53,2100197 - British Gas Trading Ltd,British Gas
Tendring DC,http://statistics.data.gov.uk/id/local-authority-district/22UN,Corporate Services,1880 - Office Accommodation Expenses,2304 - Energy Costs - Electricity,12/02/2013,2105814-4,60.18,2100197 - British Gas Trading Ltd,British Gas
Tendring DC,http://statistics.data.gov.uk/id/local-authority-district/22UN,Corporate Services,1880 - Office Accommodation Expenses,2304 - Energy Costs - Electricity,12/02/2013,2105814-5,98.56,2100197 - British Gas Trading Ltd,British Gas
Tendring DC,http://statistics.data.gov.uk/id/local-authority-district/22UN,Corporate Services,1880 - Office Accommodation Expenses,2304 - Energy Costs - Electricity,12/02/2013,2105814-6,262.02,2100197 - British Gas Trading Ltd,British Gas
Tendring DC,http://statistics.data.gov.uk/id/local-authority-district/22UN,Corporate Services,1880 - Office Accommodation Expenses,2304 - Energy Costs - Electricity,12/02/2013,2105814-7,825.36,2100197 - British Gas Trading Ltd,British Gas
Tendring DC,http://statistics.data.gov.uk/id/local-authority-district/22UN,Corporate Services,1880 - Office Accommodation Expenses,2304 - Energy Costs - Electricity,12/02/2013,2105814-8,164.45,2100197 - British Gas Trading Ltd,British Gas
Tendring DC,http://statistics.data.gov.uk/id/local-authority-district/22UN,Corporate Services,1860 - Depots General,2304 - Energy Costs - Electricity,12/02/2013,2105814-9,557.68,2100197 - British Gas Trading Ltd,British Gas
Tendring DC,http://statistics.data.gov.uk/id/local-authority-district/22UN,Corporate Services,1760 - IT Direct Service Costs,4715 - Data Communication Charge,20/02/2013,2106230-1,225,REDACTED COMMERCIAL CONFIDENTIALITY,REDACTED COMMERCIAL CONFIDENTIALITY
Tendring DC,http://statistics.data.gov.uk/id/local-authority-district/22UN,Corporate Services,C373 - Communications,C275 - Hardware,20/02/2013,2106237-1,1806.24,2109821 - BT Convergent Solutions Ltd,BT Cisco Phone
Tendring DC,http://statistics.data.gov.uk/id/local-authority-district/22UN,Corporate Services,8150 - Office Cleaning,4080 - Materials & Consumables,12/02/2013,2105659-1,161.84,2101624 - Bunzl,Bunzl
Tendring DC,http://statistics.data.gov.uk/id/local-authority-district/22UN,Corporate Services,8150 - Office Cleaning,4080 - Materials & Consumables,12/02/2013,2105702-1,6.04,REDACTED PERSONAL DATA,REDACTED PERSONAL DATA
Tendring DC,http://statistics.data.gov.uk/id/local-authority-district/22UN,Corporate Services,8150 - Office Cleaning,4080 - Materials & Consumables,12/02/2013,2105703-1,371.3,REDACTED PERSONAL DATA,REDACTED PERSONAL DATA
Tendring DC,http://statistics.data.gov.uk/id/local-authority-district/22UN,Corporate Services,9900 - General Fund Balance Sheet,B879 - Charges made by Merchant Acquirer,26/02/2013,2106086-1,23.76,2100202 - Capita Business Services Ltd,Capita Jan 13
Tendring DC,http://statistics.data.gov.uk/id/local-authority-district/22UN,Corporate Services,9900 - General Fund Balance Sheet,B879 - Charges made by Merchant Acquirer,26/02/2013,2106086-2,51.78,2100202 - Capita Business Services Ltd,Capita Jan 13
Tendring DC,http://statistics.data.gov.uk/id/local-authority-district/22UN,Corporate Services,9900 - General Fund Balance Sheet,B879 - Charges made by Merchant Acquirer,26/02/2013,2106086-3,224.82,2100202 - Capita Business Services Ltd,Capita Jan 13
Tendring DC,http://statistics.data.gov.uk/id/local-authority-district/22UN,Corporate Services,9900 - General Fund Balance Sheet,B879 - Charges made by Merchant Acquirer,26/02/2013,2106086-4,339.49,2100202 - Capita Business Services Ltd,Capita Jan 13
Tendring DC,http://statistics.data.gov.uk/id/local-authority-district/22UN,Corporate Services,9900 - General Fund Balance Sheet,B879 - Charges made by Merchant Acquirer,26/02/2013,2106086-5,295.56,2100202 - Capita Business Services Ltd,Capita Jan 13
Tendring DC,http://statistics.data.gov.uk/id/local-authority-district/22UN,Corporate Services,9900 - General Fund Balance Sheet,B879 - Charges made by Merchant Acquirer,26/02/2013,2106086-6,303.77,2100202 - Capita Business Services Ltd,Capita Jan 13
Tendring DC,http://statistics.data.gov.uk/id/local-authority-district/22UN,Corporate Services,9900 - General Fund Balance Sheet,B879 - Charges made by Merchant Acquirer,26/02/2013,2106086-7,298.26,2100202 - Capita Business Services Ltd,Capita Jan 13
Tendring DC,http://statistics.data.gov.uk/id/local-authority-district/22UN,Corporate Services,9900 - General Fund Balance Sheet,B879 - Charges made by Merchant Acquirer,26/02/2013,2106086-8,414.33,2100202 - Capita Business Services Ltd,Capita Jan 13
Tendring DC,http://statistics.data.gov.uk/id/local-authority-district/22UN,Corporate Services,1180 - Benefit Fraud Investigation Service Unit,5500 - Miscellaneous Expenses,20/02/2013,7008908-1,3.33,2100265 - Child Poverty Action Group,POSTAGE & PACKAGING
Tendring DC,http://statistics.data.gov.uk/id/local-authority-district/22UN,Corporate Services,1880 - Office Accommodation Expenses,2100 - Building Repairs,20/02/2013,2106335-1,199.39,2100267 - City Electrical Factors Ltd Anglia Division,CEF
Tendring DC,http://statistics.data.gov.uk/id/local-authority-district/22UN,Corporate Services,1880 - Office Accommodation Expenses,2100 - Building Repairs,20/02/2013,2106336-1,18.33,2100267 - City Electrical Factors Ltd Anglia Division,CEF
Tendring DC,http://statistics.data.gov.uk/id/local-authority-district/22UN,Corporate Services,7040 - Civic Ceremonial Expenses,4830 - Contribution to Chairman's Dinner Dance,12/02/2013,2106000-1,50,REDACTED PERSONAL DATA,REDACTED PERSONAL DATA
Tendring DC,http://statistics.data.gov.uk/id/local-authority-district/22UN,Corporate Services,1320 - Print Unit Service Unit,4400 - Maintenance Under Service Agreements,20/02/2013,7008899-1,120,2100353 - Consensus Guillotine Engineering Ltd,GUILLOTINE BLADE
Tendring DC,http://statistics.data.gov.uk/id/local-authority-district/22UN,Corporate Services,1330 - Human Resources Service Unit,4355 - Books & Periodicals,26/02/2013,2106083-1,339.8,2100304 - CO-OP Bank,KLN Visa Feb 13
Tendring DC,http://statistics.data.gov.uk/id/local-authority-district/22UN,Corporate Services,6620 - Corporate Management - General,5190 - Bank Commission Charges,26/02/2013,2106083-2,2,2100304 - CO-OP Bank,KLN Visa Feb 13
Tendring DC,http://statistics.data.gov.uk/id/local-authority-district/22UN,Corporate Services,6640 - Treasury Management,5192 - Brokerage,26/02/2013,2106378-1,70,2100304 - CO-OP Bank,FD Jan 2013
Tendring DC,http://statistics.data.gov.uk/id/local-authority-district/22UN,Corporate Services,6620 - Corporate Management - General,5190 - Bank Commission Charges,26/02/2013,2106378-2,244,2100304 - CO-OP Bank,FD Jan 2013
Tendring DC,http://statistics.data.gov.uk/id/local-authority-district/22UN,Corporate Services,1560 - Cashiers Service Unit,5186 - Paypoint/post office charges,26/02/2013,2106378-3,862.8,2100304 - CO-OP Bank,FD Jan 2013
Tendring DC,http://statistics.data.gov.uk/id/local-authority-district/22UN,Corporate Services,1560 - Cashiers Service Unit,5186 - Paypoint/post office charges,26/02/2013,2106378-4,2197.92,2100304 - CO-OP Bank,FD Jan 2013
Tendring DC,http://statistics.data.gov.uk/id/local-authority-district/22UN,Corporate Services,1860 - Depots General,2100 - Building Repairs,12/02/2013,2105684-1,66,2100314 - Cooper & Brome (Plumbing & Heating) Ltd,Cooper & Brome
Tendring DC,http://statistics.data.gov.uk/id/local-authority-district/22UN,Corporate Services,1860 - Depots General,2308 - Energy Costs - Gas (Including LPG),20/02/2013,2106220-1,257.98,2104620 - Corona Energy Retail 4 Limited,Corona Energy
Tendring DC,http://statistics.data.gov.uk/id/local-authority-district/22UN,Corporate Services,1880 - Office Accommodation Expenses,2308 - Energy Costs - Gas (Including LPG),20/02/2013,2106220-2,115.15,2104620 - Corona Energy Retail 4 Limited,Corona Energy
Tendring DC,http://statistics.data.gov.uk/id/local-authority-district/22UN,Corporate Services,1880 - Office Accommodation Expenses,2308 - Energy Costs - Gas (Including LPG),20/02/2013,2106220-3,94.78,2104620 - Corona Energy Retail 4 Limited,Corona Energy
Tendring DC,http://statistics.data.gov.uk/id/local-authority-district/22UN,Corporate Services,1860 - Depots General,2308 - Energy Costs - Gas (Including LPG),20/02/2013,2106220-4,218.03,2104620 - Corona Energy Retail 4 Limited,Corona Energy
Tendring DC,http://statistics.data.gov.uk/id/local-authority-district/22UN,Corporate Services,1880 - Office Accommodation Expenses,2308 - Energy Costs - Gas (Including LPG),20/02/2013,2106220-5,215.06,2104620 - Corona Energy Retail 4 Limited,Corona Energy
Tendring DC,http://statistics.data.gov.uk/id/local-authority-district/22UN,Corporate Services,1880 - Office Accommodation Expenses,2308 - Energy Costs - Gas (Including LPG),20/02/2013,2106220-6,1626.97,2104620 - Corona Energy Retail 4 Limited,Corona Energy
Tendring DC,http://statistics.data.gov.uk/id/local-authority-district/22UN,Corporate Services,6160 - Princes Theatre,2308 - Energy Costs - Gas (Including LPG),20/02/2013,2106220-7,180.77,2104620 - Corona Energy Retail 4 Limited,Corona Energy
Tendring DC,http://statistics.data.gov.uk/id/local-authority-district/22UN,Corporate Services,1100 - Head of Corporate Services and Admin Service Unit,4800 - Hospitality,20/02/2013,7008897-1,60,2102038 - Crispins Sandwich Bar Ltd,BUFFET FOR CLG MEETING
Tendring DC,http://statistics.data.gov.uk/id/local-authority-district/22UN,Corporate Services,9940 - Collection Fund Balance Sheet,B244 - DCLG - NNDR Agency Balance,26/02/2013,2105682-1,1153867,2100432 - DCLG,NNDR and RSG
Tendring DC,http://statistics.data.gov.uk/id/local-authority-district/22UN,Corporate Services,8985 - Non-Domestic Rate Income,9893 - Non-Domestic Rate Income,26/02/2013,2105682-2,-459226,2100432 - DCLG,NNDR and RSG
Tendring DC,http://statistics.data.gov.uk/id/local-authority-district/22UN,Corporate Services,9920 - HRA Balance Sheet,B505 - DCLGM Capital Receipts Pooling Creditor,26/02/2013,2105683-1,47192.55,2100432 - DCLG,Housing Capital Receipts
Tendring DC,http://statistics.data.gov.uk/id/local-authority-district/22UN,Corporate Services,9940 - Collection Fund Balance Sheet,B244 - DCLG - NNDR Agency Balance,26/02/2013,2106087-1,242919,2100432 - DCLG,NNDR and RSG
Tendring DC,http://statistics.data.gov.uk/id/local-authority-district/22UN,Corporate Services,8985 - Non-Domestic Rate Income,9893 - Non-Domestic Rate Income,26/02/2013,2106087-2,-96679,2100432 - DCLG,NNDR and RSG
Tendring DC,http://statistics.data.gov.uk/id/local-authority-district/22UN,Corporate Services,8980 - Revenue Support Grant,9891 - Revenue Support Grant,26/02/2013,2106087-3,-36076,2100432 - DCLG,NNDR and RSG
Tendring DC,http://statistics.data.gov.uk/id/local-authority-district/22UN,Corporate Services,6561 - Other Democratic Costs,4880 - Subscriptions Paid,26/02/2013,2106468-1,150,2110930 - District Councils Network,DCN Subscription
Tendring DC,http://statistics.data.gov.uk/id/local-authority-district/22UN,Corporate Services,1760 - IT Direct Service Costs,4715 - Data Communication Charge,20/02/2013,2106240-1,530,2108252 - Dolphin Sails Ltd,Dolphin: Screen Reader Lic
Tendring DC,http://statistics.data.gov.uk/id/local-authority-district/22UN,Corporate Services,1815 - Personnel and Human Resources Issues,1500 - Advertising - Recruitment,20/02/2013,2106041-1,300,2100443 - East Of England Local Government Association,Epaycheck
Tendring DC,http://statistics.data.gov.uk/id/local-authority-district/22UN,Corporate Services,1432 - TDC Website,4500 - Consultancy Fees,26/02/2013,2106438-1,5428.54,REDACTED PERSONAL DATA,REDACTED PERSONAL DATA
Tendring DC,http://statistics.data.gov.uk/id/local-authority-district/22UN,Corporate Services,1100 - Head of Corporate Services and Admin Service Unit,4400 - Maintenance Under Service Agreements,12/02/2013,2105853-1,8.5,2102826 - Eden Springs UK Ltd,Water Bottles
Tendring DC,http://statistics.data.gov.uk/id/local-authority-district/22UN,Corporate Services,1880 - Office Accommodation Expenses,2304 - Energy Costs - Electricity,20/02/2013,2106344-1,4726.65,2105146 - EDF Energy 1 Ltd,EDF
Tendring DC,http://statistics.data.gov.uk/id/local-authority-district/22UN,Corporate Services,6160 - Princes Theatre,2304 - Energy Costs - Electricity,20/02/2013,2106344-2,525.2,2105146 - EDF Energy 1 Ltd,EDF
Tendring DC,http://statistics.data.gov.uk/id/local-authority-district/22UN,Corporate Services,6460 - Career Track,4688 - Career Track Exam Fees,20/02/2013,2106243-1,14.5,REDACTED PERSONAL DATA,REDACTED PERSONAL DATA
Tendring DC,http://statistics.data.gov.uk/id/local-authority-district/22UN,Corporate Services,6460 - Career Track,4688 - Career Track Exam Fees,20/02/2013,2106244-1,475,REDACTED PERSONAL DATA,REDACTED PERSONAL DATA
Tendring DC,http://statistics.data.gov.uk/id/local-authority-district/22UN,Corporate Services,1815 - Personnel and Human Resources Issues,4460 - Legal & Professional Expenses,05/02/2013,2105573-1,250,2109294 - Ellisons Solicitors,Compromise Agreement
Tendring DC,http://statistics.data.gov.uk/id/local-authority-district/22UN,Corporate Services,1815 - Personnel and Human Resources Issues,4460 - Legal & Professional Expenses,05/02/2013,2105622-1,250,2109294 - Ellisons Solicitors,Compromise Agreement
Tendring DC,http://statistics.data.gov.uk/id/local-authority-district/22UN,Corporate Services,1815 - Personnel and Human Resources Issues,4460 - Legal & Professional Expenses,05/02/2013,2105623-1,250,2109294 - Ellisons Solicitors,Comromise Agreement
Tendring DC,http://statistics.data.gov.uk/id/local-authority-district/22UN,Corporate Services,1815 - Personnel and Human Resources Issues,4460 - Legal & Professional Expenses,12/02/2013,2105819-1,250,2109294 - Ellisons Solicitors,Compromise Agreement
Tendring DC,http://statistics.data.gov.uk/id/local-authority-district/22UN,Corporate Services,1320 - Print Unit Service Unit,4302 - External Print Unit Expenses,05/02/2013,2105490-1,270,REDACTED PERSONAL DATA,REDACTED PERSONAL DATA
Tendring DC,http://statistics.data.gov.uk/id/local-authority-district/22UN,Corporate Services,1320 - Print Unit Service Unit,4302 - External Print Unit Expenses,12/02/2013,2105828-1,300,2109136 - Essex Cares Ltd,Job 488
Tendring DC,http://statistics.data.gov.uk/id/local-authority-district/22UN,Corporate Services,8660 - Fit for Purpose,5500 - Miscellaneous Expenses,05/02/2013,2105637-1,950.14,REDACTED PERSONAL DATA,REDACTED PERSONAL DATA
Tendring DC,http://statistics.data.gov.uk/id/local-authority-district/22UN,Corporate Services,1180 - Benefit Fraud Investigation Service Unit,5500 - Miscellaneous Expenses,05/02/2013,2105638-1,10,REDACTED PERSONAL DATA,REDACTED PERSONAL DATA
Tendring DC,http://statistics.data.gov.uk/id/local-authority-district/22UN,Corporate Services,9880 - Collection Fund - Council Tax,R100 - Precept - ECC,26/02/2013,2106383-1,5596643,2100409 - Essex County Council,Precept 150213
Tendring DC,http://statistics.data.gov.uk/id/local-authority-district/22UN,Corporate Services,9880 - Collection Fund - Council Tax,R110 - Council Tax Balance - ECC,26/02/2013,2106383-2,49150,2100409 - Essex County Council,Precept 150213
Tendring DC,http://statistics.data.gov.uk/id/local-authority-district/22UN,Corporate Services,6683 - Second Homes Discount Scheme,8109 - Second Homes Discount Scheme - ECC Contribution,26/02/2013,2106383-3,-35294,2100409 - Essex County Council,Precept 150213
Tendring DC,http://statistics.data.gov.uk/id/local-authority-district/22UN,Corporate Services,1300 - Legal Services Service Unit,4753 - Computer - Application Software,26/02/2013,7008963-1,767.8,REDACTED COMMERCIAL CONFIDENTIALITY,REDACTED COMMERCIAL CONFIDENTIALITY
Tendring DC,http://statistics.data.gov.uk/id/local-authority-district/22UN,Corporate Services,9880 - Collection Fund - Council Tax,R101 - Precept - Essex Fire,26/02/2013,2106381-1,342053,2100469 - Essex Fire Authority,Precept 150213 Fire
Tendring DC,http://statistics.data.gov.uk/id/local-authority-district/22UN,Corporate Services,9880 - Collection Fund - Council Tax,R111 - Council Tax Balance - Essex Fire,26/02/2013,2106381-2,3004,2100469 - Essex Fire Authority,Precept 150213 Fire
Tendring DC,http://statistics.data.gov.uk/id/local-authority-district/22UN,Corporate Services,9880 - Collection Fund - Council Tax,R102 - Precept - Essex Police,26/02/2013,2106382-1,704037,2100500 - Essex Police Authority,Precept 150213 Pol
Tendring DC,http://statistics.data.gov.uk/id/local-authority-district/22UN,Corporate Services,9880 - Collection Fund - Council Tax,R112 - Council Tax Balance - Essex Police,26/02/2013,2106382-2,5976,2100500 - Essex Police Authority,Precept 150213 Pol
Tendring DC,http://statistics.data.gov.uk/id/local-authority-district/22UN,Corporate Services,7025 - CDRP Support,4900 - Grants,05/02/2013,2105592-1,90,2100546 - GCS Alarms,GCS - Burn off CCTV Footage
Tendring DC,http://statistics.data.gov.uk/id/local-authority-district/22UN,Corporate Services,7025 - CDRP Support,4900 - Grants,05/02/2013,2105608-1,180,2100546 - GCS Alarms,GCS - Install Fast Response Unit
Tendring DC,http://statistics.data.gov.uk/id/local-authority-district/22UN,Corporate Services,1880 - Office Accommodation Expenses,4632 - Security,12/02/2013,2105666-1,55,2100546 - GCS Alarms,GCS
Tendring DC,http://statistics.data.gov.uk/id/local-authority-district/22UN,Corporate Services,1860 - Depots General,4632 - Security,12/02/2013,2105667-1,70,2100546 - GCS Alarms,GCS
Tendring DC,http://statistics.data.gov.uk/id/local-authority-district/22UN,Corporate Services,1880 - Office Accommodation Expenses,4632 - Security,12/02/2013,2105668-1,405,2100546 - GCS Alarms,GCS
Tendring DC,http://statistics.data.gov.uk/id/local-authority-district/22UN,Corporate Services,1880 - Office Accommodation Expenses,4632 - Security,12/02/2013,2105669-1,127,2100546 - GCS Alarms,GCS
Tendring DC,http://statistics.data.gov.uk/id/local-authority-district/22UN,Corporate Services,7025 - CDRP Support,4900 - Grants,12/02/2013,2105883-1,150,2100546 - GCS Alarms,Remove CCTV
Tendring DC,http://statistics.data.gov.uk/id/local-authority-district/22UN,Corporate Services,1860 - Depots General,4632 - Security,20/02/2013,2106330-1,70,2100546 - GCS Alarms,GCS
Tendring DC,http://statistics.data.gov.uk/id/local-authority-district/22UN,Corporate Services,1880 - Office Accommodation Expenses,4632 - Security,20/02/2013,2106331-1,55,2100546 - GCS Alarms,GCS
Tendring DC,http://statistics.data.gov.uk/id/local-authority-district/22UN,Corporate Services,1880 - Office Accommodation Expenses,4632 - Security,20/02/2013,2106332-1,55,2100546 - GCS Alarms,GCS
Tendring DC,http://statistics.data.gov.uk/id/local-authority-district/22UN,Corporate Services,1815 - Personnel and Human Resources Issues,1610 - Counselling,05/02/2013,2105574-1,560,2100517 - Geraldine Craig,Counselling
Tendring DC,http://statistics.data.gov.uk/id/local-authority-district/22UN,Corporate Services,8150 - Office Cleaning,4080 - Materials & Consumables,20/02/2013,2106167-1,444.96,2100588 - Grantleys,Grantleys
Tendring DC,http://statistics.data.gov.uk/id/local-authority-district/22UN,Corporate Services,1880 - Office Accommodation Expenses,4446 - Bulk Bin Collection,12/02/2013,2105705-1,181.74,REDACTED PERSONAL DATA,REDACTED PERSONAL DATA
Tendring DC,http://statistics.data.gov.uk/id/local-authority-district/22UN,Corporate Services,1880 - Office Accommodation Expenses,4446 - Bulk Bin Collection,12/02/2013,2105706-1,272.61,2111348 - Green Recycling Ltd,Green Recycling
Tendring DC,http://statistics.data.gov.uk/id/local-authority-district/22UN,Corporate Services,1880 - Office Accommodation Expenses,4446 - Bulk Bin Collection,12/02/2013,2105707-1,363.48,2111348 - Green Recycling Ltd,Green Recycling
Tendring DC,http://statistics.data.gov.uk/id/local-authority-district/22UN,Corporate Services,1880 - Office Accommodation Expenses,2100 - Building Repairs,12/02/2013,2105657-1,1621.94,2112468 - Henry Ashe Projects Ltd,Henry Ashe
Tendring DC,http://statistics.data.gov.uk/id/local-authority-district/22UN,Corporate Services,6580 - Member Support Cost,4305 - Members Print Expenses,05/02/2013,2105438-1,50,REDACTED PERSONAL DATA,REDACTED PERSONAL DATA
Tendring DC,http://statistics.data.gov.uk/id/local-authority-district/22UN,Corporate Services,6580 - Member Support Cost,4305 - Members Print Expenses,05/02/2013,2105439-1,36,REDACTED PERSONAL DATA,REDACTED PERSONAL DATA
Tendring DC,http://statistics.data.gov.uk/id/local-authority-district/22UN,Corporate Services,6580 - Member Support Cost,4670 - Hire of Premises,26/02/2013,2106440-1,80,REDACTED PERSONAL DATA,REDACTED PERSONAL DATA
Tendring DC,http://statistics.data.gov.uk/id/local-authority-district/22UN,Corporate Services,5960 - Recreation Grounds,2115 - Grounds Maintenance External Contractors,20/02/2013,2106238-1,491.67,2112816 - Hughes Electrical,Hughes: LED TV
Tendring DC,http://statistics.data.gov.uk/id/local-authority-district/22UN,Corporate Services,1880 - Office Accommodation Expenses,4632 - Security,12/02/2013,2105676-1,646,2100750 - ID Management Systems,ID Management
Tendring DC,http://statistics.data.gov.uk/id/local-authority-district/22UN,Corporate Services,1100 - Head of Corporate Services and Admin Service Unit,4300 - Printing & Stationery,20/02/2013,2106045-1,14.64,2100782 - Insight Direct (uk) Limited,Notebooks Mice
Tendring DC,http://statistics.data.gov.uk/id/local-authority-district/22UN,Corporate Services,1815 - Personnel and Human Resources Issues,1707 - Training - Workforce Development Courses,20/02/2013,2106239-1,289.35,2100782 - Insight Direct (uk) Limited,Insight: Epson Projector
Tendring DC,http://statistics.data.gov.uk/id/local-authority-district/22UN,Corporate Services,6460 - Career Track,5160 - Advertising,20/02/2013,2106180-1,263.55,REDACTED PERSONAL DATA,REDACTED PERSONAL DATA
Tendring DC,http://statistics.data.gov.uk/id/local-authority-district/22UN,Corporate Services,1815 - Personnel and Human Resources Issues,1709 - Training - Management Development Courses,20/02/2013,7008896-1,638.95,2112815 - Institute of Leadership & Management,ILM SUPER SERIES 35
Tendring DC,http://statistics.data.gov.uk/id/local-authority-district/22UN,Corporate Services,9900 - General Fund Balance Sheet,B146 - Car Loans - Principal - Essential Users,12/02/2013,2105999-1,2999.86,REDACTED PERSONAL DATA,REDACTED PERSONAL DATA
Tendring DC,http://statistics.data.gov.uk/id/local-authority-district/22UN,Corporate Services,1760 - IT Direct Service Costs,4751 - Hardware & Service Maintenance,05/02/2013,2105604-1,43.2,2100872 - Laptopshop I.T Ltd,Laptopshop - Laptop Battery
Tendring DC,http://statistics.data.gov.uk/id/local-authority-district/22UN,Corporate Services,1760 - IT Direct Service Costs,4751 - Hardware & Service Maintenance,05/02/2013,2105604-2,8.39,2100872 - Laptopshop I.T Ltd,Laptopshop - Laptop Battery
Tendring DC,http://statistics.data.gov.uk/id/local-authority-district/22UN,Corporate Services,7716 - Jaywick Team,5500 - Miscellaneous Expenses,05/02/2013,2105605-1,21.94,2100872 - Laptopshop I.T Ltd,Laptopshop - Adaptor
Tendring DC,http://statistics.data.gov.uk/id/local-authority-district/22UN,Corporate Services,7716 - Jaywick Team,5500 - Miscellaneous Expenses,05/02/2013,2105605-2,8.39,2100872 - Laptopshop I.T Ltd,Laptopshop - Adaptor
Tendring DC,http://statistics.data.gov.uk/id/local-authority-district/22UN,Corporate Services,1760 - IT Direct Service Costs,4751 - Hardware & Service Maintenance,05/02/2013,2105606-1,32.98,2100872 - Laptopshop I.T Ltd,Laptopshop - Battery
Tendring DC,http://statistics.data.gov.uk/id/local-authority-district/22UN,Corporate Services,1760 - IT Direct Service Costs,4751 - Hardware & Service Maintenance,05/02/2013,2105606-2,8.39,2100872 - Laptopshop I.T Ltd,Laptopshop - Battery
Tendring DC,http://statistics.data.gov.uk/id/local-authority-district/22UN,Corporate Services,1320 - Print Unit Service Unit,4080 - Materials & Consumables,05/02/2013,2105433-1,59.8,2100864 - Leston Stationery Ltd,Paper
Tendring DC,http://statistics.data.gov.uk/id/local-authority-district/22UN,Corporate Services,1320 - Print Unit Service Unit,4080 - Materials & Consumables,26/02/2013,2106462-1,47.8,2100864 - Leston Stationery Ltd,Paper
Tendring DC,http://statistics.data.gov.uk/id/local-authority-district/22UN,Corporate Services,1150 - Other Corporate Services Mgt & Central Admin Service Unit,3311 - Travelling Career Track,12/02/2013,2105776-1,62.3,2112791 - Lewis Vella,Mileage
Tendring DC,http://statistics.data.gov.uk/id/local-authority-district/22UN,Corporate Services,1760 - IT Direct Service Costs,6320 - IT Services Agreements Payment,12/02/2013,2106013-1,52598.46,2108077 - Liberata Financial Services Ltd,ICT Contract Feb 2013
Tendring DC,http://statistics.data.gov.uk/id/local-authority-district/22UN,Corporate Services,1300 - Legal Services Service Unit,4503 - Consultants Fees - Counsels Fees,26/02/2013,7009021-1,453.87,REDACTED COMMERCIAL CONFIDENTIALITY,REDACTED COMMERCIAL CONFIDENTIALITY
Tendring DC,http://statistics.data.gov.uk/id/local-authority-district/22UN,Corporate Services,6640 - Treasury Management,4753 - Computer - Application Software,20/02/2013,2106042-1,1000,2102373 - Logotech Systems,DCTM Annual Licence
Tendring DC,http://statistics.data.gov.uk/id/local-authority-district/22UN,Corporate Services,7025 - CDRP Support,4900 - Grants,12/02/2013,2105882-1,125,2111739 - Love To Eat,Catering - Training
Tendring DC,http://statistics.data.gov.uk/id/local-authority-district/22UN,Corporate Services,1880 - Office Accommodation Expenses,2100 - Building Repairs,12/02/2013,2105685-1,1519,2111055 - Mansell Roofing Ltd,Mansell Roofing
Tendring DC,http://statistics.data.gov.uk/id/local-authority-district/22UN,Corporate Services,1090 - Chief Executive and Support Service Unit,4300 - Printing & Stationery,12/02/2013,2105804-1,69.7,REDACTED PERSONAL DATA,REDACTED PERSONAL DATA
Tendring DC,http://statistics.data.gov.uk/id/local-authority-district/22UN,Corporate Services,1100 - Head of Corporate Services and Admin Service Unit,4355 - Books & Periodicals,12/02/2013,2105804-2,45.35,REDACTED PERSONAL DATA,REDACTED PERSONAL DATA
Tendring DC,http://statistics.data.gov.uk/id/local-authority-district/22UN,Corporate Services,1040 - Regeneration Service Unit,4355 - Books & Periodicals,12/02/2013,2105804-3,19.75,REDACTED PERSONAL DATA,REDACTED PERSONAL DATA
Tendring DC,http://statistics.data.gov.uk/id/local-authority-district/22UN,Corporate Services,"1580 - Benefits, Revenues and Customer Contact SU",4355 - Books & Periodicals,12/02/2013,2105804-4,19.75,REDACTED PERSONAL DATA,REDACTED PERSONAL DATA
Tendring DC,http://statistics.data.gov.uk/id/local-authority-district/22UN,Corporate Services,1300 - Legal Services Service Unit,4503 - Consultants Fees - Counsels Fees,05/02/2013,2105583-1,350,REDACTED COMMERCIAL CONFIDENTIALITY,REDACTED COMMERCIAL CONFIDENTIALITY
Tendring DC,http://statistics.data.gov.uk/id/local-authority-district/22UN,Corporate Services,4360 - Development Control - Chargeable Account,4500 - Consultancy Fees,26/02/2013,2106424-1,350,REDACTED PERSONAL DATA,REDACTED PERSONAL DATA
Tendring DC,http://statistics.data.gov.uk/id/local-authority-district/22UN,Corporate Services,4700 - Defective Drains,2102 - Investigation Costs,20/02/2013,2106046-1,650,2112894 - Mr Michael Rudd,Mistley Quay
Tendring DC,http://statistics.data.gov.uk/id/local-authority-district/22UN,Corporate Services,H880 - New Build Initiatives and Acquisitions,C200 - Main Contractor,12/02/2013,2106001-1,960,2112874 - Mrs P Jones,
Tendring DC,http://statistics.data.gov.uk/id/local-authority-district/22UN,Corporate Services,1661 - Other Apportionable Overheads - Corporate Support,4700 - Postage,05/02/2013,2105636-1,1.5,REDACTED PERSONAL DATA,REDACTED PERSONAL DATA
Tendring DC,http://statistics.data.gov.uk/id/local-authority-district/22UN,Corporate Services,1880 - Office Accommodation Expenses,2100 - Building Repairs,12/02/2013,2105664-1,90,2100967 - N Rudelhoff,N R Electrical
Tendring DC,http://statistics.data.gov.uk/id/local-authority-district/22UN,Corporate Services,1880 - Office Accommodation Expenses,2100 - Building Repairs,12/02/2013,2105664-2,202,2100967 - N Rudelhoff,N R Electrical
Tendring DC,http://statistics.data.gov.uk/id/local-authority-district/22UN,Corporate Services,1880 - Office Accommodation Expenses,2100 - Building Repairs,12/02/2013,2105664-3,72,2100967 - N Rudelhoff,N R Electrical
Tendring DC,http://statistics.data.gov.uk/id/local-authority-district/22UN,Corporate Services,1880 - Office Accommodation Expenses,2100 - Building Repairs,12/02/2013,2105664-4,243,2100967 - N Rudelhoff,N R Electrical
Tendring DC,http://statistics.data.gov.uk/id/local-authority-district/22UN,Corporate Services,1880 - Office Accommodation Expenses,2100 - Building Repairs,12/02/2013,2105665-1,83,2100967 - N Rudelhoff,N R Electrical
Tendring DC,http://statistics.data.gov.uk/id/local-authority-district/22UN,Corporate Services,1880 - Office Accommodation Expenses,2100 - Building Repairs,12/02/2013,2105665-2,24,2100967 - N Rudelhoff,N R Electrical
Tendring DC,http://statistics.data.gov.uk/id/local-authority-district/22UN,Corporate Services,1880 - Office Accommodation Expenses,2100 - Building Repairs,12/02/2013,2105665-3,123,2100967 - N Rudelhoff,N R Electrical
Tendring DC,http://statistics.data.gov.uk/id/local-authority-district/22UN,Corporate Services,1880 - Office Accommodation Expenses,2100 - Building Repairs,12/02/2013,2105665-4,36,2100967 - N Rudelhoff,N R Electrical
Tendring DC,http://statistics.data.gov.uk/id/local-authority-district/22UN,Corporate Services,1880 - Office Accommodation Expenses,2100 - Building Repairs,12/02/2013,2105665-5,69,2100967 - N Rudelhoff,N R Electrical
Tendring DC,http://statistics.data.gov.uk/id/local-authority-district/22UN,Corporate Services,1880 - Office Accommodation Expenses,2100 - Building Repairs,12/02/2013,2105665-6,154,2100967 - N Rudelhoff,N R Electrical
Tendring DC,http://statistics.data.gov.uk/id/local-authority-district/22UN,Corporate Services,1860 - Depots General,2100 - Building Repairs,12/02/2013,2105670-1,287,2100967 - N Rudelhoff,N R Electrical
Tendring DC,http://statistics.data.gov.uk/id/local-authority-district/22UN,Corporate Services,1880 - Office Accommodation Expenses,2100 - Building Repairs,12/02/2013,2105670-2,135,2100967 - N Rudelhoff,N R Electrical
Tendring DC,http://statistics.data.gov.uk/id/local-authority-district/22UN,Corporate Services,1860 - Depots General,2100 - Building Repairs,12/02/2013,2105670-3,24,2100967 - N Rudelhoff,N R Electrical
Tendring DC,http://statistics.data.gov.uk/id/local-authority-district/22UN,Corporate Services,1860 - Depots General,2100 - Building Repairs,12/02/2013,2105670-4,17,2100967 - N Rudelhoff,N R Electrical
Tendring DC,http://statistics.data.gov.uk/id/local-authority-district/22UN,Corporate Services,1880 - Office Accommodation Expenses,2100 - Building Repairs,12/02/2013,2105670-5,72,2100967 - N Rudelhoff,N R Electrical
Tendring DC,http://statistics.data.gov.uk/id/local-authority-district/22UN,Corporate Services,1880 - Office Accommodation Expenses,2100 - Building Repairs,12/02/2013,2105671-1,146,2100967 - N Rudelhoff,N R Electrical
Tendring DC,http://statistics.data.gov.uk/id/local-authority-district/22UN,Corporate Services,1880 - Office Accommodation Expenses,2100 - Building Repairs,12/02/2013,2105671-2,15,2100967 - N Rudelhoff,N R Electrical
Tendring DC,http://statistics.data.gov.uk/id/local-authority-district/22UN,Corporate Services,1880 - Office Accommodation Expenses,2100 - Building Repairs,12/02/2013,2105671-3,156,2100967 - N Rudelhoff,N R Electrical
Tendring DC,http://statistics.data.gov.uk/id/local-authority-district/22UN,Corporate Services,1880 - Office Accommodation Expenses,2100 - Building Repairs,12/02/2013,2105671-4,42,2100967 - N Rudelhoff,N R Electrical
Tendring DC,http://statistics.data.gov.uk/id/local-authority-district/22UN,Corporate Services,1880 - Office Accommodation Expenses,2100 - Building Repairs,12/02/2013,2105671-5,28,2100967 - N Rudelhoff,N R Electrical
Tendring DC,http://statistics.data.gov.uk/id/local-authority-district/22UN,Corporate Services,1880 - Office Accommodation Expenses,2100 - Building Repairs,12/02/2013,2105671-6,32,2100967 - N Rudelhoff,N R Electrical
Tendring DC,http://statistics.data.gov.uk/id/local-authority-district/22UN,Corporate Services,1880 - Office Accommodation Expenses,2100 - Building Repairs,12/02/2013,2105671-7,36,2100967 - N Rudelhoff,N R Electrical
Tendring DC,http://statistics.data.gov.uk/id/local-authority-district/22UN,Corporate Services,1880 - Office Accommodation Expenses,2100 - Building Repairs,12/02/2013,2105672-1,240,2100967 - N Rudelhoff,N R Electrical
Tendring DC,http://statistics.data.gov.uk/id/local-authority-district/22UN,Corporate Services,1860 - Depots General,2100 - Building Repairs,12/02/2013,2105672-2,195,2100967 - N Rudelhoff,N R Electrical
Tendring DC,http://statistics.data.gov.uk/id/local-authority-district/22UN,Corporate Services,1880 - Office Accommodation Expenses,2100 - Building Repairs,12/02/2013,2105673-1,219,2100967 - N Rudelhoff,N R Electrical
Tendring DC,http://statistics.data.gov.uk/id/local-authority-district/22UN,Corporate Services,1880 - Office Accommodation Expenses,2100 - Building Repairs,12/02/2013,2105673-2,372,2100967 - N Rudelhoff,N R Electrical
Tendring DC,http://statistics.data.gov.uk/id/local-authority-district/22UN,Corporate Services,1880 - Office Accommodation Expenses,2100 - Building Repairs,12/02/2013,2105674-1,47,2100967 - N Rudelhoff,N R Electricasl
Tendring DC,http://statistics.data.gov.uk/id/local-authority-district/22UN,Corporate Services,1880 - Office Accommodation Expenses,2100 - Building Repairs,12/02/2013,2105674-2,120,2100967 - N Rudelhoff,N R Electricasl
Tendring DC,http://statistics.data.gov.uk/id/local-authority-district/22UN,Corporate Services,1880 - Office Accommodation Expenses,2100 - Building Repairs,12/02/2013,2105674-3,38,2100967 - N Rudelhoff,N R Electricasl
Tendring DC,http://statistics.data.gov.uk/id/local-authority-district/22UN,Corporate Services,1860 - Depots General,2100 - Building Repairs,12/02/2013,2105674-4,322,2100967 - N Rudelhoff,N R Electricasl
Tendring DC,http://statistics.data.gov.uk/id/local-authority-district/22UN,Corporate Services,1320 - Print Unit Service Unit,4302 - External Print Unit Expenses,12/02/2013,2105827-1,173,2111479 - Neil Goss Litho Printing,Job 514
Tendring DC,http://statistics.data.gov.uk/id/local-authority-district/22UN,Corporate Services,1320 - Print Unit Service Unit,4302 - External Print Unit Expenses,26/02/2013,2106460-1,400,2111479 - Neil Goss Litho Printing,Job 541
Tendring DC,http://statistics.data.gov.uk/id/local-authority-district/22UN,Corporate Services,1930 - Asset Management Service Unit,4460 - Legal & Professional Expenses,26/02/2013,2106425-1,3777.75,REDACTED PERSONAL DATA,REDACTED PERSONAL DATA
Tendring DC,http://statistics.data.gov.uk/id/local-authority-district/22UN,Corporate Services,1661 - Other Apportionable Overheads - Corporate Support,4700 - Postage,12/02/2013,2105937-1,20.15,2101075 - Parcelforce Worldwide,Parcel Force
Tendring DC,http://statistics.data.gov.uk/id/local-authority-district/22UN,Corporate Services,4460 - Planning Policy and Conservation,5446 - Local Development Frame Workl/Local Plan,20/02/2013,2106232-1,250.8,2101038 - Phoenix Software Limited,Acrobat Pro II Licence
Tendring DC,http://statistics.data.gov.uk/id/local-authority-district/22UN,Corporate Services,C367 - Application Interfacing,C276 - Licences for Software,20/02/2013,2106233-1,540,2101038 - Phoenix Software Limited,Photoshop C6 13 Phoenix S
Tendring DC,http://statistics.data.gov.uk/id/local-authority-district/22UN,Corporate Services,1100 - Head of Corporate Services and Admin Service Unit,4753 - Computer - Application Software,20/02/2013,2106235-1,241.06,2101038 - Phoenix Software Limited,Visio Pro 2013 Licence
Tendring DC,http://statistics.data.gov.uk/id/local-authority-district/22UN,Corporate Services,7040 - Civic Ceremonial Expenses,4830 - Contribution to Chairman's Dinner Dance,26/02/2013,2106531-1,40,REDACTED PERSONAL DATA,REDACTED PERSONAL DATA
Tendring DC,http://statistics.data.gov.uk/id/local-authority-district/22UN,Corporate Services,1661 - Other Apportionable Overheads - Corporate Support,4700 - Postage,12/02/2013,2105789-1,5050,REDACTED PERSONAL DATA,REDACTED PERSONAL DATA
Tendring DC,http://statistics.data.gov.uk/id/local-authority-district/22UN,Corporate Services,1661 - Other Apportionable Overheads - Corporate Support,4700 - Postage,26/02/2013,7009002-1,959.68,2104077 - Pitney Bowes Ltd,FRANKING CONSUMABLES
Tendring DC,http://statistics.data.gov.uk/id/local-authority-district/22UN,Corporate Services,1300 - Legal Services Service Unit,9452 - Costs & Legal Expenses Recoverable,12/02/2013,2105777-1,100,2101150 - Powis & Co,
Tendring DC,http://statistics.data.gov.uk/id/local-authority-district/22UN,Corporate Services,"1580 - Benefits, Revenues and Customer Contact SU",4718 - Fixed Communication Lines,20/02/2013,2106231-1,20.88,2106860 - ProcessFlows UK Ltd,Process Flows
Tendring DC,http://statistics.data.gov.uk/id/local-authority-district/22UN,Corporate Services,9930 - Loans Fund Balance Sheet,B551 - Loans Maturing Within One Year - HRA,26/02/2013,2106088-1,275000,2101162 - Public Works Loan Board,Principal and Interest Payments
Tendring DC,http://statistics.data.gov.uk/id/local-authority-district/22UN,Corporate Services,5760 - HRA - Capital & Interest Charges,9831 - Item 8 Interest Charge in HRA,26/02/2013,2106088-2,227781.25,2101162 - Public Works Loan Board,Principal and Interest Payments
Tendring DC,http://statistics.data.gov.uk/id/local-authority-district/22UN,Corporate Services,9900 - General Fund Balance Sheet,B886 - Rail Warrants Allocation Holding Account,26/02/2013,2106092-1,1101.4,2101174 - R S P Ltd,Rail Warrants
Tendring DC,http://statistics.data.gov.uk/id/local-authority-district/22UN,Corporate Services,6580 - Member Support Cost,4350 - Photocopier Hire,26/02/2013,2106470-1,-208.22,2101090 - Ricoh UK Ltd,Photocopier Use
Tendring DC,http://statistics.data.gov.uk/id/local-authority-district/22UN,Corporate Services,6580 - Member Support Cost,4350 - Photocopier Hire,26/02/2013,7008962-1,208.22,2101090 - Ricoh UK Ltd,PHOTOCOPIER USE
Tendring DC,http://statistics.data.gov.uk/id/local-authority-district/22UN,Corporate Services,7100 - Community Health/Safety,1700 - Training - Courses,20/02/2013,7008894-1,495,2110576 - Safety Net Associates,BTEC LEVEL 3 PRACTITIONER COURSE
Tendring DC,http://statistics.data.gov.uk/id/local-authority-district/22UN,Corporate Services,5880 - Management Of Sport & Leisure Facilities,4597 - Hired Services - Payments to Contractors,20/02/2013,2106043-1,9395,2101223 - Sector Treasury Services Ltd,Gym Equip Purchase
Tendring DC,http://statistics.data.gov.uk/id/local-authority-district/22UN,Corporate Services,1760 - IT Direct Service Costs,4753 - Computer - Application Software,20/02/2013,2106234-1,34310.98,2103677 - SecureData Europe Ltd,Secure Data: Security Support
Tendring DC,http://statistics.data.gov.uk/id/local-authority-district/22UN,Corporate Services,1760 - IT Direct Service Costs,4597 - Hired Services - Payments to Contractors,20/02/2013,2106236-1,900,2103677 - SecureData Europe Ltd,Secure Data: Rem Work Consult
Tendring DC,http://statistics.data.gov.uk/id/local-authority-district/22UN,Corporate Services,1432 - TDC Website,4753 - Computer - Application Software,05/02/2013,2105431-1,2110,2112822 - Siteimprove Ltd,Siteimprove 5188
Tendring DC,http://statistics.data.gov.uk/id/local-authority-district/22UN,Corporate Services,6561 - Other Democratic Costs,4880 - Subscriptions Paid,26/02/2013,2106467-1,398,2102558 - SOLACE,SOLACE Membership
Tendring DC,http://statistics.data.gov.uk/id/local-authority-district/22UN,Corporate Services,1880 - Office Accommodation Expenses,2100 - Building Repairs,12/02/2013,2105832-1,11.08,2101370 - Stannah Lift Services Ltd,Stannah
Tendring DC,http://statistics.data.gov.uk/id/local-authority-district/22UN,Corporate Services,1880 - Office Accommodation Expenses,2100 - Building Repairs,12/02/2013,2105832-2,11.08,2101370 - Stannah Lift Services Ltd,Stannah
Tendring DC,http://statistics.data.gov.uk/id/local-authority-district/22UN,Corporate Services,1880 - Office Accommodation Expenses,2100 - Building Repairs,20/02/2013,2106337-1,136.02,2101370 - Stannah Lift Services Ltd,Stannah
Tendring DC,http://statistics.data.gov.uk/id/local-authority-district/22UN,Corporate Services,9900 - General Fund Balance Sheet,B382 - Rechargeable Works - Other,26/02/2013,1050870-1,105,2101314 - T V Licensing,TV LICENCE - GREENFIELDS
Tendring DC,http://statistics.data.gov.uk/id/local-authority-district/22UN,Corporate Services,9900 - General Fund Balance Sheet,B382 - Rechargeable Works - Other,26/02/2013,1050871-1,52.5,2101314 - T V Licensing,TV LICENCE - HONEYCROFT
Tendring DC,http://statistics.data.gov.uk/id/local-authority-district/22UN,Corporate Services,7220 - Election Expenses,4486 - Election Expenses,20/02/2013,2106210-1,26.75,2106628 - Tendring District Council,Petty Cash - Legal
Tendring DC,http://statistics.data.gov.uk/id/local-authority-district/22UN,Corporate Services,1661 - Other Apportionable Overheads - Corporate Support,4700 - Postage,20/02/2013,2106210-10,1.5,2106628 - Tendring District Council,Petty Cash - Legal
Tendring DC,http://statistics.data.gov.uk/id/local-authority-district/22UN,Corporate Services,6560 - Other Democratic Costs,4110 - General Provisions,20/02/2013,2106210-11,2.69,2106628 - Tendring District Council,Petty Cash - Legal
Tendring DC,http://statistics.data.gov.uk/id/local-authority-district/22UN,Corporate Services,1100 - Head of Corporate Services and Admin Service Unit,5500 - Miscellaneous Expenses,20/02/2013,2106210-12,1.25,2106628 - Tendring District Council,Petty Cash - Legal
Tendring DC,http://statistics.data.gov.uk/id/local-authority-district/22UN,Corporate Services,6560 - Other Democratic Costs,4110 - General Provisions,20/02/2013,2106210-13,2.52,2106628 - Tendring District Council,Petty Cash - Legal
Tendring DC,http://statistics.data.gov.uk/id/local-authority-district/22UN,Corporate Services,6920 - Youth Initiatives,4800 - Hospitality,20/02/2013,2106210-14,2.9,2106628 - Tendring District Council,Petty Cash - Legal
Tendring DC,http://statistics.data.gov.uk/id/local-authority-district/22UN,Corporate Services,6560 - Other Democratic Costs,4110 - General Provisions,20/02/2013,2106210-15,5.25,2106628 - Tendring District Council,Petty Cash - Legal
Tendring DC,http://statistics.data.gov.uk/id/local-authority-district/22UN,Corporate Services,1370 - Streets & Seafronts Service Unit,3302 - Car Allowances - Officers,20/02/2013,2106210-16,16,2106628 - Tendring District Council,Petty Cash - Legal
Tendring DC,http://statistics.data.gov.uk/id/local-authority-district/22UN,Corporate Services,1370 - Streets & Seafronts Service Unit,3302 - Car Allowances - Officers,20/02/2013,2106210-17,4,2106628 - Tendring District Council,Petty Cash - Legal
Tendring DC,http://statistics.data.gov.uk/id/local-authority-district/22UN,Corporate Services,6560 - Other Democratic Costs,4110 - General Provisions,20/02/2013,2106210-18,4.13,2106628 - Tendring District Council,Petty Cash - Legal
Tendring DC,http://statistics.data.gov.uk/id/local-authority-district/22UN,Corporate Services,6560 - Other Democratic Costs,4110 - General Provisions,20/02/2013,2106210-19,6.8,2106628 - Tendring District Council,Petty Cash - Legal
Tendring DC,http://statistics.data.gov.uk/id/local-authority-district/22UN,Corporate Services,7220 - Election Expenses,4486 - Election Expenses,20/02/2013,2106210-2,5,2106628 - Tendring District Council,Petty Cash - Legal
Tendring DC,http://statistics.data.gov.uk/id/local-authority-district/22UN,Corporate Services,1370 - Streets & Seafronts Service Unit,3302 - Car Allowances - Officers,20/02/2013,2106210-20,5,2106628 - Tendring District Council,Petty Cash - Legal
Tendring DC,http://statistics.data.gov.uk/id/local-authority-district/22UN,Corporate Services,6560 - Other Democratic Costs,4110 - General Provisions,20/02/2013,2106210-21,8.89,2106628 - Tendring District Council,Petty Cash - Legal
Tendring DC,http://statistics.data.gov.uk/id/local-authority-district/22UN,Corporate Services,6560 - Other Democratic Costs,4110 - General Provisions,20/02/2013,2106210-22,4.52,2106628 - Tendring District Council,Petty Cash - Legal
Tendring DC,http://statistics.data.gov.uk/id/local-authority-district/22UN,Corporate Services,7720 - Regeneration Projects,4486 - Election Expenses,20/02/2013,2106210-23,4.73,2106628 - Tendring District Council,Petty Cash - Legal
Tendring DC,http://statistics.data.gov.uk/id/local-authority-district/22UN,Corporate Services,1661 - Other Apportionable Overheads - Corporate Support,4700 - Postage,20/02/2013,2106210-24,1.69,2106628 - Tendring District Council,Petty Cash - Legal
Tendring DC,http://statistics.data.gov.uk/id/local-authority-district/22UN,Corporate Services,1100 - Head of Corporate Services and Admin Service Unit,5500 - Miscellaneous Expenses,20/02/2013,2106210-25,7.67,2106628 - Tendring District Council,Petty Cash - Legal
Tendring DC,http://statistics.data.gov.uk/id/local-authority-district/22UN,Corporate Services,1661 - Other Apportionable Overheads - Corporate Support,4700 - Postage,20/02/2013,2106210-26,1.5,2106628 - Tendring District Council,Petty Cash - Legal
Tendring DC,http://statistics.data.gov.uk/id/local-authority-district/22UN,Corporate Services,1661 - Other Apportionable Overheads - Corporate Support,4700 - Postage,20/02/2013,2106210-27,1.5,2106628 - Tendring District Council,Petty Cash - Legal
Tendring DC,http://statistics.data.gov.uk/id/local-authority-district/22UN,Corporate Services,1661 - Other Apportionable Overheads - Corporate Support,4700 - Postage,20/02/2013,2106210-3,1.5,2106628 - Tendring District Council,Petty Cash - Legal
Tendring DC,http://statistics.data.gov.uk/id/local-authority-district/22UN,Corporate Services,7220 - Election Expenses,4486 - Election Expenses,20/02/2013,2106210-4,10.68,2106628 - Tendring District Council,Petty Cash - Legal
Tendring DC,http://statistics.data.gov.uk/id/local-authority-district/22UN,Corporate Services,6560 - Other Democratic Costs,4110 - General Provisions,20/02/2013,2106210-5,10.1,2106628 - Tendring District Council,Petty Cash - Legal
Tendring DC,http://statistics.data.gov.uk/id/local-authority-district/22UN,Corporate Services,1661 - Other Apportionable Overheads - Corporate Support,4700 - Postage,20/02/2013,2106210-6,1.5,2106628 - Tendring District Council,Petty Cash - Legal
Tendring DC,http://statistics.data.gov.uk/id/local-authority-district/22UN,Corporate Services,6560 - Other Democratic Costs,4110 - General Provisions,20/02/2013,2106210-7,18.48,2106628 - Tendring District Council,Petty Cash - Legal
Tendring DC,http://statistics.data.gov.uk/id/local-authority-district/22UN,Corporate Services,6560 - Other Democratic Costs,4110 - General Provisions,20/02/2013,2106210-8,22,2106628 - Tendring District Council,Petty Cash - Legal
Tendring DC,http://statistics.data.gov.uk/id/local-authority-district/22UN,Corporate Services,1100 - Head of Corporate Services and Admin Service Unit,3300 - Public Transport - Officers,20/02/2013,2106210-9,33,2106628 - Tendring District Council,Petty Cash - Legal
Tendring DC,http://statistics.data.gov.uk/id/local-authority-district/22UN,Corporate Services,1880 - Office Accommodation Expenses,4632 - Security,12/02/2013,2105658-1,742,2112597 - The Security Centre,The Security Centre
Tendring DC,http://statistics.data.gov.uk/id/local-authority-district/22UN,Corporate Services,1815 - Personnel and Human Resources Issues,4460 - Legal & Professional Expenses,05/02/2013,2105609-1,250,2101484 - Thompson Smith & Puxon,Compromise Agreement
Tendring DC,http://statistics.data.gov.uk/id/local-authority-district/22UN,Corporate Services,1300 - Legal Services Service Unit,4355 - Books & Periodicals,05/02/2013,2105493-1,210,REDACTED COMMERCIAL CONFIDENTIALITY,REDACTED COMMERCIAL CONFIDENTIALITY
Tendring DC,http://statistics.data.gov.uk/id/local-authority-district/22UN,Corporate Services,1100 - Head of Corporate Services and Admin Service Unit,4355 - Books & Periodicals,12/02/2013,2105936-1,135,2111580 - Thomson Reuters,Schofields Election R12
Tendring DC,http://statistics.data.gov.uk/id/local-authority-district/22UN,Corporate Services,1100 - Head of Corporate Services and Admin Service Unit,4355 - Books & Periodicals,12/02/2013,2105936-2,135,2111580 - Thomson Reuters,Schofields Election R12
Tendring DC,http://statistics.data.gov.uk/id/local-authority-district/22UN,Corporate Services,1880 - Office Accommodation Expenses,2100 - Building Repairs,20/02/2013,2106343-1,115.33,2101457 - Town Council of Frinton and Walton,Town Council F&W
Tendring DC,http://statistics.data.gov.uk/id/local-authority-district/22UN,Corporate Services,5480 - HRA - Repair & Maintenance,6625 - Tenants Compensation Scheme,05/02/2013,2105654-1,5000,REDACTED PERSONAL DATA,REDACTED PERSONAL DATA
Tendring DC,http://statistics.data.gov.uk/id/local-authority-district/22UN,Corporate Services,7040 - Civic Ceremonial Expenses,4080 - Materials & Consumables,26/02/2013,2106473-1,10.5,REDACTED PERSONAL DATA,REDACTED PERSONAL DATA
Tendring DC,http://statistics.data.gov.uk/id/local-authority-district/22UN,Corporate Services,1860 - Depots General,4446 - Bulk Bin Collection,20/02/2013,2106338-1,99.27,2101092 - Veolia ES (UK) Limited,Veolia - NB
Tendring DC,http://statistics.data.gov.uk/id/local-authority-district/22UN,Corporate Services,1880 - Office Accommodation Expenses,4446 - Bulk Bin Collection,20/02/2013,2106339-1,344.63,2101092 - Veolia ES (UK) Limited,Veolia - Weeley
Tendring DC,http://statistics.data.gov.uk/id/local-authority-district/22UN,Corporate Services,1880 - Office Accommodation Expenses,4446 - Bulk Bin Collection,20/02/2013,2106340-1,315.15,2101092 - Veolia ES (UK) Limited,Veolia - CT
Tendring DC,http://statistics.data.gov.uk/id/local-authority-district/22UN,Corporate Services,1880 - Office Accommodation Expenses,4446 - Bulk Bin Collection,20/02/2013,2106341-1,696.84,2101092 - Veolia ES (UK) Limited,Veolia - Town Hall
Tendring DC,http://statistics.data.gov.uk/id/local-authority-district/22UN,Corporate Services,1880 - Office Accommodation Expenses,4446 - Bulk Bin Collection,20/02/2013,2106342-1,44.12,2101092 - Veolia ES (UK) Limited,Veolia - Westleigh
Tendring DC,http://statistics.data.gov.uk/id/local-authority-district/22UN,Corporate Services,1760 - IT Direct Service Costs,4751 - Hardware & Service Maintenance,26/02/2013,2106439-1,57.15,REDACTED PERSONAL DATA,REDACTED PERSONAL DATA
Tendring DC,http://statistics.data.gov.uk/id/local-authority-district/22UN,Corporate Services,1100 - Head of Corporate Services and Admin Service Unit,4716 - Mobile Telephone Costs,12/02/2013,2105820-1,156.39,2101522 - Vodafone Corporate,Vodafone - 670087184
Tendring DC,http://statistics.data.gov.uk/id/local-authority-district/22UN,Corporate Services,1090 - Chief Executive and Support Service Unit,4716 - Mobile Telephone Costs,12/02/2013,2105820-2,239.14,2101522 - Vodafone Corporate,Vodafone - 670087184
Tendring DC,http://statistics.data.gov.uk/id/local-authority-district/22UN,Corporate Services,6580 - Member Support Cost,4716 - Mobile Telephone Costs,12/02/2013,2105820-3,394.63,2101522 - Vodafone Corporate,Vodafone - 670087184
Tendring DC,http://statistics.data.gov.uk/id/local-authority-district/22UN,Corporate Services,7716 - Jaywick Team,4716 - Mobile Telephone Costs,12/02/2013,2105820-4,104.29,2101522 - Vodafone Corporate,Vodafone - 670087184
Tendring DC,http://statistics.data.gov.uk/id/local-authority-district/22UN,Corporate Services,1040 - Regeneration Service Unit,4716 - Mobile Telephone Costs,12/02/2013,2105820-5,140.29,2101522 - Vodafone Corporate,Vodafone - 670087184
Tendring DC,http://statistics.data.gov.uk/id/local-authority-district/22UN,Corporate Services,7025 - CDRP Support,4900 - Grants,12/02/2013,2105820-6,11.42,2101522 - Vodafone Corporate,Vodafone - 670087184
Tendring DC,http://statistics.data.gov.uk/id/local-authority-district/22UN,Corporate Services,1210 - Facilities Management Service Unit,4716 - Mobile Telephone Costs,12/02/2013,2105820-7,370.85,2101522 - Vodafone Corporate,Vodafone - 670087184
Tendring DC,http://statistics.data.gov.uk/id/local-authority-district/22UN,Corporate Services,1210 - Facilities Management Service Unit,4716 - Mobile Telephone Costs,12/02/2013,2105820-8,-7,2101522 - Vodafone Corporate,Vodafone - 670087184
Tendring DC,http://statistics.data.gov.uk/id/local-authority-district/22UN,Corporate Services,1100 - Head of Corporate Services and Admin Service Unit,4716 - Mobile Telephone Costs,12/02/2013,2105820-9,5.52,2101522 - Vodafone Corporate,Vodafone - 670087184
Tendring DC,http://statistics.data.gov.uk/id/local-authority-district/22UN,Corporate Services,"1580 - Benefits, Revenues and Customer Contact SU",4716 - Mobile Telephone Costs,12/02/2013,2105821-1,195.09,2101522 - Vodafone Corporate,Vodafone - 670087197
Tendring DC,http://statistics.data.gov.uk/id/local-authority-district/22UN,Corporate Services,1300 - Legal Services Service Unit,4716 - Mobile Telephone Costs,12/02/2013,2105821-2,11.25,2101522 - Vodafone Corporate,Vodafone - 670087197
Tendring DC,http://statistics.data.gov.uk/id/local-authority-district/22UN,Corporate Services,1180 - Benefit Fraud Investigation Service Unit,4716 - Mobile Telephone Costs,12/02/2013,2105821-3,22.93,2101522 - Vodafone Corporate,Vodafone - 670087197
Tendring DC,http://statistics.data.gov.uk/id/local-authority-district/22UN,Corporate Services,1760 - IT Direct Service Costs,4716 - Mobile Telephone Costs,12/02/2013,2105821-4,304.1,2101522 - Vodafone Corporate,Vodafone - 670087197
Tendring DC,http://statistics.data.gov.uk/id/local-authority-district/22UN,Corporate Services,6460 - Career Track,4716 - Mobile Telephone Costs,12/02/2013,2105821-5,274.71,2101522 - Vodafone Corporate,Vodafone - 670087197
Tendring DC,http://statistics.data.gov.uk/id/local-authority-district/22UN,Corporate Services,1330 - Human Resources Service Unit,4716 - Mobile Telephone Costs,12/02/2013,2105821-6,215.55,2101522 - Vodafone Corporate,Vodafone - 670087197
Tendring DC,http://statistics.data.gov.uk/id/local-authority-district/22UN,Corporate Services,1320 - Print Unit Service Unit,4350 - Photocopier Hire,12/02/2013,2105826-1,1964.1,2101527 - Xerox Finance Ltd,252 Rental
Tendring DC,http://statistics.data.gov.uk/id/local-authority-district/22UN,Corporate Services,1320 - Print Unit Service Unit,4350 - Photocopier Hire,26/02/2013,2106459-1,1869.9,2101527 - Xerox Finance Ltd,4127 Rental
Tendring DC,http://statistics.data.gov.uk/id/local-authority-district/22UN,Corporate Services,1150 - Other Corporate Services Mgt & Central Admin Service Unit,4300 - Printing & Stationery,12/02/2013,2105935-1,16.36,2107546 - XMA Limited,XMA Stationery Order
Tendring DC,http://statistics.data.gov.uk/id/local-authority-district/22UN,Corporate Services,1100 - Head of Corporate Services and Admin Service Unit,4300 - Printing & Stationery,20/02/2013,2106044-1,31.97,2107546 - XMA Limited,Ink Cartridge
Tendring DC,http://statistics.data.gov.uk/id/local-authority-district/22UN,Corporate Services,1150 - Other Corporate Services Mgt & Central Admin Service Unit,4300 - Printing & Stationery,20/02/2013,7008898-1,70.58,2107546 - XMA Limited,XMA STATINERY ORDER
Tendring DC,http://statistics.data.gov.uk/id/local-authority-district/22UN,Corporate Services,1150 - Other Corporate Services Mgt & Central Admin Service Unit,4300 - Printing & Stationery,26/02/2013,7009010-1,20.97,2107546 - XMA Limited,XMA CANON INK CARTRIDGES
Tendring DC,http://statistics.data.gov.uk/id/local-authority-district/22UN,Life Opportunities,6160 - Princes Theatre,4000 - Furniture,12/02/2013,2105807-1,45,REDACTED PERSONAL DATA,REDACTED PERSONAL DATA
Tendring DC,http://statistics.data.gov.uk/id/local-authority-district/22UN,Life Opportunities,6740 - Careline,3076 - Transport,20/02/2013,2106168-1,62.15,2100768 - A2B Taxis,A2B Taxis in bad weather
Tendring DC,http://statistics.data.gov.uk/id/local-authority-district/22UN,Life Opportunities,5480 - HRA - Repair & Maintenance,2018 - Other Responsive Repairs,12/02/2013,2105955-1,210,2100072 - Acorn Pressurisation Services Ltd,Kate Daniels House
Tendring DC,http://statistics.data.gov.uk/id/local-authority-district/22UN,Life Opportunities,5480 - HRA - Repair & Maintenance,2019 - Repair & Maintenance - Keys,20/02/2013,2106264-1,210,REDACTED PERSONAL DATA,REDACTED PERSONAL DATA
Tendring DC,http://statistics.data.gov.uk/id/local-authority-district/22UN,Life Opportunities,H730 - Energy & Water Conservation,C200 - Main Contractor,12/02/2013,2105885-1,2606,REDACTED COMMERCIAL CONFIDENTIALITY,REDACTED COMMERCIAL CONFIDENTIALITY
Tendring DC,http://statistics.data.gov.uk/id/local-authority-district/22UN,Life Opportunities,H730 - Energy & Water Conservation,C200 - Main Contractor,12/02/2013,2105942-1,5854.5,REDACTED COMMERCIAL CONFIDENTIALITY,REDACTED COMMERCIAL CONFIDENTIALITY
Tendring DC,http://statistics.data.gov.uk/id/local-authority-district/22UN,Life Opportunities,8510 - Dovercourt Swimming Pool & All Weather Facilities,2510 - Water Services - Unmetered,26/02/2013,2106432-1,554.32,REDACTED PERSONAL DATA,REDACTED PERSONAL DATA
Tendring DC,http://statistics.data.gov.uk/id/local-authority-district/22UN,Life Opportunities,8540 - Leisure Centre Clacton,2510 - Water Services - Unmetered,26/02/2013,7008972-1,956.35,2112518 - Affinity Water Ltd (East Region),JANUARY
Tendring DC,http://statistics.data.gov.uk/id/local-authority-district/22UN,Life Opportunities,5360 - HRA - Sheltered Units,2500 - Water Services - Metered,26/02/2013,7008993-1,314.09,2112518 - Affinity Water Ltd (East Region),WS BELMANS
Tendring DC,http://statistics.data.gov.uk/id/local-authority-district/22UN,Life Opportunities,5360 - HRA - Sheltered Units,2500 - Water Services - Metered,26/02/2013,7008993-2,301.79,2112518 - Affinity Water Ltd (East Region),WS BELMANS
Tendring DC,http://statistics.data.gov.uk/id/local-authority-district/22UN,Life Opportunities,5360 - HRA - Sheltered Units,2500 - Water Services - Metered,26/02/2013,7008994-1,21.42,2112518 - Affinity Water Ltd (East Region),BELMANS
Tendring DC,http://statistics.data.gov.uk/id/local-authority-district/22UN,Life Opportunities,H715 - Measures To Combat Condensation,C200 - Main Contractor,05/02/2013,2105525-1,591,REDACTED PERSONAL DATA,REDACTED PERSONAL DATA
Tendring DC,http://statistics.data.gov.uk/id/local-authority-district/22UN,Life Opportunities,5480 - HRA - Repair & Maintenance,2017 - Mechanical Equipment /Extract Fans,12/02/2013,2105871-1,478.3,REDACTED PERSONAL DATA,REDACTED PERSONAL DATA
Tendring DC,http://statistics.data.gov.uk/id/local-authority-district/22UN,Life Opportunities,5480 - HRA - Repair & Maintenance,2017 - Mechanical Equipment /Extract Fans,12/02/2013,2105872-1,438.3,REDACTED PERSONAL DATA,REDACTED PERSONAL DATA
Tendring DC,http://statistics.data.gov.uk/id/local-authority-district/22UN,Life Opportunities,5480 - HRA - Repair & Maintenance,2017 - Mechanical Equipment /Extract Fans,20/02/2013,2106281-1,341.1,REDACTED PERSONAL DATA,REDACTED PERSONAL DATA
Tendring DC,http://statistics.data.gov.uk/id/local-authority-district/22UN,Life Opportunities,H715 - Measures To Combat Condensation,C200 - Main Contractor,20/02/2013,2106283-1,631,REDACTED PERSONAL DATA,REDACTED PERSONAL DATA
Tendring DC,http://statistics.data.gov.uk/id/local-authority-district/22UN,Life Opportunities,6740 - Careline,3060 - Running Costs - Diesel,20/02/2013,2106221-1,567.56,2101825 - Allstar Business Solutions Ltd,Fuel Cards Jan 13
Tendring DC,http://statistics.data.gov.uk/id/local-authority-district/22UN,Life Opportunities,"1580 - Benefits, Revenues and Customer Contact SU",4462 - Legal Fees incl. Bailiffs re debt recovery,05/02/2013,2105598-1,23.6,2101674 - Anglia Courier Express,Courier 14/1/13
Tendring DC,http://statistics.data.gov.uk/id/local-authority-district/22UN,Life Opportunities,"1580 - Benefits, Revenues and Customer Contact SU",4462 - Legal Fees incl. Bailiffs re debt recovery,26/02/2013,2106536-1,23.6,REDACTED PERSONAL DATA,REDACTED PERSONAL DATA
Tendring DC,http://statistics.data.gov.uk/id/local-authority-district/22UN,Life Opportunities,8520 - Frinton & Walton Swimming Pool,2520 - Sewerage & Environmental Charges,05/02/2013,2105652-1,2303.96,2112315 - Anglian Water Business,Frinton Pool
Tendring DC,http://statistics.data.gov.uk/id/local-authority-district/22UN,Life Opportunities,5240 - HRA - Managing Tenancies,5242 - Tenant Relations,26/02/2013,2106413-1,10,REDACTED PERSONAL DATA,REDACTED PERSONAL DATA
Tendring DC,http://statistics.data.gov.uk/id/local-authority-district/22UN,Life Opportunities,6740 - Careline,5160 - Advertising,12/02/2013,2105713-1,60,2102337 - Archant Regional Ltd,Tendring Careline Ad Jan
Tendring DC,http://statistics.data.gov.uk/id/local-authority-district/22UN,Life Opportunities,6740 - Careline,5160 - Advertising,26/02/2013,7009015-1,60,2102337 - Archant Regional Ltd,CARELINE ARCHANT LONDON
Tendring DC,http://statistics.data.gov.uk/id/local-authority-district/22UN,Life Opportunities,H860 - Disabled Adaptations,C200 - Main Contractor,20/02/2013,2106114-1,4184,REDACTED PERSONAL DATA,REDACTED PERSONAL DATA
Tendring DC,http://statistics.data.gov.uk/id/local-authority-district/22UN,Life Opportunities,6160 - Princes Theatre,4622 - Hired Services - Artistes and Production Companies,20/02/2013,2106317-1,1946.83,REDACTED PERSONAL DATA,REDACTED PERSONAL DATA
Tendring DC,http://statistics.data.gov.uk/id/local-authority-district/22UN,Life Opportunities,8520 - Frinton & Walton Swimming Pool,5300 - Resaleable Items,05/02/2013,2105535-1,37.58,REDACTED PERSONAL DATA,REDACTED PERSONAL DATA
Tendring DC,http://statistics.data.gov.uk/id/local-authority-district/22UN,Life Opportunities,8510 - Dovercourt Swimming Pool & All Weather Facilities,5300 - Resaleable Items,20/02/2013,7008932-1,212.05,2100088 - ASA Merchandising Ltd,DOVERCOURT POOL
Tendring DC,http://statistics.data.gov.uk/id/local-authority-district/22UN,Life Opportunities,5860 - Manningtree Sports Centre,4597 - Hired Services - Payments to Contractors,26/02/2013,7008990-1,210,2110101 - ASM Ltd,FOOTBALL COACHING JAN 13
Tendring DC,http://statistics.data.gov.uk/id/local-authority-district/22UN,Life Opportunities,5480 - HRA - Repair & Maintenance,2012 - Responsive Maintenance - Clearance And Cleaning,12/02/2013,2105815-1,60,REDACTED PERSONAL DATA,REDACTED PERSONAL DATA
Tendring DC,http://statistics.data.gov.uk/id/local-authority-district/22UN,Life Opportunities,5480 - HRA - Repair & Maintenance,2012 - Responsive Maintenance - Clearance And Cleaning,12/02/2013,2105816-1,30,REDACTED PERSONAL DATA,REDACTED PERSONAL DATA
Tendring DC,http://statistics.data.gov.uk/id/local-authority-district/22UN,Life Opportunities,5480 - HRA - Repair & Maintenance,2012 - Responsive Maintenance - Clearance And Cleaning,12/02/2013,2105817-1,80,REDACTED PERSONAL DATA,REDACTED PERSONAL DATA
Tendring DC,http://statistics.data.gov.uk/id/local-authority-district/22UN,Life Opportunities,5480 - HRA - Repair & Maintenance,2012 - Responsive Maintenance - Clearance And Cleaning,12/02/2013,2105818-1,40,REDACTED PERSONAL DATA,REDACTED PERSONAL DATA
Tendring DC,http://statistics.data.gov.uk/id/local-authority-district/22UN,Life Opportunities,5480 - HRA - Repair & Maintenance,2012 - Responsive Maintenance - Clearance And Cleaning,12/02/2013,2105854-1,80,REDACTED PERSONAL DATA,REDACTED PERSONAL DATA
Tendring DC,http://statistics.data.gov.uk/id/local-authority-district/22UN,Life Opportunities,5480 - HRA - Repair & Maintenance,2012 - Responsive Maintenance - Clearance And Cleaning,12/02/2013,2105855-1,75,REDACTED PERSONAL DATA,REDACTED PERSONAL DATA
Tendring DC,http://statistics.data.gov.uk/id/local-authority-district/22UN,Life Opportunities,5480 - HRA - Repair & Maintenance,2012 - Responsive Maintenance - Clearance And Cleaning,12/02/2013,2105856-1,90,REDACTED PERSONAL DATA,REDACTED PERSONAL DATA
Tendring DC,http://statistics.data.gov.uk/id/local-authority-district/22UN,Life Opportunities,5480 - HRA - Repair & Maintenance,2012 - Responsive Maintenance - Clearance And Cleaning,12/02/2013,2105857-1,70,REDACTED PERSONAL DATA,REDACTED PERSONAL DATA
Tendring DC,http://statistics.data.gov.uk/id/local-authority-district/22UN,Life Opportunities,5480 - HRA - Repair & Maintenance,2012 - Responsive Maintenance - Clearance And Cleaning,12/02/2013,2105858-1,40,REDACTED PERSONAL DATA,REDACTED PERSONAL DATA
Tendring DC,http://statistics.data.gov.uk/id/local-authority-district/22UN,Life Opportunities,5480 - HRA - Repair & Maintenance,2012 - Responsive Maintenance - Clearance And Cleaning,12/02/2013,2105859-1,40,REDACTED PERSONAL DATA,REDACTED PERSONAL DATA
Tendring DC,http://statistics.data.gov.uk/id/local-authority-district/22UN,Life Opportunities,5480 - HRA - Repair & Maintenance,2012 - Responsive Maintenance - Clearance And Cleaning,12/02/2013,2105860-1,60,REDACTED PERSONAL DATA,REDACTED PERSONAL DATA
Tendring DC,http://statistics.data.gov.uk/id/local-authority-district/22UN,Life Opportunities,5480 - HRA - Repair & Maintenance,2012 - Responsive Maintenance - Clearance And Cleaning,12/02/2013,2105861-1,40,REDACTED PERSONAL DATA,REDACTED PERSONAL DATA
Tendring DC,http://statistics.data.gov.uk/id/local-authority-district/22UN,Life Opportunities,5480 - HRA - Repair & Maintenance,2012 - Responsive Maintenance - Clearance And Cleaning,12/02/2013,2105862-1,40,REDACTED PERSONAL DATA,REDACTED PERSONAL DATA
Tendring DC,http://statistics.data.gov.uk/id/local-authority-district/22UN,Life Opportunities,5480 - HRA - Repair & Maintenance,2012 - Responsive Maintenance - Clearance And Cleaning,12/02/2013,2105863-1,68.7,REDACTED PERSONAL DATA,REDACTED PERSONAL DATA
Tendring DC,http://statistics.data.gov.uk/id/local-authority-district/22UN,Life Opportunities,5480 - HRA - Repair & Maintenance,2012 - Responsive Maintenance - Clearance And Cleaning,12/02/2013,2105864-1,60,REDACTED PERSONAL DATA,REDACTED PERSONAL DATA
Tendring DC,http://statistics.data.gov.uk/id/local-authority-district/22UN,Life Opportunities,5480 - HRA - Repair & Maintenance,2012 - Responsive Maintenance - Clearance And Cleaning,12/02/2013,2105865-1,160,REDACTED PERSONAL DATA,REDACTED PERSONAL DATA
Tendring DC,http://statistics.data.gov.uk/id/local-authority-district/22UN,Life Opportunities,5480 - HRA - Repair & Maintenance,2012 - Responsive Maintenance - Clearance And Cleaning,12/02/2013,2105866-1,40,REDACTED PERSONAL DATA,REDACTED PERSONAL DATA
Tendring DC,http://statistics.data.gov.uk/id/local-authority-district/22UN,Life Opportunities,5480 - HRA - Repair & Maintenance,2012 - Responsive Maintenance - Clearance And Cleaning,12/02/2013,2105867-1,80,REDACTED PERSONAL DATA,REDACTED PERSONAL DATA
Tendring DC,http://statistics.data.gov.uk/id/local-authority-district/22UN,Life Opportunities,5480 - HRA - Repair & Maintenance,2012 - Responsive Maintenance - Clearance And Cleaning,12/02/2013,2105868-1,50,REDACTED PERSONAL DATA,REDACTED PERSONAL DATA
Tendring DC,http://statistics.data.gov.uk/id/local-authority-district/22UN,Life Opportunities,5480 - HRA - Repair & Maintenance,2012 - Responsive Maintenance - Clearance And Cleaning,12/02/2013,2105869-1,40,REDACTED PERSONAL DATA,REDACTED PERSONAL DATA
Tendring DC,http://statistics.data.gov.uk/id/local-authority-district/22UN,Life Opportunities,8520 - Frinton & Walton Swimming Pool,4400 - Maintenance Under Service Agreements,20/02/2013,2106216-1,81.07,2112129 - Autobar Vending Services Ltd,Frinton & Walton Pool
Tendring DC,http://statistics.data.gov.uk/id/local-authority-district/22UN,Life Opportunities,6160 - Princes Theatre,4040 - Equipment & Tools,20/02/2013,2106316-1,177.6,REDACTED PERSONAL DATA,REDACTED PERSONAL DATA
Tendring DC,http://statistics.data.gov.uk/id/local-authority-district/22UN,Life Opportunities,5820 - Harwich Sports Centre,4200 - Clothing & Uniforms,12/02/2013,2105940-1,31.25,2106876 - Badgemaster Ltd,Staff Badges
Tendring DC,http://statistics.data.gov.uk/id/local-authority-district/22UN,Life Opportunities,8540 - Leisure Centre Clacton,5500 - Miscellaneous Expenses,20/02/2013,2106140-1,52.77,2106358 - Baker Ross Ltd,
Tendring DC,http://statistics.data.gov.uk/id/local-authority-district/22UN,Life Opportunities,5240 - HRA - Managing Tenancies,4312 - Tenancy Stationery,05/02/2013,2105440-1,7.84,REDACTED PERSONAL DATA,REDACTED PERSONAL DATA
Tendring DC,http://statistics.data.gov.uk/id/local-authority-district/22UN,Life Opportunities,1565 - Careline / CCTV Service Unit,4300 - Printing & Stationery,05/02/2013,2105441-1,101.65,REDACTED PERSONAL DATA,REDACTED PERSONAL DATA
Tendring DC,http://statistics.data.gov.uk/id/local-authority-district/22UN,Life Opportunities,1565 - Careline / CCTV Service Unit,4300 - Printing & Stationery,05/02/2013,2105442-1,78.29,REDACTED PERSONAL DATA,REDACTED PERSONAL DATA
Tendring DC,http://statistics.data.gov.uk/id/local-authority-district/22UN,Life Opportunities,1565 - Careline / CCTV Service Unit,4300 - Printing & Stationery,05/02/2013,2105443-1,150.94,REDACTED PERSONAL DATA,REDACTED PERSONAL DATA
Tendring DC,http://statistics.data.gov.uk/id/local-authority-district/22UN,Life Opportunities,1565 - Careline / CCTV Service Unit,4300 - Printing & Stationery,05/02/2013,2105444-1,67.67,REDACTED PERSONAL DATA,REDACTED PERSONAL DATA
Tendring DC,http://statistics.data.gov.uk/id/local-authority-district/22UN,Life Opportunities,5240 - HRA - Managing Tenancies,4312 - Tenancy Stationery,05/02/2013,2105553-1,79.71,2100111 - Banner Business Supplies Ltd,Stationery Order 8/6/12
Tendring DC,http://statistics.data.gov.uk/id/local-authority-district/22UN,Life Opportunities,5240 - HRA - Managing Tenancies,4312 - Tenancy Stationery,05/02/2013,2105554-1,10.9,2100111 - Banner Business Supplies Ltd,Stationery Order 11/6/12
Tendring DC,http://statistics.data.gov.uk/id/local-authority-district/22UN,Life Opportunities,5240 - HRA - Managing Tenancies,4312 - Tenancy Stationery,05/02/2013,2105555-1,99.72,2100111 - Banner Business Supplies Ltd,Stationery Order 18/6/12
Tendring DC,http://statistics.data.gov.uk/id/local-authority-district/22UN,Life Opportunities,5240 - HRA - Managing Tenancies,4312 - Tenancy Stationery,05/02/2013,2105556-1,127.91,2100111 - Banner Business Supplies Ltd,Stationery 25/6/12
Tendring DC,http://statistics.data.gov.uk/id/local-authority-district/22UN,Life Opportunities,5240 - HRA - Managing Tenancies,4312 - Tenancy Stationery,05/02/2013,2105557-1,3.96,2100111 - Banner Business Supplies Ltd,Stationery Order 25/6/12
Tendring DC,http://statistics.data.gov.uk/id/local-authority-district/22UN,Life Opportunities,5240 - HRA - Managing Tenancies,4312 - Tenancy Stationery,05/02/2013,2105558-1,62.37,2100111 - Banner Business Supplies Ltd,Stationery Order 02/7/12
Tendring DC,http://statistics.data.gov.uk/id/local-authority-district/22UN,Life Opportunities,5240 - HRA - Managing Tenancies,4312 - Tenancy Stationery,05/02/2013,2105559-1,130.92,2100111 - Banner Business Supplies Ltd,Stationery Order
Tendring DC,http://statistics.data.gov.uk/id/local-authority-district/22UN,Life Opportunities,5240 - HRA - Managing Tenancies,4312 - Tenancy Stationery,05/02/2013,2105560-1,145.58,2100111 - Banner Business Supplies Ltd,Stationery Order 16/7/12
Tendring DC,http://statistics.data.gov.uk/id/local-authority-district/22UN,Life Opportunities,5240 - HRA - Managing Tenancies,4312 - Tenancy Stationery,05/02/2013,2105561-1,10.64,2100111 - Banner Business Supplies Ltd,Stationery Order 23/7/12
Tendring DC,http://statistics.data.gov.uk/id/local-authority-district/22UN,Life Opportunities,5240 - HRA - Managing Tenancies,4312 - Tenancy Stationery,05/02/2013,2105562-1,22.23,2100111 - Banner Business Supplies Ltd,Stationery Order 27/7/12
Tendring DC,http://statistics.data.gov.uk/id/local-authority-district/22UN,Life Opportunities,5240 - HRA - Managing Tenancies,4312 - Tenancy Stationery,05/02/2013,2105563-1,14.66,2100111 - Banner Business Supplies Ltd,Stationery Order 6/8/12
Tendring DC,http://statistics.data.gov.uk/id/local-authority-district/22UN,Life Opportunities,5240 - HRA - Managing Tenancies,4312 - Tenancy Stationery,05/02/2013,2105564-1,0.9,2100111 - Banner Business Supplies Ltd,
Tendring DC,http://statistics.data.gov.uk/id/local-authority-district/22UN,Life Opportunities,5240 - HRA - Managing Tenancies,4312 - Tenancy Stationery,05/02/2013,2105565-1,13.5,2100111 - Banner Business Supplies Ltd,Stationery Order 6/8/12
Tendring DC,http://statistics.data.gov.uk/id/local-authority-district/22UN,Life Opportunities,5240 - HRA - Managing Tenancies,4312 - Tenancy Stationery,05/02/2013,2105566-1,9.65,2100111 - Banner Business Supplies Ltd,Stationery Order 6/8/12
Tendring DC,http://statistics.data.gov.uk/id/local-authority-district/22UN,Life Opportunities,5240 - HRA - Managing Tenancies,4312 - Tenancy Stationery,05/02/2013,2105567-1,1.78,2100111 - Banner Business Supplies Ltd,Stationery 6/8/12
Tendring DC,http://statistics.data.gov.uk/id/local-authority-district/22UN,Life Opportunities,5240 - HRA - Managing Tenancies,4312 - Tenancy Stationery,05/02/2013,2105568-1,28.45,2100111 - Banner Business Supplies Ltd,Stationery Order 13/8/12
Tendring DC,http://statistics.data.gov.uk/id/local-authority-district/22UN,Life Opportunities,5240 - HRA - Managing Tenancies,4312 - Tenancy Stationery,05/02/2013,2105569-1,106.02,2100111 - Banner Business Supplies Ltd,Stationery Order 13/5/12
Tendring DC,http://statistics.data.gov.uk/id/local-authority-district/22UN,Life Opportunities,5240 - HRA - Managing Tenancies,4312 - Tenancy Stationery,05/02/2013,2105570-1,40.93,2100111 - Banner Business Supplies Ltd,Stationery Order 24/8/12
Tendring DC,http://statistics.data.gov.uk/id/local-authority-district/22UN,Life Opportunities,5240 - HRA - Managing Tenancies,4312 - Tenancy Stationery,05/02/2013,2105571-1,79.57,2100111 - Banner Business Supplies Ltd,Stationery Order 3/9/12
Tendring DC,http://statistics.data.gov.uk/id/local-authority-district/22UN,Life Opportunities,5240 - HRA - Managing Tenancies,4312 - Tenancy Stationery,05/02/2013,2105572-1,55.96,2100111 - Banner Business Supplies Ltd,Stationery Order 26/5/12
Tendring DC,http://statistics.data.gov.uk/id/local-authority-district/22UN,Life Opportunities,"1580 - Benefits, Revenues and Customer Contact SU",4300 - Printing & Stationery,05/02/2013,2105624-1,3.42,2100111 - Banner Business Supplies Ltd,Banner Wrist Rest Black
Tendring DC,http://statistics.data.gov.uk/id/local-authority-district/22UN,Life Opportunities,"1580 - Benefits, Revenues and Customer Contact SU",4300 - Printing & Stationery,05/02/2013,2105626-1,3.81,2100111 - Banner Business Supplies Ltd,Rubber Stamp
Tendring DC,http://statistics.data.gov.uk/id/local-authority-district/22UN,Life Opportunities,8540 - Leisure Centre Clacton,4300 - Printing & Stationery,12/02/2013,2105987-1,70.73,REDACTED PERSONAL DATA,REDACTED PERSONAL DATA
Tendring DC,http://statistics.data.gov.uk/id/local-authority-district/22UN,Life Opportunities,1650 - Building Services Service Unit,4300 - Printing & Stationery,12/02/2013,2105988-1,7.02,REDACTED PERSONAL DATA,REDACTED PERSONAL DATA
Tendring DC,http://statistics.data.gov.uk/id/local-authority-district/22UN,Life Opportunities,1650 - Building Services Service Unit,4300 - Printing & Stationery,12/02/2013,2105989-1,31.96,REDACTED PERSONAL DATA,REDACTED PERSONAL DATA
Tendring DC,http://statistics.data.gov.uk/id/local-authority-district/22UN,Life Opportunities,"1580 - Benefits, Revenues and Customer Contact SU",4300 - Printing & Stationery,12/02/2013,2105990-1,6,REDACTED PERSONAL DATA,REDACTED PERSONAL DATA
Tendring DC,http://statistics.data.gov.uk/id/local-authority-district/22UN,Life Opportunities,"1580 - Benefits, Revenues and Customer Contact SU",4300 - Printing & Stationery,12/02/2013,2105991-1,5.96,REDACTED PERSONAL DATA,REDACTED PERSONAL DATA
Tendring DC,http://statistics.data.gov.uk/id/local-authority-district/22UN,Life Opportunities,5240 - HRA - Managing Tenancies,4312 - Tenancy Stationery,12/02/2013,2105993-1,139.28,REDACTED PERSONAL DATA,REDACTED PERSONAL DATA
Tendring DC,http://statistics.data.gov.uk/id/local-authority-district/22UN,Life Opportunities,1650 - Building Services Service Unit,4300 - Printing & Stationery,12/02/2013,2105994-1,45.36,REDACTED PERSONAL DATA,REDACTED PERSONAL DATA
Tendring DC,http://statistics.data.gov.uk/id/local-authority-district/22UN,Life Opportunities,1150 - Other Corporate Services Mgt & Central Admin Service Unit,4300 - Printing & Stationery,12/02/2013,2105995-1,114.37,REDACTED PERSONAL DATA,REDACTED PERSONAL DATA
Tendring DC,http://statistics.data.gov.uk/id/local-authority-district/22UN,Life Opportunities,6580 - Member Support Cost,4300 - Printing & Stationery,12/02/2013,2105996-1,37,REDACTED PERSONAL DATA,REDACTED PERSONAL DATA
Tendring DC,http://statistics.data.gov.uk/id/local-authority-district/22UN,Life Opportunities,1100 - Head of Corporate Services and Admin Service Unit,4300 - Printing & Stationery,12/02/2013,2105996-2,126.23,REDACTED PERSONAL DATA,REDACTED PERSONAL DATA
Tendring DC,http://statistics.data.gov.uk/id/local-authority-district/22UN,Life Opportunities,8520 - Frinton & Walton Swimming Pool,4300 - Printing & Stationery,20/02/2013,2106215-1,24.07,2100111 - Banner Business Supplies Ltd,Frinton & Walton Pool
Tendring DC,http://statistics.data.gov.uk/id/local-authority-district/22UN,Life Opportunities,1565 - Careline / CCTV Service Unit,4300 - Printing & Stationery,20/02/2013,2106219-1,75.65,2100111 - Banner Business Supplies Ltd,Stationery for Careline - Feb
Tendring DC,http://statistics.data.gov.uk/id/local-authority-district/22UN,Life Opportunities,5240 - HRA - Managing Tenancies,4312 - Tenancy Stationery,20/02/2013,2106224-1,116.95,2100111 - Banner Business Supplies Ltd,Banner Order 04/2/13
Tendring DC,http://statistics.data.gov.uk/id/local-authority-district/22UN,Life Opportunities,5360 - HRA - Sheltered Units,4040 - Equipment & Tools,20/02/2013,2106225-1,25.53,2100111 - Banner Business Supplies Ltd,Banner Order 4/2/13
Tendring DC,http://statistics.data.gov.uk/id/local-authority-district/22UN,Life Opportunities,5240 - HRA - Managing Tenancies,4312 - Tenancy Stationery,26/02/2013,2106396-1,97.42,REDACTED PERSONAL DATA,REDACTED PERSONAL DATA
Tendring DC,http://statistics.data.gov.uk/id/local-authority-district/22UN,Life Opportunities,"1580 - Benefits, Revenues and Customer Contact SU",4300 - Printing & Stationery,26/02/2013,2106480-1,10.38,REDACTED PERSONAL DATA,REDACTED PERSONAL DATA
Tendring DC,http://statistics.data.gov.uk/id/local-authority-district/22UN,Life Opportunities,1565 - Careline / CCTV Service Unit,4300 - Printing & Stationery,26/02/2013,2106482-1,80.24,REDACTED PERSONAL DATA,REDACTED PERSONAL DATA
Tendring DC,http://statistics.data.gov.uk/id/local-authority-district/22UN,Life Opportunities,"1580 - Benefits, Revenues and Customer Contact SU",4300 - Printing & Stationery,05/02/2013,7008858-1,9.03,2100111 - Banner Business Supplies Ltd,CALCULATORS + BATTERIES
Tendring DC,http://statistics.data.gov.uk/id/local-authority-district/22UN,Life Opportunities,5860 - Manningtree Sports Centre,5196 - Credit Card Charges,26/02/2013,2106082-1,19.35,2100141 - Barclaycard Merchant Services,PDQ January
Tendring DC,http://statistics.data.gov.uk/id/local-authority-district/22UN,Life Opportunities,5860 - Manningtree Sports Centre,5196 - Credit Card Charges,26/02/2013,2106082-2,30.15,2100141 - Barclaycard Merchant Services,PDQ January
Tendring DC,http://statistics.data.gov.uk/id/local-authority-district/22UN,Life Opportunities,8540 - Leisure Centre Clacton,5196 - Credit Card Charges,26/02/2013,2106085-1,36.3,2100141 - Barclaycard Merchant Services,January
Tendring DC,http://statistics.data.gov.uk/id/local-authority-district/22UN,Life Opportunities,8540 - Leisure Centre Clacton,5196 - Credit Card Charges,26/02/2013,2106085-2,385.2,2100141 - Barclaycard Merchant Services,January
Tendring DC,http://statistics.data.gov.uk/id/local-authority-district/22UN,Life Opportunities,8510 - Dovercourt Swimming Pool & All Weather Facilities,5196 - Credit Card Charges,26/02/2013,2106372-1,48.79,2100141 - Barclaycard Merchant Services,Dovercourt Pool Jan
Tendring DC,http://statistics.data.gov.uk/id/local-authority-district/22UN,Life Opportunities,8510 - Dovercourt Swimming Pool & All Weather Facilities,5196 - Credit Card Charges,26/02/2013,2106372-2,19.35,2100141 - Barclaycard Merchant Services,Dovercourt Pool Jan
Tendring DC,http://statistics.data.gov.uk/id/local-authority-district/22UN,Life Opportunities,5820 - Harwich Sports Centre,5196 - Credit Card Charges,26/02/2013,2106373-1,19.35,2100141 - Barclaycard Merchant Services,Barclaycard
Tendring DC,http://statistics.data.gov.uk/id/local-authority-district/22UN,Life Opportunities,5820 - Harwich Sports Centre,5196 - Credit Card Charges,26/02/2013,2106373-2,30.3,2100141 - Barclaycard Merchant Services,Barclaycard
Tendring DC,http://statistics.data.gov.uk/id/local-authority-district/22UN,Life Opportunities,5800 - Brightlingsea Sports Centre,5196 - Credit Card Charges,26/02/2013,2106374-1,20,2100141 - Barclaycard Merchant Services,Barclaycard
Tendring DC,http://statistics.data.gov.uk/id/local-authority-district/22UN,Life Opportunities,5800 - Brightlingsea Sports Centre,5196 - Credit Card Charges,26/02/2013,2106374-2,26.44,2100141 - Barclaycard Merchant Services,Barclaycard
Tendring DC,http://statistics.data.gov.uk/id/local-authority-district/22UN,Life Opportunities,7680 - Tour De Tendring,5500 - Miscellaneous Expenses,12/02/2013,2105889-1,2333,2100144 - Bike Events Ltd,TDT 1st Stage Payment
Tendring DC,http://statistics.data.gov.uk/id/local-authority-district/22UN,Life Opportunities,8540 - Leisure Centre Clacton,2300 - Energy Costs - Fuel Oil,05/02/2013,2105531-1,2191.2,REDACTED PERSONAL DATA,REDACTED PERSONAL DATA
Tendring DC,http://statistics.data.gov.uk/id/local-authority-district/22UN,Life Opportunities,8540 - Leisure Centre Clacton,2300 - Energy Costs - Fuel Oil,05/02/2013,2105537-1,1300,REDACTED PERSONAL DATA,REDACTED PERSONAL DATA
Tendring DC,http://statistics.data.gov.uk/id/local-authority-district/22UN,Life Opportunities,8540 - Leisure Centre Clacton,2300 - Energy Costs - Fuel Oil,12/02/2013,2105919-1,2236.11,2112681 - BIRLEM Ltd,
Tendring DC,http://statistics.data.gov.uk/id/local-authority-district/22UN,Life Opportunities,8540 - Leisure Centre Clacton,2300 - Energy Costs - Fuel Oil,20/02/2013,2106161-1,2759.4,2112681 - BIRLEM Ltd,
Tendring DC,http://statistics.data.gov.uk/id/local-authority-district/22UN,Life Opportunities,8540 - Leisure Centre Clacton,2300 - Energy Costs - Fuel Oil,20/02/2013,2106162-1,1998,2112681 - BIRLEM Ltd,
Tendring DC,http://statistics.data.gov.uk/id/local-authority-district/22UN,Life Opportunities,H805 - Major Refurbishment of Heating,C200 - Main Contractor,26/02/2013,2106554-1,34038.17,2100155 - Blue Flame (Colchester) Ltd,Heating Refurbishment & Upgrade Contract - Val 3
Tendring DC,http://statistics.data.gov.uk/id/local-authority-district/22UN,Life Opportunities,5140 - Homelessness,4683 - Other Homelessness Expenses,20/02/2013,2106203-1,650,REDACTED PERSONAL DATA,REDACTED PERSONAL DATA
Tendring DC,http://statistics.data.gov.uk/id/local-authority-district/22UN,Life Opportunities,5960 - Recreation Grounds,2304 - Energy Costs - Electricity,20/02/2013,2106327-1,20.91,REDACTED PERSONAL DATA,REDACTED PERSONAL DATA
Tendring DC,http://statistics.data.gov.uk/id/local-authority-district/22UN,Life Opportunities,5960 - Recreation Grounds,2304 - Energy Costs - Electricity,20/02/2013,2106320-1,26.64,REDACTED PERSONAL DATA,REDACTED PERSONAL DATA
Tendring DC,http://statistics.data.gov.uk/id/local-authority-district/22UN,Life Opportunities,5440 - HRA - Communal Electricity,2304 - Energy Costs - Electricity,26/02/2013,2106397-1,870.12,REDACTED PERSONAL DATA,REDACTED PERSONAL DATA
Tendring DC,http://statistics.data.gov.uk/id/local-authority-district/22UN,Life Opportunities,5440 - HRA - Communal Electricity,2304 - Energy Costs - Electricity,26/02/2013,2106397-2,7029.76,REDACTED PERSONAL DATA,REDACTED PERSONAL DATA
Tendring DC,http://statistics.data.gov.uk/id/local-authority-district/22UN,Life Opportunities,5340 - HRA - Communal Central Heating,2304 - Energy Costs - Electricity,26/02/2013,2106397-3,1961.13,REDACTED PERSONAL DATA,REDACTED PERSONAL DATA
Tendring DC,http://statistics.data.gov.uk/id/local-authority-district/22UN,Life Opportunities,5360 - HRA - Sheltered Units,2304 - Energy Costs - Electricity,26/02/2013,2106397-4,299.2,REDACTED PERSONAL DATA,REDACTED PERSONAL DATA
Tendring DC,http://statistics.data.gov.uk/id/local-authority-district/22UN,Life Opportunities,1915 - Low Road Depot,2304 - Energy Costs - Electricity,26/02/2013,2106398-1,78.89,REDACTED PERSONAL DATA,REDACTED PERSONAL DATA
Tendring DC,http://statistics.data.gov.uk/id/local-authority-district/22UN,Life Opportunities,6040 - Miscellaneous Seafront Activities,2304 - Energy Costs - Electricity,26/02/2013,2106398-10,109.72,REDACTED PERSONAL DATA,REDACTED PERSONAL DATA
Tendring DC,http://statistics.data.gov.uk/id/local-authority-district/22UN,Life Opportunities,6080 - Shops & Kiosks,2304 - Energy Costs - Electricity,26/02/2013,2106398-2,86,REDACTED PERSONAL DATA,REDACTED PERSONAL DATA
Tendring DC,http://statistics.data.gov.uk/id/local-authority-district/22UN,Life Opportunities,5960 - Recreation Grounds,2304 - Energy Costs - Electricity,26/02/2013,2106398-3,366.93,REDACTED PERSONAL DATA,REDACTED PERSONAL DATA
Tendring DC,http://statistics.data.gov.uk/id/local-authority-district/22UN,Life Opportunities,7600 - Tourist Information Centres,2304 - Energy Costs - Electricity,26/02/2013,2106398-4,13.24,REDACTED PERSONAL DATA,REDACTED PERSONAL DATA
Tendring DC,http://statistics.data.gov.uk/id/local-authority-district/22UN,Life Opportunities,6040 - Miscellaneous Seafront Activities,2304 - Energy Costs - Electricity,26/02/2013,2106398-5,14.43,REDACTED PERSONAL DATA,REDACTED PERSONAL DATA
Tendring DC,http://statistics.data.gov.uk/id/local-authority-district/22UN,Life Opportunities,6000 - Beach Hut Sites,2304 - Energy Costs - Electricity,26/02/2013,2106398-6,138.31,REDACTED PERSONAL DATA,REDACTED PERSONAL DATA
Tendring DC,http://statistics.data.gov.uk/id/local-authority-district/22UN,Life Opportunities,5820 - Harwich Sports Centre,2304 - Energy Costs - Electricity,26/02/2013,2106398-7,598.61,REDACTED PERSONAL DATA,REDACTED PERSONAL DATA
Tendring DC,http://statistics.data.gov.uk/id/local-authority-district/22UN,Life Opportunities,5860 - Manningtree Sports Centre,2304 - Energy Costs - Electricity,26/02/2013,2106398-8,777.62,REDACTED PERSONAL DATA,REDACTED PERSONAL DATA
Tendring DC,http://statistics.data.gov.uk/id/local-authority-district/22UN,Life Opportunities,5960 - Recreation Grounds,2304 - Energy Costs - Electricity,26/02/2013,2106398-9,93.77,REDACTED PERSONAL DATA,REDACTED PERSONAL DATA
Tendring DC,http://statistics.data.gov.uk/id/local-authority-district/22UN,Life Opportunities,6740 - Careline,2304 - Energy Costs - Electricity,26/02/2013,2106483-1,67.47,REDACTED PERSONAL DATA,REDACTED PERSONAL DATA
Tendring DC,http://statistics.data.gov.uk/id/local-authority-district/22UN,Life Opportunities,7000 - CCTV,4718 - Fixed Communication Lines,12/02/2013,2105716-1,134.46,2100168 - British Telecommunications plc,BT Bill January 13
Tendring DC,http://statistics.data.gov.uk/id/local-authority-district/22UN,Life Opportunities,6740 - Careline,4710 - Telephones - Charges,26/02/2013,7009013-1,74.46,2100168 - British Telecommunications plc,BT BILL DISASTER RECOVERY
Tendring DC,http://statistics.data.gov.uk/id/local-authority-district/22UN,Life Opportunities,6740 - Careline,4710 - Telephones - Charges,26/02/2013,7009014-1,55.78,2100168 - British Telecommunications plc,BT BILL FRINTON
Tendring DC,http://statistics.data.gov.uk/id/local-authority-district/22UN,Life Opportunities,H815 - Re-roofing,C200 - Main Contractor,20/02/2013,2106094-1,1380,REDACTED PERSONAL DATA,REDACTED PERSONAL DATA
Tendring DC,http://statistics.data.gov.uk/id/local-authority-district/22UN,Life Opportunities,H815 - Re-roofing,C200 - Main Contractor,20/02/2013,2106095-1,2280,REDACTED PERSONAL DATA,REDACTED PERSONAL DATA
Tendring DC,http://statistics.data.gov.uk/id/local-authority-district/22UN,Life Opportunities,H815 - Re-roofing,C200 - Main Contractor,20/02/2013,2106096-1,1140,REDACTED PERSONAL DATA,REDACTED PERSONAL DATA
Tendring DC,http://statistics.data.gov.uk/id/local-authority-district/22UN,Life Opportunities,5360 - HRA - Sheltered Units,2700 - Cleaning Materials,05/02/2013,2105458-1,21.76,REDACTED COMMERCIAL CONFIDENTIALITY,REDACTED COMMERCIAL CONFIDENTIALITY
Tendring DC,http://statistics.data.gov.uk/id/local-authority-district/22UN,Life Opportunities,8520 - Frinton & Walton Swimming Pool,2700 - Cleaning Materials,05/02/2013,2105603-1,45.68,2101624 - Bunzl,Frinton Pool
Tendring DC,http://statistics.data.gov.uk/id/local-authority-district/22UN,Life Opportunities,8520 - Frinton & Walton Swimming Pool,2700 - Cleaning Materials,12/02/2013,2105718-1,69.95,2101624 - Bunzl,Frinton Pool
Tendring DC,http://statistics.data.gov.uk/id/local-authority-district/22UN,Life Opportunities,5800 - Brightlingsea Sports Centre,4080 - Materials & Consumables,12/02/2013,2105824-1,118.54,2101624 - Bunzl,Bunzl
Tendring DC,http://statistics.data.gov.uk/id/local-authority-district/22UN,Life Opportunities,8540 - Leisure Centre Clacton,2700 - Cleaning Materials,12/02/2013,2105900-1,92.68,2101624 - Bunzl,
Tendring DC,http://statistics.data.gov.uk/id/local-authority-district/22UN,Life Opportunities,8540 - Leisure Centre Clacton,2100 - Building Repairs,12/02/2013,2105923-1,233,2100280 - C H Lindsey & Son Ltd,
Tendring DC,http://statistics.data.gov.uk/id/local-authority-district/22UN,Life Opportunities,8540 - Leisure Centre Clacton,2100 - Building Repairs,12/02/2013,2105924-1,369,2100280 - C H Lindsey & Son Ltd,
Tendring DC,http://statistics.data.gov.uk/id/local-authority-district/22UN,Life Opportunities,"1580 - Benefits, Revenues and Customer Contact SU",5500 - Miscellaneous Expenses,20/02/2013,2106133-1,35.62,2100261 - Cambridge City Council,Refreshments 2011/2012
Tendring DC,http://statistics.data.gov.uk/id/local-authority-district/22UN,Life Opportunities,"1580 - Benefits, Revenues and Customer Contact SU",3312 - Car Allowances - Car Hire,20/02/2013,2106214-1,22.5,2104746 - CC Hire,Car Hire & Fuel 1-2-13
Tendring DC,http://statistics.data.gov.uk/id/local-authority-district/22UN,Life Opportunities,"1580 - Benefits, Revenues and Customer Contact SU",3062 - Running Costs - Petrol,20/02/2013,2106214-2,5,2104746 - CC Hire,Car Hire & Fuel 1-2-13
Tendring DC,http://statistics.data.gov.uk/id/local-authority-district/22UN,Life Opportunities,H705 - Window/Door Replacement,C200 - Main Contractor,05/02/2013,2105529-1,8117.85,REDACTED PERSONAL DATA,REDACTED PERSONAL DATA
Tendring DC,http://statistics.data.gov.uk/id/local-authority-district/22UN,Life Opportunities,1240 - Housing Services Service Unit,1700 - Training - Courses,20/02/2013,2106277-1,250,REDACTED PERSONAL DATA,REDACTED PERSONAL DATA
Tendring DC,http://statistics.data.gov.uk/id/local-authority-district/22UN,Life Opportunities,5820 - Harwich Sports Centre,4040 - Equipment & Tools,20/02/2013,2106248-1,41.47,REDACTED PERSONAL DATA,REDACTED PERSONAL DATA
Tendring DC,http://statistics.data.gov.uk/id/local-authority-district/22UN,Life Opportunities,5220 - HRA - Policy & Management,5253 - HRA Health & Safety Expenses,26/02/2013,2106550-1,40,REDACTED COMMERCIAL CONFIDENTIALITY,REDACTED COMMERCIAL CONFIDENTIALITY
Tendring DC,http://statistics.data.gov.uk/id/local-authority-district/22UN,Life Opportunities,5240 - HRA - Managing Tenancies,4644 - Energy Performance Certificate Costs,20/02/2013,2106260-1,40,REDACTED PERSONAL DATA,REDACTED PERSONAL DATA
Tendring DC,http://statistics.data.gov.uk/id/local-authority-district/22UN,Life Opportunities,5240 - HRA - Managing Tenancies,4644 - Energy Performance Certificate Costs,20/02/2013,2106261-1,40,REDACTED PERSONAL DATA,REDACTED PERSONAL DATA
Tendring DC,http://statistics.data.gov.uk/id/local-authority-district/22UN,Life Opportunities,5240 - HRA - Managing Tenancies,4644 - Energy Performance Certificate Costs,20/02/2013,2106262-1,45,REDACTED PERSONAL DATA,REDACTED PERSONAL DATA
Tendring DC,http://statistics.data.gov.uk/id/local-authority-district/22UN,Life Opportunities,5240 - HRA - Managing Tenancies,4644 - Energy Performance Certificate Costs,26/02/2013,7008995-1,45,REDACTED PERSONAL DATA,REDACTED PERSONAL DATA
Tendring DC,http://statistics.data.gov.uk/id/local-authority-district/22UN,Life Opportunities,5240 - HRA - Managing Tenancies,4644 - Energy Performance Certificate Costs,26/02/2013,7008996-1,45,REDACTED PERSONAL DATA,REDACTED PERSONAL DATA
Tendring DC,http://statistics.data.gov.uk/id/local-authority-district/22UN,Life Opportunities,5800 - Brightlingsea Sports Centre,5160 - Advertising,26/02/2013,2106538-1,104,REDACTED PERSONAL DATA,REDACTED PERSONAL DATA
Tendring DC,http://statistics.data.gov.uk/id/local-authority-district/22UN,Life Opportunities,5480 - HRA - Repair & Maintenance,2019 - Repair & Maintenance - Keys,05/02/2013,2105526-1,100.5,REDACTED PERSONAL DATA,REDACTED PERSONAL DATA
Tendring DC,http://statistics.data.gov.uk/id/local-authority-district/22UN,Life Opportunities,6160 - Princes Theatre,5308 - Ice Cream,05/02/2013,2105459-1,74.93,REDACTED COMMERCIAL CONFIDENTIALITY,REDACTED COMMERCIAL CONFIDENTIALITY
Tendring DC,http://statistics.data.gov.uk/id/local-authority-district/22UN,Life Opportunities,6160 - Princes Theatre,5308 - Ice Cream,12/02/2013,2105884-1,151.94,2108623 - CICC Ltd,Ice Cream
Tendring DC,http://statistics.data.gov.uk/id/local-authority-district/22UN,Life Opportunities,6160 - Princes Theatre,5308 - Ice Cream,20/02/2013,2106325-1,61.92,REDACTED PERSONAL DATA,REDACTED PERSONAL DATA
Tendring DC,http://statistics.data.gov.uk/id/local-authority-district/22UN,Life Opportunities,6160 - Princes Theatre,5308 - Ice Cream,20/02/2013,2106326-1,179.71,REDACTED PERSONAL DATA,REDACTED PERSONAL DATA
Tendring DC,http://statistics.data.gov.uk/id/local-authority-district/22UN,Life Opportunities,6160 - Princes Theatre,5308 - Ice Cream,26/02/2013,7008986-1,61.92,2108623 - CICC Ltd,ICE CUBES
Tendring DC,http://statistics.data.gov.uk/id/local-authority-district/22UN,Life Opportunities,8540 - Leisure Centre Clacton,2110 - Playground Maintenance,05/02/2013,2105530-1,89.42,REDACTED PERSONAL DATA,REDACTED PERSONAL DATA
Tendring DC,http://statistics.data.gov.uk/id/local-authority-district/22UN,Life Opportunities,8510 - Dovercourt Swimming Pool & All Weather Facilities,2100 - Building Repairs,05/02/2013,2105617-1,80.93,2100267 - City Electrical Factors Ltd Anglia Division,Dovercourt Pool
Tendring DC,http://statistics.data.gov.uk/id/local-authority-district/22UN,Life Opportunities,8540 - Leisure Centre Clacton,2100 - Building Repairs,20/02/2013,7008904-1,4.84,2100267 - City Electrical Factors Ltd Anglia Division,
Tendring DC,http://statistics.data.gov.uk/id/local-authority-district/22UN,Life Opportunities,8510 - Dovercourt Swimming Pool & All Weather Facilities,2100 - Building Repairs,20/02/2013,7008936-1,29.25,2100267 - City Electrical Factors Ltd Anglia Division,DOVERCOURT POOL
Tendring DC,http://statistics.data.gov.uk/id/local-authority-district/22UN,Life Opportunities,8510 - Dovercourt Swimming Pool & All Weather Facilities,2100 - Building Repairs,20/02/2013,7008937-1,19.5,2100267 - City Electrical Factors Ltd Anglia Division,DOVERCOURT POOL
Tendring DC,http://statistics.data.gov.uk/id/local-authority-district/22UN,Life Opportunities,8540 - Leisure Centre Clacton,2100 - Building Repairs,20/02/2013,2106036-1,39.17,2100218 - Clacton Electronics Ltd,
Tendring DC,http://statistics.data.gov.uk/id/local-authority-district/22UN,Life Opportunities,5480 - HRA - Repair & Maintenance,2088 - Disabled Adaptations,20/02/2013,2106093-1,60,REDACTED PERSONAL DATA,REDACTED PERSONAL DATA
Tendring DC,http://statistics.data.gov.uk/id/local-authority-district/22UN,Life Opportunities,H870 - Cash Incentive Scheme,C400 - Grant payments,26/02/2013,2106384-1,20000,2112846 - Cole & Co Solicitors,
Tendring DC,http://statistics.data.gov.uk/id/local-authority-district/22UN,Life Opportunities,"1580 - Benefits, Revenues and Customer Contact SU",4462 - Legal Fees incl. Bailiffs re debt recovery,05/02/2013,2105584-1,334.85,2100381 - Collect Services Ltd,VAT on fees Collected NNDR
Tendring DC,http://statistics.data.gov.uk/id/local-authority-district/22UN,Life Opportunities,"1580 - Benefits, Revenues and Customer Contact SU",4462 - Legal Fees incl. Bailiffs re debt recovery,05/02/2013,2105584-2,-334.85,2100381 - Collect Services Ltd,VAT on fees Collected NNDR
Tendring DC,http://statistics.data.gov.uk/id/local-authority-district/22UN,Life Opportunities,"1580 - Benefits, Revenues and Customer Contact SU",4462 - Legal Fees incl. Bailiffs re debt recovery,05/02/2013,2105585-1,2462.11,2100381 - Collect Services Ltd,VAT on fees collected CT
Tendring DC,http://statistics.data.gov.uk/id/local-authority-district/22UN,Life Opportunities,"1580 - Benefits, Revenues and Customer Contact SU",4462 - Legal Fees incl. Bailiffs re debt recovery,05/02/2013,2105585-2,-2462.11,2100381 - Collect Services Ltd,VAT on fees collected CT
Tendring DC,http://statistics.data.gov.uk/id/local-authority-district/22UN,Life Opportunities,"1580 - Benefits, Revenues and Customer Contact SU",4462 - Legal Fees incl. Bailiffs re debt recovery,05/02/2013,2105585-3,37.02,2100381 - Collect Services Ltd,VAT on fees collected CT
Tendring DC,http://statistics.data.gov.uk/id/local-authority-district/22UN,Life Opportunities,"1580 - Benefits, Revenues and Customer Contact SU",4462 - Legal Fees incl. Bailiffs re debt recovery,05/02/2013,2105585-4,-37.02,2100381 - Collect Services Ltd,VAT on fees collected CT
Tendring DC,http://statistics.data.gov.uk/id/local-authority-district/22UN,Life Opportunities,"1580 - Benefits, Revenues and Customer Contact SU",4462 - Legal Fees incl. Bailiffs re debt recovery,05/02/2013,2105585-5,10,2100381 - Collect Services Ltd,VAT on fees collected CT
Tendring DC,http://statistics.data.gov.uk/id/local-authority-district/22UN,Life Opportunities,"1580 - Benefits, Revenues and Customer Contact SU",4462 - Legal Fees incl. Bailiffs re debt recovery,05/02/2013,2105585-6,-10,2100381 - Collect Services Ltd,VAT on fees collected CT
Tendring DC,http://statistics.data.gov.uk/id/local-authority-district/22UN,Life Opportunities,"1580 - Benefits, Revenues and Customer Contact SU",4462 - Legal Fees incl. Bailiffs re debt recovery,05/02/2013,2105599-1,135.7,2100381 - Collect Services Ltd,VAT on fees collected NNDR
Tendring DC,http://statistics.data.gov.uk/id/local-authority-district/22UN,Life Opportunities,"1580 - Benefits, Revenues and Customer Contact SU",4462 - Legal Fees incl. Bailiffs re debt recovery,05/02/2013,2105599-2,-135.7,2100381 - Collect Services Ltd,VAT on fees collected NNDR
Tendring DC,http://statistics.data.gov.uk/id/local-authority-district/22UN,Life Opportunities,"1580 - Benefits, Revenues and Customer Contact SU",4462 - Legal Fees incl. Bailiffs re debt recovery,05/02/2013,2105600-1,3013.02,2100381 - Collect Services Ltd,VAT on fees collected CT
Tendring DC,http://statistics.data.gov.uk/id/local-authority-district/22UN,Life Opportunities,"1580 - Benefits, Revenues and Customer Contact SU",4462 - Legal Fees incl. Bailiffs re debt recovery,05/02/2013,2105600-2,-3013.02,2100381 - Collect Services Ltd,VAT on fees collected CT
Tendring DC,http://statistics.data.gov.uk/id/local-authority-district/22UN,Life Opportunities,"1580 - Benefits, Revenues and Customer Contact SU",4462 - Legal Fees incl. Bailiffs re debt recovery,05/02/2013,2105600-3,28.75,2100381 - Collect Services Ltd,VAT on fees collected CT
Tendring DC,http://statistics.data.gov.uk/id/local-authority-district/22UN,Life Opportunities,"1580 - Benefits, Revenues and Customer Contact SU",4462 - Legal Fees incl. Bailiffs re debt recovery,05/02/2013,2105600-4,-28.75,2100381 - Collect Services Ltd,VAT on fees collected CT
Tendring DC,http://statistics.data.gov.uk/id/local-authority-district/22UN,Life Opportunities,"1580 - Benefits, Revenues and Customer Contact SU",4462 - Legal Fees incl. Bailiffs re debt recovery,05/02/2013,2105600-5,31.25,2100381 - Collect Services Ltd,VAT on fees collected CT
Tendring DC,http://statistics.data.gov.uk/id/local-authority-district/22UN,Life Opportunities,"1580 - Benefits, Revenues and Customer Contact SU",4462 - Legal Fees incl. Bailiffs re debt recovery,05/02/2013,2105600-6,-31.25,2100381 - Collect Services Ltd,VAT on fees collected CT
Tendring DC,http://statistics.data.gov.uk/id/local-authority-district/22UN,Life Opportunities,"1580 - Benefits, Revenues and Customer Contact SU",5189 - External Debt Recovery Commission,12/02/2013,2105710-1,294.57,2100381 - Collect Services Ltd,Collect Services Ltd
Tendring DC,http://statistics.data.gov.uk/id/local-authority-district/22UN,Life Opportunities,"1580 - Benefits, Revenues and Customer Contact SU",4462 - Legal Fees incl. Bailiffs re debt recovery,26/02/2013,2106436-1,26.85,REDACTED PERSONAL DATA,REDACTED PERSONAL DATA
Tendring DC,http://statistics.data.gov.uk/id/local-authority-district/22UN,Life Opportunities,"1580 - Benefits, Revenues and Customer Contact SU",4462 - Legal Fees incl. Bailiffs re debt recovery,26/02/2013,2106436-2,-26.85,REDACTED PERSONAL DATA,REDACTED PERSONAL DATA
Tendring DC,http://statistics.data.gov.uk/id/local-authority-district/22UN,Life Opportunities,"1580 - Benefits, Revenues and Customer Contact SU",4462 - Legal Fees incl. Bailiffs re debt recovery,26/02/2013,2106437-1,3614.13,REDACTED PERSONAL DATA,REDACTED PERSONAL DATA
Tendring DC,http://statistics.data.gov.uk/id/local-authority-district/22UN,Life Opportunities,"1580 - Benefits, Revenues and Customer Contact SU",4462 - Legal Fees incl. Bailiffs re debt recovery,26/02/2013,2106437-2,-3614.13,REDACTED PERSONAL DATA,REDACTED PERSONAL DATA
Tendring DC,http://statistics.data.gov.uk/id/local-authority-district/22UN,Life Opportunities,"1580 - Benefits, Revenues and Customer Contact SU",4462 - Legal Fees incl. Bailiffs re debt recovery,26/02/2013,2106437-3,11.74,REDACTED PERSONAL DATA,REDACTED PERSONAL DATA
Tendring DC,http://statistics.data.gov.uk/id/local-authority-district/22UN,Life Opportunities,"1580 - Benefits, Revenues and Customer Contact SU",4462 - Legal Fees incl. Bailiffs re debt recovery,26/02/2013,2106437-4,-11.74,REDACTED PERSONAL DATA,REDACTED PERSONAL DATA
Tendring DC,http://statistics.data.gov.uk/id/local-authority-district/22UN,Life Opportunities,"1580 - Benefits, Revenues and Customer Contact SU",4462 - Legal Fees incl. Bailiffs re debt recovery,26/02/2013,2106437-5,30.14,REDACTED PERSONAL DATA,REDACTED PERSONAL DATA
Tendring DC,http://statistics.data.gov.uk/id/local-authority-district/22UN,Life Opportunities,"1580 - Benefits, Revenues and Customer Contact SU",4462 - Legal Fees incl. Bailiffs re debt recovery,26/02/2013,2106437-6,-30.14,REDACTED PERSONAL DATA,REDACTED PERSONAL DATA
Tendring DC,http://statistics.data.gov.uk/id/local-authority-district/22UN,Life Opportunities,"1580 - Benefits, Revenues and Customer Contact SU",4462 - Legal Fees incl. Bailiffs re debt recovery,20/02/2013,7008927-1,3296.11,2100381 - Collect Services Ltd,
Tendring DC,http://statistics.data.gov.uk/id/local-authority-district/22UN,Life Opportunities,"1580 - Benefits, Revenues and Customer Contact SU",4462 - Legal Fees incl. Bailiffs re debt recovery,20/02/2013,7008927-2,-3296.11,2100381 - Collect Services Ltd,
Tendring DC,http://statistics.data.gov.uk/id/local-authority-district/22UN,Life Opportunities,"1580 - Benefits, Revenues and Customer Contact SU",4462 - Legal Fees incl. Bailiffs re debt recovery,20/02/2013,7008927-3,192.5,2100381 - Collect Services Ltd,
Tendring DC,http://statistics.data.gov.uk/id/local-authority-district/22UN,Life Opportunities,"1580 - Benefits, Revenues and Customer Contact SU",4462 - Legal Fees incl. Bailiffs re debt recovery,20/02/2013,7008927-4,-192.5,2100381 - Collect Services Ltd,
Tendring DC,http://statistics.data.gov.uk/id/local-authority-district/22UN,Life Opportunities,"1580 - Benefits, Revenues and Customer Contact SU",4462 - Legal Fees incl. Bailiffs re debt recovery,20/02/2013,7008927-5,43,2100381 - Collect Services Ltd,
Tendring DC,http://statistics.data.gov.uk/id/local-authority-district/22UN,Life Opportunities,"1580 - Benefits, Revenues and Customer Contact SU",4462 - Legal Fees incl. Bailiffs re debt recovery,20/02/2013,7008927-6,-43,2100381 - Collect Services Ltd,
Tendring DC,http://statistics.data.gov.uk/id/local-authority-district/22UN,Life Opportunities,"1580 - Benefits, Revenues and Customer Contact SU",4462 - Legal Fees incl. Bailiffs re debt recovery,20/02/2013,7008928-1,599.35,2100381 - Collect Services Ltd,VAT ON FEES COLLECTED NNDR
Tendring DC,http://statistics.data.gov.uk/id/local-authority-district/22UN,Life Opportunities,"1580 - Benefits, Revenues and Customer Contact SU",4462 - Legal Fees incl. Bailiffs re debt recovery,20/02/2013,7008928-2,-599.35,2100381 - Collect Services Ltd,VAT ON FEES COLLECTED NNDR
Tendring DC,http://statistics.data.gov.uk/id/local-authority-district/22UN,Life Opportunities,"1580 - Benefits, Revenues and Customer Contact SU",4462 - Legal Fees incl. Bailiffs re debt recovery,26/02/2013,2106084-1,14,2105795 - Companies House,Feb-13
Tendring DC,http://statistics.data.gov.uk/id/local-authority-district/22UN,Life Opportunities,8520 - Frinton & Walton Swimming Pool,4400 - Maintenance Under Service Agreements,05/02/2013,2105615-1,474,2110353 - Contract Fire Security,
Tendring DC,http://statistics.data.gov.uk/id/local-authority-district/22UN,Life Opportunities,"1580 - Benefits, Revenues and Customer Contact SU",4462 - Legal Fees incl. Bailiffs re debt recovery,26/02/2013,2106375-1,1598,2100304 - CO-OP Bank,H M Courts & Three Top Up
Tendring DC,http://statistics.data.gov.uk/id/local-authority-district/22UN,Life Opportunities,"1580 - Benefits, Revenues and Customer Contact SU",4716 - Mobile Telephone Costs,26/02/2013,2106375-2,12.5,2100304 - CO-OP Bank,H M Courts & Three Top Up
Tendring DC,http://statistics.data.gov.uk/id/local-authority-district/22UN,Life Opportunities,5260 - HRA - Rent Collection And Accounting,4460 - Legal & Professional Expenses,26/02/2013,2106376-1,610,2100304 - CO-OP Bank,Credit Card Jan 13
Tendring DC,http://statistics.data.gov.uk/id/local-authority-district/22UN,Life Opportunities,6620 - Corporate Management - General,5190 - Bank Commission Charges,26/02/2013,2106376-2,2,2100304 - CO-OP Bank,Credit Card Jan 13
Tendring DC,http://statistics.data.gov.uk/id/local-authority-district/22UN,Life Opportunities,1240 - Housing Services Service Unit,1700 - Training - Courses,26/02/2013,2106376-3,530,2100304 - CO-OP Bank,Credit Card Jan 13
Tendring DC,http://statistics.data.gov.uk/id/local-authority-district/22UN,Life Opportunities,5820 - Harwich Sports Centre,2100 - Building Repairs,05/02/2013,2105602-1,66,2100314 - Cooper & Brome (Plumbing & Heating) Ltd,Water Heater Fault
Tendring DC,http://statistics.data.gov.uk/id/local-authority-district/22UN,Life Opportunities,H860 - Disabled Adaptations,C200 - Main Contractor,20/02/2013,2106100-1,5377.14,REDACTED PERSONAL DATA,REDACTED PERSONAL DATA
Tendring DC,http://statistics.data.gov.uk/id/local-authority-district/22UN,Life Opportunities,5480 - HRA - Repair & Maintenance,2077 - Gas Service Contract  Servicing/Testing (Large Sca,26/02/2013,2106555-1,1608.01,2100314 - Cooper & Brome (Plumbing & Heating) Ltd,Large Scale Boilers Contract 09/12
Tendring DC,http://statistics.data.gov.uk/id/local-authority-district/22UN,Life Opportunities,5480 - HRA - Repair & Maintenance,2078 - Gas Service Contract Other Refurbishment/Repairs (,26/02/2013,2106555-2,7223.85,2100314 - Cooper & Brome (Plumbing & Heating) Ltd,Large Scale Boilers Contract 09/12
Tendring DC,http://statistics.data.gov.uk/id/local-authority-district/22UN,Life Opportunities,H920 - DFGs,C400 - Grant payments,05/02/2013,7008862-1,4200.64,REDACTED PERSONAL DATA,REDACTED PERSONAL DATA
Tendring DC,http://statistics.data.gov.uk/id/local-authority-district/22UN,Life Opportunities,H920 - DFGs,C400 - Grant payments,05/02/2013,7008869-1,4739.73,REDACTED PERSONAL DATA,REDACTED PERSONAL DATA
Tendring DC,http://statistics.data.gov.uk/id/local-authority-district/22UN,Life Opportunities,5340 - HRA - Communal Central Heating,2308 - Energy Costs - Gas (Including LPG),20/02/2013,2106223-1,9671.69,2104620 - Corona Energy Retail 4 Limited,SHU Jan 13
Tendring DC,http://statistics.data.gov.uk/id/local-authority-district/22UN,Life Opportunities,5360 - HRA - Sheltered Units,2308 - Energy Costs - Gas (Including LPG),20/02/2013,2106223-2,108.65,2104620 - Corona Energy Retail 4 Limited,SHU Jan 13
Tendring DC,http://statistics.data.gov.uk/id/local-authority-district/22UN,Life Opportunities,8540 - Leisure Centre Clacton,2308 - Energy Costs - Gas (Including LPG),26/02/2013,2106541-1,3582.02,REDACTED PERSONAL DATA,REDACTED PERSONAL DATA
Tendring DC,http://statistics.data.gov.uk/id/local-authority-district/22UN,Life Opportunities,8510 - Dovercourt Swimming Pool & All Weather Facilities,2308 - Energy Costs - Gas (Including LPG),26/02/2013,7008966-1,3396.31,2104620 - Corona Energy Retail 4 Limited,DOVERCOURT POOL JAN
Tendring DC,http://statistics.data.gov.uk/id/local-authority-district/22UN,Life Opportunities,8520 - Frinton & Walton Swimming Pool,2308 - Energy Costs - Gas (Including LPG),26/02/2013,7008967-1,3532.69,2104620 - Corona Energy Retail 4 Limited,FRINTON POOL JAN
Tendring DC,http://statistics.data.gov.uk/id/local-authority-district/22UN,Life Opportunities,5240 - HRA - Managing Tenancies,5242 - Tenant Relations,12/02/2013,2105945-1,2226,REDACTED COMMERCIAL CONFIDENTIALITY,REDACTED COMMERCIAL CONFIDENTIALITY
Tendring DC,http://statistics.data.gov.uk/id/local-authority-district/22UN,Life Opportunities,5240 - HRA - Managing Tenancies,5242 - Tenant Relations,12/02/2013,2105946-1,1221.6,REDACTED COMMERCIAL CONFIDENTIALITY,REDACTED COMMERCIAL CONFIDENTIALITY
Tendring DC,http://statistics.data.gov.uk/id/local-authority-district/22UN,Life Opportunities,6160 - Princes Theatre,9352 - Opportunity Bookings,12/02/2013,2105802-1,41.25,REDACTED PERSONAL DATA,REDACTED PERSONAL DATA
Tendring DC,http://statistics.data.gov.uk/id/local-authority-district/22UN,Life Opportunities,6160 - Princes Theatre,4220 - Laundry,12/02/2013,2105880-1,9.12,2100397 - Danes of Colchester Ltd,Tablecloth Laundry
Tendring DC,http://statistics.data.gov.uk/id/local-authority-district/22UN,Life Opportunities,6160 - Princes Theatre,4220 - Laundry,12/02/2013,2105880-2,0.12,2100397 - Danes of Colchester Ltd,Tablecloth Laundry
Tendring DC,http://statistics.data.gov.uk/id/local-authority-district/22UN,Life Opportunities,6160 - Princes Theatre,4220 - Laundry,12/02/2013,2105881-1,7.8,2100397 - Danes of Colchester Ltd,Theatre Laundry
Tendring DC,http://statistics.data.gov.uk/id/local-authority-district/22UN,Life Opportunities,6160 - Princes Theatre,4220 - Laundry,12/02/2013,2105881-2,0.12,2100397 - Danes of Colchester Ltd,Theatre Laundry
Tendring DC,http://statistics.data.gov.uk/id/local-authority-district/22UN,Life Opportunities,6160 - Princes Theatre,2100 - Building Repairs,26/02/2013,7008988-1,51,2108384 - DC Drains & Plumbing Services,REPAIR DISHWASHER
Tendring DC,http://statistics.data.gov.uk/id/local-authority-district/22UN,Life Opportunities,8510 - Dovercourt Swimming Pool & All Weather Facilities,2100 - Building Repairs,05/02/2013,2105621-1,65,2100359 - Derek Taylor Engineering,Dovercourt Pool
Tendring DC,http://statistics.data.gov.uk/id/local-authority-district/22UN,Life Opportunities,8510 - Dovercourt Swimming Pool & All Weather Facilities,2100 - Building Repairs,20/02/2013,7008918-1,420,2100359 - Derek Taylor Engineering,DOVERCOURT
Tendring DC,http://statistics.data.gov.uk/id/local-authority-district/22UN,Life Opportunities,8540 - Leisure Centre Clacton,5160 - Advertising,12/02/2013,2105904-1,155,2103510 - Direct Solutions,
Tendring DC,http://statistics.data.gov.uk/id/local-authority-district/22UN,Life Opportunities,5480 - HRA - Repair & Maintenance,2067 - Other Minor Equipment  Servicing (Hoists Etc),05/02/2013,2105522-1,286,REDACTED PERSONAL DATA,REDACTED PERSONAL DATA
Tendring DC,http://statistics.data.gov.uk/id/local-authority-district/22UN,Life Opportunities,8540 - Leisure Centre Clacton,4597 - Hired Services - Payments to Contractors,20/02/2013,2106164-1,25,2100422 - DTA Consultants Analytical Chemists,
Tendring DC,http://statistics.data.gov.uk/id/local-authority-district/22UN,Life Opportunities,H820 - Asbestos Management,C200 - Main Contractor,20/02/2013,2106271-1,760,REDACTED PERSONAL DATA,REDACTED PERSONAL DATA
Tendring DC,http://statistics.data.gov.uk/id/local-authority-district/22UN,Life Opportunities,8540 - Leisure Centre Clacton,9275 - Lifestyles Plus - DD,26/02/2013,2106402-1,12,REDACTED PERSONAL DATA,REDACTED PERSONAL DATA
Tendring DC,http://statistics.data.gov.uk/id/local-authority-district/22UN,Life Opportunities,5480 - HRA - Repair & Maintenance,2088 - Disabled Adaptations,26/02/2013,2106387-1,165,2110229 - East Coast Electrical Contractors Ltd,87 Groom Park
Tendring DC,http://statistics.data.gov.uk/id/local-authority-district/22UN,Life Opportunities,8510 - Dovercourt Swimming Pool & All Weather Facilities,4081 - Chemicals,20/02/2013,7008879-1,300.5,2100433 - East Essex Pool Care,DOVERCOURT POOL
Tendring DC,http://statistics.data.gov.uk/id/local-authority-district/22UN,Life Opportunities,8510 - Dovercourt Swimming Pool & All Weather Facilities,4081 - Chemicals,20/02/2013,7008880-1,583.2,2100433 - East Essex Pool Care,DOVERCOURT POOL
Tendring DC,http://statistics.data.gov.uk/id/local-authority-district/22UN,Life Opportunities,8510 - Dovercourt Swimming Pool & All Weather Facilities,4081 - Chemicals,20/02/2013,7008881-1,609.45,2100433 - East Essex Pool Care,DOVERCOURT POOL
Tendring DC,http://statistics.data.gov.uk/id/local-authority-district/22UN,Life Opportunities,8530 - Brightlingsea Swimming Pool,2100 - Building Repairs,20/02/2013,7008882-1,290.2,2100433 - East Essex Pool Care,
Tendring DC,http://statistics.data.gov.uk/id/local-authority-district/22UN,Life Opportunities,8530 - Brightlingsea Swimming Pool,2100 - Building Repairs,20/02/2013,7008883-1,359.8,2100433 - East Essex Pool Care,
Tendring DC,http://statistics.data.gov.uk/id/local-authority-district/22UN,Life Opportunities,8530 - Brightlingsea Swimming Pool,2100 - Building Repairs,20/02/2013,7008884-1,90,2100433 - East Essex Pool Care,
Tendring DC,http://statistics.data.gov.uk/id/local-authority-district/22UN,Life Opportunities,8540 - Leisure Centre Clacton,2100 - Building Repairs,20/02/2013,7008885-1,190,2100433 - East Essex Pool Care,
Tendring DC,http://statistics.data.gov.uk/id/local-authority-district/22UN,Life Opportunities,8540 - Leisure Centre Clacton,2100 - Building Repairs,20/02/2013,7008886-1,90,2100433 - East Essex Pool Care,
Tendring DC,http://statistics.data.gov.uk/id/local-authority-district/22UN,Life Opportunities,8540 - Leisure Centre Clacton,2100 - Building Repairs,20/02/2013,7008887-1,3166.77,2100433 - East Essex Pool Care,
Tendring DC,http://statistics.data.gov.uk/id/local-authority-district/22UN,Life Opportunities,8540 - Leisure Centre Clacton,2100 - Building Repairs,20/02/2013,7008888-1,725,2100433 - East Essex Pool Care,
Tendring DC,http://statistics.data.gov.uk/id/local-authority-district/22UN,Life Opportunities,8540 - Leisure Centre Clacton,4081 - Chemicals,20/02/2013,7008889-1,101.9,2100433 - East Essex Pool Care,
Tendring DC,http://statistics.data.gov.uk/id/local-authority-district/22UN,Life Opportunities,8540 - Leisure Centre Clacton,4081 - Chemicals,20/02/2013,7008890-1,302.8,2100433 - East Essex Pool Care,
Tendring DC,http://statistics.data.gov.uk/id/local-authority-district/22UN,Life Opportunities,8540 - Leisure Centre Clacton,4081 - Chemicals,20/02/2013,7008891-1,530,2100433 - East Essex Pool Care,
Tendring DC,http://statistics.data.gov.uk/id/local-authority-district/22UN,Life Opportunities,7560 - Tourism Publications,4668 - Production Expenses,12/02/2013,2105876-1,50,2100404 - Easy Tigernet,Website Updates
Tendring DC,http://statistics.data.gov.uk/id/local-authority-district/22UN,Life Opportunities,8510 - Dovercourt Swimming Pool & All Weather Facilities,2304 - Energy Costs - Electricity,20/02/2013,7008906-1,2950.58,2105146 - EDF Energy 1 Ltd,DOVERCOURT POOL
Tendring DC,http://statistics.data.gov.uk/id/local-authority-district/22UN,Life Opportunities,8540 - Leisure Centre Clacton,2304 - Energy Costs - Electricity,20/02/2013,7008935-1,6613.2,2105146 - EDF Energy 1 Ltd,JANUARY
Tendring DC,http://statistics.data.gov.uk/id/local-authority-district/22UN,Life Opportunities,6460 - Career Track,4688 - Career Track Exam Fees,20/02/2013,2106242-1,14.5,REDACTED PERSONAL DATA,REDACTED PERSONAL DATA
Tendring DC,http://statistics.data.gov.uk/id/local-authority-district/22UN,Life Opportunities,"1580 - Benefits, Revenues and Customer Contact SU",4753 - Computer - Application Software,05/02/2013,2105578-1,4000,2112852 - EntitledTo Ltd,EntitledTo Subscription 31/3/14
Tendring DC,http://statistics.data.gov.uk/id/local-authority-district/22UN,Life Opportunities,5480 - HRA - Repair & Maintenance,2304 - Energy Costs - Electricity,05/02/2013,2105463-1,9.8,REDACTED PERSONAL DATA,REDACTED PERSONAL DATA
Tendring DC,http://statistics.data.gov.uk/id/local-authority-district/22UN,Life Opportunities,5360 - HRA - Sheltered Units,2304 - Energy Costs - Electricity,20/02/2013,2106269-1,12.16,REDACTED PERSONAL DATA,REDACTED PERSONAL DATA
Tendring DC,http://statistics.data.gov.uk/id/local-authority-district/22UN,Life Opportunities,5480 - HRA - Repair & Maintenance,2304 - Energy Costs - Electricity,26/02/2013,2106551-1,17.76,REDACTED COMMERCIAL CONFIDENTIALITY,REDACTED COMMERCIAL CONFIDENTIALITY
Tendring DC,http://statistics.data.gov.uk/id/local-authority-district/22UN,Life Opportunities,8540 - Leisure Centre Clacton,4000 - Furniture,26/02/2013,7008969-1,22,2103491 - Escape Fitness Ltd,
Tendring DC,http://statistics.data.gov.uk/id/local-authority-district/22UN,Life Opportunities,5480 - HRA - Repair & Maintenance,2017 - Mechanical Equipment /Extract Fans,20/02/2013,2106241-1,85,2100489 - Essex Industrial Doors Ltd,Walton Pumping Station
Tendring DC,http://statistics.data.gov.uk/id/local-authority-district/22UN,Life Opportunities,8540 - Leisure Centre Clacton,4400 - Maintenance Under Service Agreements,20/02/2013,7008934-1,272,2111548 - Essex Lift Services Ltd,
Tendring DC,http://statistics.data.gov.uk/id/local-authority-district/22UN,Life Opportunities,5480 - HRA - Repair & Maintenance,2059 - Fire Fighting Equipment Servicing,05/02/2013,2105457-1,103.14,REDACTED COMMERCIAL CONFIDENTIALITY,REDACTED COMMERCIAL CONFIDENTIALITY
Tendring DC,http://statistics.data.gov.uk/id/local-authority-district/22UN,Life Opportunities,6160 - Princes Theatre,4400 - Maintenance Under Service Agreements,05/02/2013,2105464-1,178.89,2100531 - Euro-Fire Ltd,Fire Equipment Service
Tendring DC,http://statistics.data.gov.uk/id/local-authority-district/22UN,Life Opportunities,5480 - HRA - Repair & Maintenance,2059 - Fire Fighting Equipment Servicing,05/02/2013,2105528-1,225.69,REDACTED PERSONAL DATA,REDACTED PERSONAL DATA
Tendring DC,http://statistics.data.gov.uk/id/local-authority-district/22UN,Life Opportunities,8540 - Leisure Centre Clacton,4400 - Maintenance Under Service Agreements,12/02/2013,2105902-1,274.95,2100531 - Euro-Fire Ltd,
Tendring DC,http://statistics.data.gov.uk/id/local-authority-district/22UN,Life Opportunities,7520 - Tourism Publicity Marketing Promotion,5160 - Advertising,05/02/2013,2105461-1,200,2109598 - Expo Management,Coach Monthly
Tendring DC,http://statistics.data.gov.uk/id/local-authority-district/22UN,Life Opportunities,7520 - Tourism Publicity Marketing Promotion,5160 - Advertising,20/02/2013,2106268-1,350,REDACTED PERSONAL DATA,REDACTED PERSONAL DATA
Tendring DC,http://statistics.data.gov.uk/id/local-authority-district/22UN,Life Opportunities,7520 - Tourism Publicity Marketing Promotion,5160 - Advertising,26/02/2013,7008987-1,200,2109598 - Expo Management,COACH MONTHLY
Tendring DC,http://statistics.data.gov.uk/id/local-authority-district/22UN,Life Opportunities,5480 - HRA - Repair & Maintenance,2058 - Fire Alarms Repairs,12/02/2013,2105956-1,170,REDACTED PERSONAL DATA,REDACTED PERSONAL DATA
Tendring DC,http://statistics.data.gov.uk/id/local-authority-district/22UN,Life Opportunities,5480 - HRA - Repair & Maintenance,2058 - Fire Alarms Repairs,12/02/2013,2105957-1,185,REDACTED PERSONAL DATA,REDACTED PERSONAL DATA
Tendring DC,http://statistics.data.gov.uk/id/local-authority-district/22UN,Life Opportunities,5480 - HRA - Repair & Maintenance,2057 - Fire Alarms Servicing,26/02/2013,2106394-1,160,REDACTED PERSONAL DATA,REDACTED PERSONAL DATA
Tendring DC,http://statistics.data.gov.uk/id/local-authority-district/22UN,Life Opportunities,7600 - Tourist Information Centres,9356 - Commission Sales,12/02/2013,2105801-1,2437.2,REDACTED PERSONAL DATA,REDACTED PERSONAL DATA
Tendring DC,http://statistics.data.gov.uk/id/local-authority-district/22UN,Life Opportunities,5140 - Homelessness,4683 - Other Homelessness Expenses,20/02/2013,2106201-1,600,REDACTED PERSONAL DATA,REDACTED PERSONAL DATA
Tendring DC,http://statistics.data.gov.uk/id/local-authority-district/22UN,Life Opportunities,"1580 - Benefits, Revenues and Customer Contact SU",4635 - Cash Collection Contract,20/02/2013,1050808-1,-44.64,2101233 - G4S Cash Services (UK) Limited,MISSED COLLECTIONS
Tendring DC,http://statistics.data.gov.uk/id/local-authority-district/22UN,Life Opportunities,"1580 - Benefits, Revenues and Customer Contact SU",4635 - Cash Collection Contract,20/02/2013,2106348-1,470.49,2101233 - G4S Cash Services (UK) Limited,G4S March 13
Tendring DC,http://statistics.data.gov.uk/id/local-authority-district/22UN,Life Opportunities,5860 - Manningtree Sports Centre,4635 - Cash Collection Contract,20/02/2013,2106348-10,69.57,2101233 - G4S Cash Services (UK) Limited,G4S March 13
Tendring DC,http://statistics.data.gov.uk/id/local-authority-district/22UN,Life Opportunities,5820 - Harwich Sports Centre,4635 - Cash Collection Contract,20/02/2013,2106348-11,69.57,2101233 - G4S Cash Services (UK) Limited,G4S March 13
Tendring DC,http://statistics.data.gov.uk/id/local-authority-district/22UN,Life Opportunities,5260 - HRA - Rent Collection And Accounting,4635 - Cash Collection Contract,20/02/2013,2106348-2,119.64,2101233 - G4S Cash Services (UK) Limited,G4S March 13
Tendring DC,http://statistics.data.gov.uk/id/local-authority-district/22UN,Life Opportunities,5260 - HRA - Rent Collection And Accounting,4635 - Cash Collection Contract,20/02/2013,2106348-3,19.58,2101233 - G4S Cash Services (UK) Limited,G4S March 13
Tendring DC,http://statistics.data.gov.uk/id/local-authority-district/22UN,Life Opportunities,1560 - Cashiers Service Unit,4635 - Cash Collection Contract,20/02/2013,2106348-4,29.11,2101233 - G4S Cash Services (UK) Limited,G4S March 13
Tendring DC,http://statistics.data.gov.uk/id/local-authority-district/22UN,Life Opportunities,8025 - Car Parks - Off St,4635 - Cash Collection Contract,20/02/2013,2106348-5,68.11,2101233 - G4S Cash Services (UK) Limited,G4S March 13
Tendring DC,http://statistics.data.gov.uk/id/local-authority-district/22UN,Life Opportunities,8540 - Leisure Centre Clacton,4635 - Cash Collection Contract,20/02/2013,2106348-6,208.7,2101233 - G4S Cash Services (UK) Limited,G4S March 13
Tendring DC,http://statistics.data.gov.uk/id/local-authority-district/22UN,Life Opportunities,8510 - Dovercourt Swimming Pool & All Weather Facilities,4635 - Cash Collection Contract,20/02/2013,2106348-7,139.13,2101233 - G4S Cash Services (UK) Limited,G4S March 13
Tendring DC,http://statistics.data.gov.uk/id/local-authority-district/22UN,Life Opportunities,5800 - Brightlingsea Sports Centre,4635 - Cash Collection Contract,20/02/2013,2106348-8,69.57,2101233 - G4S Cash Services (UK) Limited,G4S March 13
Tendring DC,http://statistics.data.gov.uk/id/local-authority-district/22UN,Life Opportunities,8520 - Frinton & Walton Swimming Pool,4635 - Cash Collection Contract,20/02/2013,2106348-9,139.13,2101233 - G4S Cash Services (UK) Limited,G4S March 13
Tendring DC,http://statistics.data.gov.uk/id/local-authority-district/22UN,Life Opportunities,H920 - DFGs,C400 - Grant payments,05/02/2013,2105632-1,7674.8,REDACTED PERSONAL DATA,REDACTED PERSONAL DATA
Tendring DC,http://statistics.data.gov.uk/id/local-authority-district/22UN,Life Opportunities,H920 - DFGs,C400 - Grant payments,26/02/2013,2106416-1,4879,REDACTED PERSONAL DATA,REDACTED PERSONAL DATA
Tendring DC,http://statistics.data.gov.uk/id/local-authority-district/22UN,Life Opportunities,H920 - DFGs,C400 - Grant payments,05/02/2013,7008861-1,15000,REDACTED PERSONAL DATA,REDACTED PERSONAL DATA
Tendring DC,http://statistics.data.gov.uk/id/local-authority-district/22UN,Life Opportunities,H920 - DFGs,C400 - Grant payments,05/02/2013,7008863-1,7867.59,REDACTED PERSONAL DATA,REDACTED PERSONAL DATA
Tendring DC,http://statistics.data.gov.uk/id/local-authority-district/22UN,Life Opportunities,7000 - CCTV,4400 - Maintenance Under Service Agreements,05/02/2013,2105424-1,50,2100546 - GCS Alarms,Dovercourt Cam 2
Tendring DC,http://statistics.data.gov.uk/id/local-authority-district/22UN,Life Opportunities,7000 - CCTV,4400 - Maintenance Under Service Agreements,05/02/2013,2105425-1,50,2100546 - GCS Alarms,All Frinton Cameras - Jan
Tendring DC,http://statistics.data.gov.uk/id/local-authority-district/22UN,Life Opportunities,8025 - Car Parks - Off St,4040 - Equipment & Tools,05/02/2013,2105426-1,50,2100546 - GCS Alarms,Welleslet Road Car Park
Tendring DC,http://statistics.data.gov.uk/id/local-authority-district/22UN,Life Opportunities,7000 - CCTV,4400 - Maintenance Under Service Agreements,05/02/2013,2105427-1,50,2100546 - GCS Alarms,North Roac Cam 30
Tendring DC,http://statistics.data.gov.uk/id/local-authority-district/22UN,Life Opportunities,7000 - CCTV,4400 - Maintenance Under Service Agreements,05/02/2013,2105428-1,68,2100546 - GCS Alarms,Sweet Tinas & Tamerisk Way Power
Tendring DC,http://statistics.data.gov.uk/id/local-authority-district/22UN,Life Opportunities,8540 - Leisure Centre Clacton,2100 - Building Repairs,05/02/2013,2105536-1,90.5,REDACTED PERSONAL DATA,REDACTED PERSONAL DATA
Tendring DC,http://statistics.data.gov.uk/id/local-authority-district/22UN,Life Opportunities,8540 - Leisure Centre Clacton,2100 - Building Repairs,12/02/2013,2105901-1,113.5,2100546 - GCS Alarms,
Tendring DC,http://statistics.data.gov.uk/id/local-authority-district/22UN,Life Opportunities,8540 - Leisure Centre Clacton,2100 - Building Repairs,12/02/2013,2105909-1,198.25,2100546 - GCS Alarms,
Tendring DC,http://statistics.data.gov.uk/id/local-authority-district/22UN,Life Opportunities,8540 - Leisure Centre Clacton,2100 - Building Repairs,20/02/2013,2106156-1,102.5,2100546 - GCS Alarms,
Tendring DC,http://statistics.data.gov.uk/id/local-authority-district/22UN,Life Opportunities,5860 - Manningtree Sports Centre,4400 - Maintenance Under Service Agreements,20/02/2013,2106256-1,290,REDACTED PERSONAL DATA,REDACTED PERSONAL DATA
Tendring DC,http://statistics.data.gov.uk/id/local-authority-district/22UN,Life Opportunities,8520 - Frinton & Walton Swimming Pool,4400 - Maintenance Under Service Agreements,20/02/2013,7008917-1,80,2100546 - GCS Alarms,FRINTON WALTON POOL
Tendring DC,http://statistics.data.gov.uk/id/local-authority-district/22UN,Life Opportunities,8540 - Leisure Centre Clacton,2100 - Building Repairs,20/02/2013,7008933-1,135,2100546 - GCS Alarms,
Tendring DC,http://statistics.data.gov.uk/id/local-authority-district/22UN,Life Opportunities,7000 - CCTV,4400 - Maintenance Under Service Agreements,26/02/2013,7009016-1,565,2100546 - GCS Alarms,FRINTON ADPRO
Tendring DC,http://statistics.data.gov.uk/id/local-authority-district/22UN,Life Opportunities,H810 - Electrical Re-wiring,C200 - Main Contractor,12/02/2013,2105952-1,345,REDACTED PERSONAL DATA,REDACTED PERSONAL DATA
Tendring DC,http://statistics.data.gov.uk/id/local-authority-district/22UN,Life Opportunities,5140 - Homelessness,4683 - Other Homelessness Expenses,20/02/2013,2106198-1,575,REDACTED PERSONAL DATA,REDACTED PERSONAL DATA
Tendring DC,http://statistics.data.gov.uk/id/local-authority-district/22UN,Life Opportunities,6160 - Princes Theatre,4105 - Bar/Catering Expenses,20/02/2013,2106222-1,420.97,2112641 - Greene King Brewing and Retailing Ltd,Bar Supplier
Tendring DC,http://statistics.data.gov.uk/id/local-authority-district/22UN,Life Opportunities,6160 - Princes Theatre,4105 - Bar/Catering Expenses,26/02/2013,2106399-1,210.19,REDACTED PERSONAL DATA,REDACTED PERSONAL DATA
Tendring DC,http://statistics.data.gov.uk/id/local-authority-district/22UN,Life Opportunities,5480 - HRA - Repair & Maintenance,2017 - Mechanical Equipment /Extract Fans,20/02/2013,2106228-1,60,REDACTED COMMERCIAL CONFIDENTIALITY,REDACTED COMMERCIAL CONFIDENTIALITY
Tendring DC,http://statistics.data.gov.uk/id/local-authority-district/22UN,Life Opportunities,5480 - HRA - Repair & Maintenance,2017 - Mechanical Equipment /Extract Fans,20/02/2013,2106280-1,80,REDACTED COMMERCIAL CONFIDENTIALITY,REDACTED COMMERCIAL CONFIDENTIALITY
Tendring DC,http://statistics.data.gov.uk/id/local-authority-district/22UN,Life Opportunities,H860 - Disabled Adaptations,C200 - Main Contractor,26/02/2013,1050865-1,5630,REDACTED PERSONAL DATA,REDACTED PERSONAL DATA
Tendring DC,http://statistics.data.gov.uk/id/local-authority-district/22UN,Life Opportunities,5240 - HRA - Managing Tenancies,5242 - Tenant Relations,20/02/2013,2106275-1,44,REDACTED PERSONAL DATA,REDACTED PERSONAL DATA
Tendring DC,http://statistics.data.gov.uk/id/local-authority-district/22UN,Life Opportunities,"1580 - Benefits, Revenues and Customer Contact SU",4880 - Subscriptions Paid,12/02/2013,2105831-1,539,2108862 - Hbinfo Ltd,Subscription to 31/3/15
Tendring DC,http://statistics.data.gov.uk/id/local-authority-district/22UN,Life Opportunities,"1580 - Benefits, Revenues and Customer Contact SU",1700 - Training - Courses,20/02/2013,7008929-1,199,2108862 - Hbinfo Ltd,TRAINING COURSE 27/2/13
Tendring DC,http://statistics.data.gov.uk/id/local-authority-district/22UN,Life Opportunities,8540 - Leisure Centre Clacton,2100 - Building Repairs,20/02/2013,2106138-1,14.95,2100615 - Healey Tool Hire & Sales Limited,
Tendring DC,http://statistics.data.gov.uk/id/local-authority-district/22UN,Life Opportunities,8510 - Dovercourt Swimming Pool & All Weather Facilities,4597 - Hired Services - Payments to Contractors,05/02/2013,2105616-1,26,2103448 - Health Protection Agency,Tendring DC
Tendring DC,http://statistics.data.gov.uk/id/local-authority-district/22UN,Life Opportunities,8520 - Frinton & Walton Swimming Pool,4597 - Hired Services - Payments to Contractors,05/02/2013,2105616-2,26,2103448 - Health Protection Agency,Tendring DC
Tendring DC,http://statistics.data.gov.uk/id/local-authority-district/22UN,Life Opportunities,8540 - Leisure Centre Clacton,4597 - Hired Services - Payments to Contractors,05/02/2013,2105616-3,52,2103448 - Health Protection Agency,Tendring DC
Tendring DC,http://statistics.data.gov.uk/id/local-authority-district/22UN,Life Opportunities,5820 - Harwich Sports Centre,4597 - Hired Services - Payments to Contractors,20/02/2013,2106255-1,165.28,REDACTED PERSONAL DATA,REDACTED PERSONAL DATA
Tendring DC,http://statistics.data.gov.uk/id/local-authority-district/22UN,Life Opportunities,5820 - Harwich Sports Centre,4597 - Hired Services - Payments to Contractors,20/02/2013,2106255-2,9.75,REDACTED PERSONAL DATA,REDACTED PERSONAL DATA
Tendring DC,http://statistics.data.gov.uk/id/local-authority-district/22UN,Life Opportunities,8520 - Frinton & Walton Swimming Pool,2700 - Cleaning Materials,20/02/2013,7008903-1,108.98,2100685 - Heron Cleaning Machine Services,FRINTON POOL
Tendring DC,http://statistics.data.gov.uk/id/local-authority-district/22UN,Life Opportunities,8540 - Leisure Centre Clacton,5160 - Advertising,26/02/2013,2106377-1,52,2111275 - hibu (UK) Ltd,
Tendring DC,http://statistics.data.gov.uk/id/local-authority-district/22UN,Life Opportunities,"1580 - Benefits, Revenues and Customer Contact SU",4462 - Legal Fees incl. Bailiffs re debt recovery,26/02/2013,2106427-1,289.5,REDACTED PERSONAL DATA,REDACTED PERSONAL DATA
Tendring DC,http://statistics.data.gov.uk/id/local-authority-district/22UN,Life Opportunities,5240 - HRA - Managing Tenancies,5249 - Housing ASB Expenses,12/02/2013,2105778-1,110,2100661 - HMCTS,
Tendring DC,http://statistics.data.gov.uk/id/local-authority-district/22UN,Life Opportunities,5240 - HRA - Managing Tenancies,5249 - Housing ASB Expenses,12/02/2013,2105779-1,175,2100661 - HMCTS,
Tendring DC,http://statistics.data.gov.uk/id/local-authority-district/22UN,Life Opportunities,5240 - HRA - Managing Tenancies,5249 - Housing ASB Expenses,12/02/2013,2105780-1,110,2100661 - HMCTS,
Tendring DC,http://statistics.data.gov.uk/id/local-authority-district/22UN,Life Opportunities,5240 - HRA - Managing Tenancies,5249 - Housing ASB Expenses,12/02/2013,2105781-1,175,2100661 - HMCTS,
Tendring DC,http://statistics.data.gov.uk/id/local-authority-district/22UN,Life Opportunities,8510 - Dovercourt Swimming Pool & All Weather Facilities,2100 - Building Repairs,05/02/2013,2105618-1,248,2111080 - Homecraft Contracts Electrical Ltd,Dovercourt Pool
Tendring DC,http://statistics.data.gov.uk/id/local-authority-district/22UN,Life Opportunities,8520 - Frinton & Walton Swimming Pool,2100 - Building Repairs,20/02/2013,2106097-1,271,REDACTED PERSONAL DATA,REDACTED PERSONAL DATA
Tendring DC,http://statistics.data.gov.uk/id/local-authority-district/22UN,Life Opportunities,5820 - Harwich Sports Centre,2100 - Building Repairs,05/02/2013,2105539-1,55,REDACTED PERSONAL DATA,REDACTED PERSONAL DATA
Tendring DC,http://statistics.data.gov.uk/id/local-authority-district/22UN,Life Opportunities,8510 - Dovercourt Swimming Pool & All Weather Facilities,2100 - Building Repairs,05/02/2013,2105619-1,407,2101848 - Homecraft Contracts Ltd,Dovercourt
Tendring DC,http://statistics.data.gov.uk/id/local-authority-district/22UN,Life Opportunities,H920 - DFGs,C400 - Grant payments,05/02/2013,2105630-1,7758,REDACTED PERSONAL DATA,REDACTED PERSONAL DATA
Tendring DC,http://statistics.data.gov.uk/id/local-authority-district/22UN,Life Opportunities,8520 - Frinton & Walton Swimming Pool,2100 - Building Repairs,20/02/2013,2106098-1,401,2101848 - Homecraft Contracts Ltd,Frinton & Walton Pool
Tendring DC,http://statistics.data.gov.uk/id/local-authority-district/22UN,Life Opportunities,H920 - DFGs,C400 - Grant payments,05/02/2013,7008865-1,8817.25,REDACTED PERSONAL DATA,REDACTED PERSONAL DATA
Tendring DC,http://statistics.data.gov.uk/id/local-authority-district/22UN,Life Opportunities,H920 - DFGs,C400 - Grant payments,05/02/2013,7008871-1,2250,REDACTED PERSONAL DATA,REDACTED PERSONAL DATA
Tendring DC,http://statistics.data.gov.uk/id/local-authority-district/22UN,Life Opportunities,8510 - Dovercourt Swimming Pool & All Weather Facilities,2100 - Building Repairs,26/02/2013,2106442-1,56.94,REDACTED PERSONAL DATA,REDACTED PERSONAL DATA
Tendring DC,http://statistics.data.gov.uk/id/local-authority-district/22UN,Life Opportunities,1650 - Building Services Service Unit,4300 - Printing & Stationery,20/02/2013,2106274-1,110,REDACTED COMMERCIAL CONFIDENTIALITY,REDACTED COMMERCIAL CONFIDENTIALITY
Tendring DC,http://statistics.data.gov.uk/id/local-authority-district/22UN,Life Opportunities,5480 - HRA - Repair & Maintenance,2014 - Decoration Allowances,20/02/2013,2106227-1,219.98,2109778 - ICI Contract Direct,DDC Voucher Scheme Jan 13
Tendring DC,http://statistics.data.gov.uk/id/local-authority-district/22UN,Life Opportunities,H720 - Environmental Improvements,C200 - Main Contractor,20/02/2013,2106276-1,1492.89,REDACTED PERSONAL DATA,REDACTED PERSONAL DATA
Tendring DC,http://statistics.data.gov.uk/id/local-authority-district/22UN,Life Opportunities,"1580 - Benefits, Revenues and Customer Contact SU",4448 - Confidential Waste,20/02/2013,2106132-1,72.85,2110936 - IPPlus (UK) Ltd,Confidential Waste - 21882
Tendring DC,http://statistics.data.gov.uk/id/local-authority-district/22UN,Life Opportunities,6740 - Careline,4448 - Confidential Waste,20/02/2013,2106345-1,11.75,2110936 - IPPlus (UK) Ltd,Shredding 22/1/13
Tendring DC,http://statistics.data.gov.uk/id/local-authority-district/22UN,Life Opportunities,6160 - Princes Theatre,4040 - Equipment & Tools,05/02/2013,2105465-1,7,2100715 - J E Fuller Ltd,Cable Ties
Tendring DC,http://statistics.data.gov.uk/id/local-authority-district/22UN,Life Opportunities,H920 - DFGs,C400 - Grant payments,26/02/2013,2106415-1,360,REDACTED PERSONAL DATA,REDACTED PERSONAL DATA
Tendring DC,http://statistics.data.gov.uk/id/local-authority-district/22UN,Life Opportunities,8510 - Dovercourt Swimming Pool & All Weather Facilities,4000 - Furniture,05/02/2013,2105614-1,138.78,2100755 - J P Lennard Ltd,Dovercourt Pool
Tendring DC,http://statistics.data.gov.uk/id/local-authority-district/22UN,Life Opportunities,5800 - Brightlingsea Sports Centre,4080 - Materials & Consumables,12/02/2013,2105825-1,145.7,2100755 - J P Lennard Ltd,J P Lennard Ltd
Tendring DC,http://statistics.data.gov.uk/id/local-authority-district/22UN,Life Opportunities,8520 - Frinton & Walton Swimming Pool,5300 - Resaleable Items,12/02/2013,2105834-1,355.56,2100755 - J P Lennard Ltd,Fritnon & Walton Pool
Tendring DC,http://statistics.data.gov.uk/id/local-authority-district/22UN,Life Opportunities,8520 - Frinton & Walton Swimming Pool,5300 - Resaleable Items,12/02/2013,2105834-2,125.22,2100755 - J P Lennard Ltd,Fritnon & Walton Pool
Tendring DC,http://statistics.data.gov.uk/id/local-authority-district/22UN,Life Opportunities,8540 - Leisure Centre Clacton,2700 - Cleaning Materials,12/02/2013,2105916-1,36.16,REDACTED PERSONAL DATA,REDACTED PERSONAL DATA
Tendring DC,http://statistics.data.gov.uk/id/local-authority-district/22UN,Life Opportunities,8540 - Leisure Centre Clacton,2100 - Building Repairs,12/02/2013,2105922-1,132.2,2100755 - J P Lennard Ltd,
Tendring DC,http://statistics.data.gov.uk/id/local-authority-district/22UN,Life Opportunities,8540 - Leisure Centre Clacton,4000 - Furniture,20/02/2013,2106139-1,47.6,2100755 - J P Lennard Ltd,
Tendring DC,http://statistics.data.gov.uk/id/local-authority-district/22UN,Life Opportunities,8540 - Leisure Centre Clacton,2100 - Building Repairs,20/02/2013,2106155-1,328.2,2100755 - J P Lennard Ltd,
Tendring DC,http://statistics.data.gov.uk/id/local-authority-district/22UN,Life Opportunities,8540 - Leisure Centre Clacton,2100 - Building Repairs,20/02/2013,2106163-1,121.2,2100755 - J P Lennard Ltd,
Tendring DC,http://statistics.data.gov.uk/id/local-authority-district/22UN,Life Opportunities,8520 - Frinton & Walton Swimming Pool,4000 - Furniture,26/02/2013,2106429-1,113.5,REDACTED PERSONAL DATA,REDACTED PERSONAL DATA
Tendring DC,http://statistics.data.gov.uk/id/local-authority-district/22UN,Life Opportunities,8520 - Frinton & Walton Swimming Pool,4000 - Furniture,20/02/2013,7008913-1,100.4,2100755 - J P Lennard Ltd,FRINTON WALTON POOL
Tendring DC,http://statistics.data.gov.uk/id/local-authority-district/22UN,Life Opportunities,8520 - Frinton & Walton Swimming Pool,4000 - Furniture,20/02/2013,7008916-1,156.69,2100755 - J P Lennard Ltd,FRINTON POOL
Tendring DC,http://statistics.data.gov.uk/id/local-authority-district/22UN,Life Opportunities,8540 - Leisure Centre Clacton,4597 - Hired Services - Payments to Contractors,12/02/2013,2105914-1,120,REDACTED PERSONAL DATA,REDACTED PERSONAL DATA
Tendring DC,http://statistics.data.gov.uk/id/local-authority-district/22UN,Life Opportunities,1240 - Housing Services Service Unit,3302 - Car Allowances - Officers,12/02/2013,2105790-1,52.1,REDACTED PERSONAL DATA,REDACTED PERSONAL DATA
Tendring DC,http://statistics.data.gov.uk/id/local-authority-district/22UN,Life Opportunities,1240 - Housing Services Service Unit,3302 - Car Allowances - Officers,26/02/2013,2106417-1,39.7,REDACTED PERSONAL DATA,REDACTED PERSONAL DATA
Tendring DC,http://statistics.data.gov.uk/id/local-authority-district/22UN,Life Opportunities,H920 - DFGs,C400 - Grant payments,05/02/2013,7008873-1,4004.46,REDACTED PERSONAL DATA,REDACTED PERSONAL DATA
Tendring DC,http://statistics.data.gov.uk/id/local-authority-district/22UN,Life Opportunities,5240 - HRA - Managing Tenancies,5242 - Tenant Relations,26/02/2013,2106410-1,10,REDACTED PERSONAL DATA,REDACTED PERSONAL DATA
Tendring DC,http://statistics.data.gov.uk/id/local-authority-district/22UN,Life Opportunities,8540 - Leisure Centre Clacton,5500 - Miscellaneous Expenses,20/02/2013,2106145-1,67.15,2107243 - Juice for Life Ltd,w/e 23/12/12
Tendring DC,http://statistics.data.gov.uk/id/local-authority-district/22UN,Life Opportunities,8540 - Leisure Centre Clacton,5500 - Miscellaneous Expenses,20/02/2013,2106146-1,67.15,2107243 - Juice for Life Ltd,w/e 06/1/13
Tendring DC,http://statistics.data.gov.uk/id/local-authority-district/22UN,Life Opportunities,8540 - Leisure Centre Clacton,5500 - Miscellaneous Expenses,20/02/2013,2106147-1,47.1,2107243 - Juice for Life Ltd,w/e 13/1/13
Tendring DC,http://statistics.data.gov.uk/id/local-authority-district/22UN,Life Opportunities,8540 - Leisure Centre Clacton,5500 - Miscellaneous Expenses,20/02/2013,2106148-1,94.35,2107243 - Juice for Life Ltd,w/e 27/1/13
Tendring DC,http://statistics.data.gov.uk/id/local-authority-district/22UN,Life Opportunities,8540 - Leisure Centre Clacton,5500 - Miscellaneous Expenses,20/02/2013,2106149-1,38.95,2107243 - Juice for Life Ltd,w/e 3-2-13
Tendring DC,http://statistics.data.gov.uk/id/local-authority-district/22UN,Life Opportunities,8540 - Leisure Centre Clacton,4597 - Hired Services - Payments to Contractors,20/02/2013,2106150-1,293.75,2107243 - Juice for Life Ltd,w/e 3-2-13
Tendring DC,http://statistics.data.gov.uk/id/local-authority-district/22UN,Life Opportunities,8540 - Leisure Centre Clacton,4597 - Hired Services - Payments to Contractors,20/02/2013,2106151-1,168.75,2107243 - Juice for Life Ltd,w/e 6/1/13
Tendring DC,http://statistics.data.gov.uk/id/local-authority-district/22UN,Life Opportunities,8540 - Leisure Centre Clacton,4597 - Hired Services - Payments to Contractors,20/02/2013,2106152-1,276.25,2107243 - Juice for Life Ltd,w/e 13/1/13
Tendring DC,http://statistics.data.gov.uk/id/local-authority-district/22UN,Life Opportunities,8540 - Leisure Centre Clacton,4597 - Hired Services - Payments to Contractors,20/02/2013,2106153-1,210,2107243 - Juice for Life Ltd,w/e 27/1/13
Tendring DC,http://statistics.data.gov.uk/id/local-authority-district/22UN,Life Opportunities,8540 - Leisure Centre Clacton,4597 - Hired Services - Payments to Contractors,20/02/2013,2106157-1,228.75,2107243 - Juice for Life Ltd,w/e 23/12/12
Tendring DC,http://statistics.data.gov.uk/id/local-authority-district/22UN,Life Opportunities,8540 - Leisure Centre Clacton,4597 - Hired Services - Payments to Contractors,20/02/2013,2106160-1,316.25,2107243 - Juice for Life Ltd,w/e 20/1/13
Tendring DC,http://statistics.data.gov.uk/id/local-authority-district/22UN,Life Opportunities,5480 - HRA - Repair & Maintenance,2064 - Domestic Appliance Repairs,12/02/2013,2105808-1,105,REDACTED PERSONAL DATA,REDACTED PERSONAL DATA
Tendring DC,http://statistics.data.gov.uk/id/local-authority-district/22UN,Life Opportunities,5480 - HRA - Repair & Maintenance,2064 - Domestic Appliance Repairs,12/02/2013,2105809-1,55,REDACTED PERSONAL DATA,REDACTED PERSONAL DATA
Tendring DC,http://statistics.data.gov.uk/id/local-authority-district/22UN,Life Opportunities,5480 - HRA - Repair & Maintenance,2064 - Domestic Appliance Repairs,12/02/2013,2105810-1,45,REDACTED PERSONAL DATA,REDACTED PERSONAL DATA
Tendring DC,http://statistics.data.gov.uk/id/local-authority-district/22UN,Life Opportunities,6740 - Careline,3302 - Car Allowances - Officers,20/02/2013,2106192-1,8,REDACTED PERSONAL DATA,REDACTED PERSONAL DATA
Tendring DC,http://statistics.data.gov.uk/id/local-authority-district/22UN,Life Opportunities,5820 - Harwich Sports Centre,2308 - Energy Costs - Gas (Including LPG),20/02/2013,2106253-1,462.01,REDACTED PERSONAL DATA,REDACTED PERSONAL DATA
Tendring DC,http://statistics.data.gov.uk/id/local-authority-district/22UN,Life Opportunities,5820 - Harwich Sports Centre,2308 - Energy Costs - Gas (Including LPG),20/02/2013,7008941-1,-116.33,2105075 - Kent County Council,GAS SUPPLY CREDIT
Tendring DC,http://statistics.data.gov.uk/id/local-authority-district/22UN,Life Opportunities,5820 - Harwich Sports Centre,2308 - Energy Costs - Gas (Including LPG),20/02/2013,7008942-1,-103.58,2105075 - Kent County Council,GAS INVOICE CREDIT
Tendring DC,http://statistics.data.gov.uk/id/local-authority-district/22UN,Life Opportunities,7520 - Tourism Publicity Marketing Promotion,5160 - Advertising,12/02/2013,2105886-1,301.5,2100850 - KidAround Ltd,Kidaround Spring
Tendring DC,http://statistics.data.gov.uk/id/local-authority-district/22UN,Life Opportunities,5800 - Brightlingsea Sports Centre,4000 - Furniture,12/02/2013,2105785-1,45.83,REDACTED PERSONAL DATA,REDACTED PERSONAL DATA
Tendring DC,http://statistics.data.gov.uk/id/local-authority-district/22UN,Life Opportunities,5880 - Management Of Sport & Leisure Facilities,4597 - Hired Services - Payments to Contractors,20/02/2013,2106193-1,233.33,REDACTED PERSONAL DATA,REDACTED PERSONAL DATA
Tendring DC,http://statistics.data.gov.uk/id/local-authority-district/22UN,Life Opportunities,5880 - Management Of Sport & Leisure Facilities,4597 - Hired Services - Payments to Contractors,20/02/2013,2106194-1,233.33,REDACTED PERSONAL DATA,REDACTED PERSONAL DATA
Tendring DC,http://statistics.data.gov.uk/id/local-authority-district/22UN,Life Opportunities,5880 - Management Of Sport & Leisure Facilities,4597 - Hired Services - Payments to Contractors,20/02/2013,2106195-1,233.33,REDACTED PERSONAL DATA,REDACTED PERSONAL DATA
Tendring DC,http://statistics.data.gov.uk/id/local-authority-district/22UN,Life Opportunities,5800 - Brightlingsea Sports Centre,4000 - Furniture,20/02/2013,2106196-1,66.66,REDACTED PERSONAL DATA,REDACTED PERSONAL DATA
Tendring DC,http://statistics.data.gov.uk/id/local-authority-district/22UN,Life Opportunities,5800 - Brightlingsea Sports Centre,4080 - Materials & Consumables,20/02/2013,2106197-1,14.08,REDACTED PERSONAL DATA,REDACTED PERSONAL DATA
Tendring DC,http://statistics.data.gov.uk/id/local-authority-district/22UN,Life Opportunities,"1580 - Benefits, Revenues and Customer Contact SU",5500 - Miscellaneous Expenses,26/02/2013,2106408-1,1.5,REDACTED PERSONAL DATA,REDACTED PERSONAL DATA
Tendring DC,http://statistics.data.gov.uk/id/local-authority-district/22UN,Life Opportunities,5860 - Manningtree Sports Centre,5160 - Advertising,20/02/2013,2106257-1,55,REDACTED PERSONAL DATA,REDACTED PERSONAL DATA
Tendring DC,http://statistics.data.gov.uk/id/local-authority-district/22UN,Life Opportunities,5140 - Homelessness,4683 - Other Homelessness Expenses,20/02/2013,2106204-1,710,REDACTED PERSONAL DATA,REDACTED PERSONAL DATA
Tendring DC,http://statistics.data.gov.uk/id/local-authority-district/22UN,Life Opportunities,5480 - HRA - Repair & Maintenance,2018 - Other Responsive Repairs,05/02/2013,2105521-1,150,REDACTED PERSONAL DATA,REDACTED PERSONAL DATA
Tendring DC,http://statistics.data.gov.uk/id/local-authority-district/22UN,Life Opportunities,5800 - Brightlingsea Sports Centre,4000 - Furniture,20/02/2013,2106142-1,252,2111918 - LeisureTek Fitness Ltd,Leisure Tek Fitness
Tendring DC,http://statistics.data.gov.uk/id/local-authority-district/22UN,Life Opportunities,5800 - Brightlingsea Sports Centre,4000 - Furniture,20/02/2013,2106142-2,15,2111918 - LeisureTek Fitness Ltd,Leisure Tek Fitness
Tendring DC,http://statistics.data.gov.uk/id/local-authority-district/22UN,Life Opportunities,"1580 - Benefits, Revenues and Customer Contact SU",4462 - Legal Fees incl. Bailiffs re debt recovery,05/02/2013,2105590-1,4863.1,2111904 - Lester Aldridge LLP,"Professional Charges, Fees, Disbursements"
Tendring DC,http://statistics.data.gov.uk/id/local-authority-district/22UN,Life Opportunities,"1580 - Benefits, Revenues and Customer Contact SU",4462 - Legal Fees incl. Bailiffs re debt recovery,05/02/2013,2105590-2,1745,2111904 - Lester Aldridge LLP,"Professional Charges, Fees, Disbursements"
Tendring DC,http://statistics.data.gov.uk/id/local-authority-district/22UN,Life Opportunities,5860 - Manningtree Sports Centre,4040 - Equipment & Tools,20/02/2013,2106270-1,139.07,REDACTED PERSONAL DATA,REDACTED PERSONAL DATA
Tendring DC,http://statistics.data.gov.uk/id/local-authority-district/22UN,Life Opportunities,6740 - Careline,4880 - Subscriptions Paid,12/02/2013,2105714-1,275,2112843 - London Telecare Ltd,London Telecare Subscription
Tendring DC,http://statistics.data.gov.uk/id/local-authority-district/22UN,Life Opportunities,8540 - Leisure Centre Clacton,5160 - Advertising,05/02/2013,2105534-1,298,REDACTED PERSONAL DATA,REDACTED PERSONAL DATA
Tendring DC,http://statistics.data.gov.uk/id/local-authority-district/22UN,Life Opportunities,8540 - Leisure Centre Clacton,5160 - Advertising,12/02/2013,2105915-1,298,REDACTED PERSONAL DATA,REDACTED PERSONAL DATA
Tendring DC,http://statistics.data.gov.uk/id/local-authority-district/22UN,Life Opportunities,5480 - HRA - Repair & Maintenance,2002 - Responsive Maintenance - Drainage,20/02/2013,2106282-1,1004.75,REDACTED PERSONAL DATA,REDACTED PERSONAL DATA
Tendring DC,http://statistics.data.gov.uk/id/local-authority-district/22UN,Life Opportunities,5480 - HRA - Repair & Maintenance,2002 - Responsive Maintenance - Drainage,20/02/2013,2106284-1,145,REDACTED PERSONAL DATA,REDACTED PERSONAL DATA
Tendring DC,http://statistics.data.gov.uk/id/local-authority-district/22UN,Life Opportunities,5480 - HRA - Repair & Maintenance,2002 - Responsive Maintenance - Drainage,20/02/2013,2106285-1,56.25,REDACTED PERSONAL DATA,REDACTED PERSONAL DATA
Tendring DC,http://statistics.data.gov.uk/id/local-authority-district/22UN,Life Opportunities,5480 - HRA - Repair & Maintenance,2002 - Responsive Maintenance - Drainage,20/02/2013,2106286-1,80,REDACTED PERSONAL DATA,REDACTED PERSONAL DATA
Tendring DC,http://statistics.data.gov.uk/id/local-authority-district/22UN,Life Opportunities,5480 - HRA - Repair & Maintenance,2002 - Responsive Maintenance - Drainage,20/02/2013,2106287-1,560,REDACTED PERSONAL DATA,REDACTED PERSONAL DATA
Tendring DC,http://statistics.data.gov.uk/id/local-authority-district/22UN,Life Opportunities,5480 - HRA - Repair & Maintenance,2002 - Responsive Maintenance - Drainage,20/02/2013,2106313-1,1595.25,REDACTED PERSONAL DATA,REDACTED PERSONAL DATA
Tendring DC,http://statistics.data.gov.uk/id/local-authority-district/22UN,Life Opportunities,5480 - HRA - Repair & Maintenance,2006 - Responsive Maintenance - Plumbing,20/02/2013,2106314-1,74.25,REDACTED PERSONAL DATA,REDACTED PERSONAL DATA
Tendring DC,http://statistics.data.gov.uk/id/local-authority-district/22UN,Life Opportunities,5480 - HRA - Repair & Maintenance,2002 - Responsive Maintenance - Drainage,20/02/2013,2106315-1,71.25,REDACTED PERSONAL DATA,REDACTED PERSONAL DATA
Tendring DC,http://statistics.data.gov.uk/id/local-authority-district/22UN,Life Opportunities,5480 - HRA - Repair & Maintenance,2015 - Drain Clearance And Repairs,20/02/2013,2106346-1,1162.75,2107196 - Mains 'N' Drains 24-Hour Plumbing Services,Council House Blockages
Tendring DC,http://statistics.data.gov.uk/id/local-authority-district/22UN,Life Opportunities,5480 - HRA - Repair & Maintenance,2002 - Responsive Maintenance - Drainage,26/02/2013,2106391-1,1565.75,REDACTED PERSONAL DATA,REDACTED PERSONAL DATA
Tendring DC,http://statistics.data.gov.uk/id/local-authority-district/22UN,Life Opportunities,8540 - Leisure Centre Clacton,2100 - Building Repairs,26/02/2013,7008968-1,100,2107196 - Mains 'N' Drains 24-Hour Plumbing Services,1851
Tendring DC,http://statistics.data.gov.uk/id/local-authority-district/22UN,Life Opportunities,5480 - HRA - Repair & Maintenance,2002 - Responsive Maintenance - Drainage,26/02/2013,7008997-1,215,REDACTED PERSONAL DATA,REDACTED PERSONAL DATA
Tendring DC,http://statistics.data.gov.uk/id/local-authority-district/22UN,Life Opportunities,5480 - HRA - Repair & Maintenance,2002 - Responsive Maintenance - Drainage,26/02/2013,7008998-1,744.25,REDACTED PERSONAL DATA,REDACTED PERSONAL DATA
Tendring DC,http://statistics.data.gov.uk/id/local-authority-district/22UN,Life Opportunities,5480 - HRA - Repair & Maintenance,2015 - Drain Clearance And Repairs,26/02/2013,7008999-1,2092.25,REDACTED PERSONAL DATA,REDACTED PERSONAL DATA
Tendring DC,http://statistics.data.gov.uk/id/local-authority-district/22UN,Life Opportunities,5480 - HRA - Repair & Maintenance,2002 - Responsive Maintenance - Drainage,26/02/2013,7009000-1,1882.5,REDACTED PERSONAL DATA,REDACTED PERSONAL DATA
Tendring DC,http://statistics.data.gov.uk/id/local-authority-district/22UN,Life Opportunities,5480 - HRA - Repair & Maintenance,2002 - Responsive Maintenance - Drainage,26/02/2013,7009001-1,153,REDACTED PERSONAL DATA,REDACTED PERSONAL DATA
Tendring DC,http://statistics.data.gov.uk/id/local-authority-district/22UN,Life Opportunities,5140 - Homelessness,4683 - Other Homelessness Expenses,20/02/2013,2106199-1,38.48,REDACTED PERSONAL DATA,REDACTED PERSONAL DATA
Tendring DC,http://statistics.data.gov.uk/id/local-authority-district/22UN,Life Opportunities,5240 - HRA - Managing Tenancies,5248 - Estate Management Expenses,20/02/2013,2106272-1,84,REDACTED COMMERCIAL CONFIDENTIALITY,REDACTED COMMERCIAL CONFIDENTIALITY
Tendring DC,http://statistics.data.gov.uk/id/local-authority-district/22UN,Life Opportunities,8540 - Leisure Centre Clacton,2100 - Building Repairs,20/02/2013,2106037-1,474.7,2111673 - Maplin Mechanical Services Ltd,
Tendring DC,http://statistics.data.gov.uk/id/local-authority-district/22UN,Life Opportunities,5140 - Homelessness,4680 - Bed & Breakfast Accommodation,05/02/2013,2105434-1,560,REDACTED PERSONAL DATA,REDACTED PERSONAL DATA
Tendring DC,http://statistics.data.gov.uk/id/local-authority-district/22UN,Life Opportunities,5140 - Homelessness,9032 - Homelessness Accommodation Charges,05/02/2013,2105434-2,-16.45,REDACTED PERSONAL DATA,REDACTED PERSONAL DATA
Tendring DC,http://statistics.data.gov.uk/id/local-authority-district/22UN,Life Opportunities,5140 - Homelessness,4680 - Bed & Breakfast Accommodation,05/02/2013,2105435-1,140,REDACTED PERSONAL DATA,REDACTED PERSONAL DATA
Tendring DC,http://statistics.data.gov.uk/id/local-authority-district/22UN,Life Opportunities,5140 - Homelessness,9032 - Homelessness Accommodation Charges,05/02/2013,2105435-2,-16.45,REDACTED PERSONAL DATA,REDACTED PERSONAL DATA
Tendring DC,http://statistics.data.gov.uk/id/local-authority-district/22UN,Life Opportunities,5140 - Homelessness,4680 - Bed & Breakfast Accommodation,05/02/2013,2105436-1,420,REDACTED PERSONAL DATA,REDACTED PERSONAL DATA
Tendring DC,http://statistics.data.gov.uk/id/local-authority-district/22UN,Life Opportunities,5140 - Homelessness,9032 - Homelessness Accommodation Charges,05/02/2013,2105436-2,-16.45,REDACTED PERSONAL DATA,REDACTED PERSONAL DATA
Tendring DC,http://statistics.data.gov.uk/id/local-authority-district/22UN,Life Opportunities,5140 - Homelessness,4680 - Bed & Breakfast Accommodation,05/02/2013,2105437-1,60,REDACTED PERSONAL DATA,REDACTED PERSONAL DATA
Tendring DC,http://statistics.data.gov.uk/id/local-authority-district/22UN,Life Opportunities,5140 - Homelessness,9032 - Homelessness Accommodation Charges,05/02/2013,2105437-2,-7.05,REDACTED PERSONAL DATA,REDACTED PERSONAL DATA
Tendring DC,http://statistics.data.gov.uk/id/local-authority-district/22UN,Life Opportunities,5140 - Homelessness,4680 - Bed & Breakfast Accommodation,20/02/2013,2106169-1,140,REDACTED PERSONAL DATA,REDACTED PERSONAL DATA
Tendring DC,http://statistics.data.gov.uk/id/local-authority-district/22UN,Life Opportunities,5140 - Homelessness,9032 - Homelessness Accommodation Charges,20/02/2013,2106169-2,-16.45,REDACTED PERSONAL DATA,REDACTED PERSONAL DATA
Tendring DC,http://statistics.data.gov.uk/id/local-authority-district/22UN,Life Opportunities,5140 - Homelessness,4680 - Bed & Breakfast Accommodation,20/02/2013,2106170-1,20,REDACTED PERSONAL DATA,REDACTED PERSONAL DATA
Tendring DC,http://statistics.data.gov.uk/id/local-authority-district/22UN,Life Opportunities,5140 - Homelessness,9032 - Homelessness Accommodation Charges,20/02/2013,2106170-2,-2.35,REDACTED PERSONAL DATA,REDACTED PERSONAL DATA
Tendring DC,http://statistics.data.gov.uk/id/local-authority-district/22UN,Life Opportunities,5140 - Homelessness,4680 - Bed & Breakfast Accommodation,20/02/2013,2106172-1,140,REDACTED PERSONAL DATA,REDACTED PERSONAL DATA
Tendring DC,http://statistics.data.gov.uk/id/local-authority-district/22UN,Life Opportunities,5140 - Homelessness,9032 - Homelessness Accommodation Charges,20/02/2013,2106172-2,-16.45,REDACTED PERSONAL DATA,REDACTED PERSONAL DATA
Tendring DC,http://statistics.data.gov.uk/id/local-authority-district/22UN,Life Opportunities,5140 - Homelessness,4680 - Bed & Breakfast Accommodation,20/02/2013,2106173-1,240,REDACTED PERSONAL DATA,REDACTED PERSONAL DATA
Tendring DC,http://statistics.data.gov.uk/id/local-authority-district/22UN,Life Opportunities,5140 - Homelessness,9032 - Homelessness Accommodation Charges,20/02/2013,2106173-2,-7.05,REDACTED PERSONAL DATA,REDACTED PERSONAL DATA
Tendring DC,http://statistics.data.gov.uk/id/local-authority-district/22UN,Life Opportunities,5140 - Homelessness,4680 - Bed & Breakfast Accommodation,20/02/2013,2106174-1,300,REDACTED PERSONAL DATA,REDACTED PERSONAL DATA
Tendring DC,http://statistics.data.gov.uk/id/local-authority-district/22UN,Life Opportunities,5140 - Homelessness,9032 - Homelessness Accommodation Charges,20/02/2013,2106174-2,-11.75,REDACTED PERSONAL DATA,REDACTED PERSONAL DATA
Tendring DC,http://statistics.data.gov.uk/id/local-authority-district/22UN,Life Opportunities,5140 - Homelessness,4680 - Bed & Breakfast Accommodation,20/02/2013,2106175-1,140,REDACTED PERSONAL DATA,REDACTED PERSONAL DATA
Tendring DC,http://statistics.data.gov.uk/id/local-authority-district/22UN,Life Opportunities,5140 - Homelessness,9032 - Homelessness Accommodation Charges,20/02/2013,2106175-2,-16.45,REDACTED PERSONAL DATA,REDACTED PERSONAL DATA
Tendring DC,http://statistics.data.gov.uk/id/local-authority-district/22UN,Life Opportunities,5140 - Homelessness,4680 - Bed & Breakfast Accommodation,20/02/2013,2106366-1,80,REDACTED PERSONAL DATA,REDACTED PERSONAL DATA
Tendring DC,http://statistics.data.gov.uk/id/local-authority-district/22UN,Life Opportunities,5140 - Homelessness,9032 - Homelessness Accommodation Charges,20/02/2013,2106366-2,-9.4,REDACTED PERSONAL DATA,REDACTED PERSONAL DATA
Tendring DC,http://statistics.data.gov.uk/id/local-authority-district/22UN,Life Opportunities,5140 - Homelessness,4680 - Bed & Breakfast Accommodation,05/02/2013,7008853-1,480,REDACTED PERSONAL DATA,REDACTED PERSONAL DATA
Tendring DC,http://statistics.data.gov.uk/id/local-authority-district/22UN,Life Opportunities,5140 - Homelessness,9032 - Homelessness Accommodation Charges,05/02/2013,7008853-2,-14.1,REDACTED PERSONAL DATA,REDACTED PERSONAL DATA
Tendring DC,http://statistics.data.gov.uk/id/local-authority-district/22UN,Life Opportunities,5140 - Homelessness,4680 - Bed & Breakfast Accommodation,05/02/2013,7008854-1,420,REDACTED PERSONAL DATA,REDACTED PERSONAL DATA
Tendring DC,http://statistics.data.gov.uk/id/local-authority-district/22UN,Life Opportunities,5140 - Homelessness,9032 - Homelessness Accommodation Charges,05/02/2013,7008854-2,-16.45,REDACTED PERSONAL DATA,REDACTED PERSONAL DATA
Tendring DC,http://statistics.data.gov.uk/id/local-authority-district/22UN,Life Opportunities,5140 - Homelessness,4680 - Bed & Breakfast Accommodation,05/02/2013,7008855-1,140,REDACTED PERSONAL DATA,REDACTED PERSONAL DATA
Tendring DC,http://statistics.data.gov.uk/id/local-authority-district/22UN,Life Opportunities,5140 - Homelessness,9032 - Homelessness Accommodation Charges,05/02/2013,7008855-2,-16.45,REDACTED PERSONAL DATA,REDACTED PERSONAL DATA
Tendring DC,http://statistics.data.gov.uk/id/local-authority-district/22UN,Life Opportunities,5140 - Homelessness,4680 - Bed & Breakfast Accommodation,05/02/2013,7008856-1,140,REDACTED PERSONAL DATA,REDACTED PERSONAL DATA
Tendring DC,http://statistics.data.gov.uk/id/local-authority-district/22UN,Life Opportunities,5140 - Homelessness,9032 - Homelessness Accommodation Charges,05/02/2013,7008856-2,-16.45,REDACTED PERSONAL DATA,REDACTED PERSONAL DATA
Tendring DC,http://statistics.data.gov.uk/id/local-authority-district/22UN,Life Opportunities,5480 - HRA - Repair & Maintenance,2088 - Disabled Adaptations,20/02/2013,2106115-1,222,REDACTED PERSONAL DATA,REDACTED PERSONAL DATA
Tendring DC,http://statistics.data.gov.uk/id/local-authority-district/22UN,Life Opportunities,5480 - HRA - Repair & Maintenance,2088 - Disabled Adaptations,20/02/2013,2106115-2,98,REDACTED PERSONAL DATA,REDACTED PERSONAL DATA
Tendring DC,http://statistics.data.gov.uk/id/local-authority-district/22UN,Life Opportunities,H860 - Disabled Adaptations,C200 - Main Contractor,20/02/2013,2106116-1,375,REDACTED PERSONAL DATA,REDACTED PERSONAL DATA
Tendring DC,http://statistics.data.gov.uk/id/local-authority-district/22UN,Life Opportunities,H860 - Disabled Adaptations,C200 - Main Contractor,20/02/2013,2106116-2,220,REDACTED PERSONAL DATA,REDACTED PERSONAL DATA
Tendring DC,http://statistics.data.gov.uk/id/local-authority-district/22UN,Life Opportunities,H860 - Disabled Adaptations,C200 - Main Contractor,12/02/2013,2106117-1,743,REDACTED PERSONAL DATA,REDACTED PERSONAL DATA
Tendring DC,http://statistics.data.gov.uk/id/local-authority-district/22UN,Life Opportunities,H860 - Disabled Adaptations,C200 - Main Contractor,12/02/2013,2106117-2,382.5,REDACTED PERSONAL DATA,REDACTED PERSONAL DATA
Tendring DC,http://statistics.data.gov.uk/id/local-authority-district/22UN,Life Opportunities,H860 - Disabled Adaptations,C200 - Main Contractor,20/02/2013,2106118-1,545,REDACTED PERSONAL DATA,REDACTED PERSONAL DATA
Tendring DC,http://statistics.data.gov.uk/id/local-authority-district/22UN,Life Opportunities,H860 - Disabled Adaptations,C200 - Main Contractor,20/02/2013,2106118-2,280,REDACTED PERSONAL DATA,REDACTED PERSONAL DATA
Tendring DC,http://statistics.data.gov.uk/id/local-authority-district/22UN,Life Opportunities,H860 - Disabled Adaptations,C200 - Main Contractor,20/02/2013,2106369-1,743,REDACTED PERSONAL DATA,REDACTED PERSONAL DATA
Tendring DC,http://statistics.data.gov.uk/id/local-authority-district/22UN,Life Opportunities,H860 - Disabled Adaptations,C200 - Main Contractor,20/02/2013,2106369-2,382,REDACTED PERSONAL DATA,REDACTED PERSONAL DATA
Tendring DC,http://statistics.data.gov.uk/id/local-authority-district/22UN,Life Opportunities,8540 - Leisure Centre Clacton,5160 - Advertising,26/02/2013,2106547-1,577.5,REDACTED PERSONAL DATA,REDACTED PERSONAL DATA
Tendring DC,http://statistics.data.gov.uk/id/local-authority-district/22UN,Life Opportunities,H920 - DFGs,C400 - Grant payments,26/02/2013,2106418-1,200,REDACTED PERSONAL DATA,REDACTED PERSONAL DATA
Tendring DC,http://statistics.data.gov.uk/id/local-authority-district/22UN,Life Opportunities,5140 - Homelessness,4683 - Other Homelessness Expenses,20/02/2013,2106205-1,550,REDACTED PERSONAL DATA,REDACTED PERSONAL DATA
Tendring DC,http://statistics.data.gov.uk/id/local-authority-district/22UN,Life Opportunities,5140 - Homelessness,4683 - Other Homelessness Expenses,20/02/2013,2106207-1,307.43,REDACTED PERSONAL DATA,REDACTED PERSONAL DATA
Tendring DC,http://statistics.data.gov.uk/id/local-authority-district/22UN,Life Opportunities,9920 - HRA Balance Sheet,B860 - Housing Rents - Cash,20/02/2013,2106183-1,161.5,REDACTED PERSONAL DATA,REDACTED PERSONAL DATA
Tendring DC,http://statistics.data.gov.uk/id/local-authority-district/22UN,Life Opportunities,9920 - HRA Balance Sheet,B860 - Housing Rents - Cash,26/02/2013,2106400-1,168.04,REDACTED PERSONAL DATA,REDACTED PERSONAL DATA
Tendring DC,http://statistics.data.gov.uk/id/local-authority-district/22UN,Life Opportunities,5240 - HRA - Managing Tenancies,6625 - Tenants Compensation Scheme,20/02/2013,2106190-1,12,REDACTED PERSONAL DATA,REDACTED PERSONAL DATA
Tendring DC,http://statistics.data.gov.uk/id/local-authority-district/22UN,Life Opportunities,8540 - Leisure Centre Clacton,4400 - Maintenance Under Service Agreements,12/02/2013,2105903-1,62.2,2104791 - Mobile Mini Uk Ltd,16/1/13 - 12/2/13
Tendring DC,http://statistics.data.gov.uk/id/local-authority-district/22UN,Life Opportunities,"1580 - Benefits, Revenues and Customer Contact SU",4700 - Postage,12/02/2013,2105830-1,6064.91,2112150 - MPS,Instalment Mailing Postage
Tendring DC,http://statistics.data.gov.uk/id/local-authority-district/22UN,Life Opportunities,"1580 - Benefits, Revenues and Customer Contact SU",4300 - Printing & Stationery,26/02/2013,2106426-1,2485.24,REDACTED PERSONAL DATA,REDACTED PERSONAL DATA
Tendring DC,http://statistics.data.gov.uk/id/local-authority-district/22UN,Life Opportunities,9920 - HRA Balance Sheet,B860 - Housing Rents - Cash,12/02/2013,2105794-1,206.56,REDACTED PERSONAL DATA,REDACTED PERSONAL DATA
Tendring DC,http://statistics.data.gov.uk/id/local-authority-district/22UN,Life Opportunities,9920 - HRA Balance Sheet,B860 - Housing Rents - Cash,12/02/2013,2105791-1,151.7,REDACTED PERSONAL DATA,REDACTED PERSONAL DATA
Tendring DC,http://statistics.data.gov.uk/id/local-authority-district/22UN,Life Opportunities,8540 - Leisure Centre Clacton,4597 - Hired Services - Payments to Contractors,05/02/2013,2105532-1,120,REDACTED PERSONAL DATA,REDACTED PERSONAL DATA
Tendring DC,http://statistics.data.gov.uk/id/local-authority-district/22UN,Life Opportunities,5240 - HRA - Managing Tenancies,5242 - Tenant Relations,12/02/2013,2105783-1,10,REDACTED PERSONAL DATA,REDACTED PERSONAL DATA
Tendring DC,http://statistics.data.gov.uk/id/local-authority-district/22UN,Life Opportunities,6740 - Careline,1700 - Training - Courses,26/02/2013,2106401-1,105.98,REDACTED PERSONAL DATA,REDACTED PERSONAL DATA
Tendring DC,http://statistics.data.gov.uk/id/local-authority-district/22UN,Life Opportunities,9920 - HRA Balance Sheet,B860 - Housing Rents - Cash,12/02/2013,2105793-1,44.35,REDACTED PERSONAL DATA,REDACTED PERSONAL DATA
Tendring DC,http://statistics.data.gov.uk/id/local-authority-district/22UN,Life Opportunities,9920 - HRA Balance Sheet,B860 - Housing Rents - Cash,20/02/2013,2106182-1,28.02,REDACTED PERSONAL DATA,REDACTED PERSONAL DATA
Tendring DC,http://statistics.data.gov.uk/id/local-authority-district/22UN,Life Opportunities,5240 - HRA - Managing Tenancies,5242 - Tenant Relations,26/02/2013,2106412-1,10,REDACTED PERSONAL DATA,REDACTED PERSONAL DATA
Tendring DC,http://statistics.data.gov.uk/id/local-authority-district/22UN,Life Opportunities,9920 - HRA Balance Sheet,B860 - Housing Rents - Cash,20/02/2013,2106184-1,180.6,REDACTED PERSONAL DATA,REDACTED PERSONAL DATA
Tendring DC,http://statistics.data.gov.uk/id/local-authority-district/22UN,Life Opportunities,9920 - HRA Balance Sheet,B860 - Housing Rents - Cash,20/02/2013,2106181-1,107.67,REDACTED PERSONAL DATA,REDACTED PERSONAL DATA
Tendring DC,http://statistics.data.gov.uk/id/local-authority-district/22UN,Life Opportunities,5140 - Homelessness,4683 - Other Homelessness Expenses,20/02/2013,2106200-1,700,REDACTED PERSONAL DATA,REDACTED PERSONAL DATA
Tendring DC,http://statistics.data.gov.uk/id/local-authority-district/22UN,Life Opportunities,5240 - HRA - Managing Tenancies,5242 - Tenant Relations,12/02/2013,2105782-1,10,REDACTED PERSONAL DATA,REDACTED PERSONAL DATA
Tendring DC,http://statistics.data.gov.uk/id/local-authority-district/22UN,Life Opportunities,5140 - Homelessness,4683 - Other Homelessness Expenses,20/02/2013,2106367-1,550,REDACTED PERSONAL DATA,REDACTED PERSONAL DATA
Tendring DC,http://statistics.data.gov.uk/id/local-authority-district/22UN,Life Opportunities,9920 - HRA Balance Sheet,B860 - Housing Rents - Cash,26/02/2013,2106553-1,478.8,REDACTED PERSONAL DATA,REDACTED PERSONAL DATA
Tendring DC,http://statistics.data.gov.uk/id/local-authority-district/22UN,Life Opportunities,9920 - HRA Balance Sheet,B860 - Housing Rents - Cash,12/02/2013,2105792-1,73.64,REDACTED PERSONAL DATA,REDACTED PERSONAL DATA
Tendring DC,http://statistics.data.gov.uk/id/local-authority-district/22UN,Life Opportunities,5240 - HRA - Managing Tenancies,5242 - Tenant Relations,26/02/2013,2106414-1,10,REDACTED PERSONAL DATA,REDACTED PERSONAL DATA
Tendring DC,http://statistics.data.gov.uk/id/local-authority-district/22UN,Life Opportunities,5140 - Homelessness,4683 - Other Homelessness Expenses,20/02/2013,2106202-1,151,REDACTED PERSONAL DATA,REDACTED PERSONAL DATA
Tendring DC,http://statistics.data.gov.uk/id/local-authority-district/22UN,Life Opportunities,5820 - Harwich Sports Centre,4597 - Hired Services - Payments to Contractors,20/02/2013,2106251-1,80,REDACTED PERSONAL DATA,REDACTED PERSONAL DATA
Tendring DC,http://statistics.data.gov.uk/id/local-authority-district/22UN,Life Opportunities,8520 - Frinton & Walton Swimming Pool,2100 - Building Repairs,20/02/2013,7008914-1,40,2100967 - N Rudelhoff,FRINTON WALTON POOL
Tendring DC,http://statistics.data.gov.uk/id/local-authority-district/22UN,Life Opportunities,8520 - Frinton & Walton Swimming Pool,2100 - Building Repairs,20/02/2013,7008915-1,115,2100967 - N Rudelhoff,FRINTON POOL
Tendring DC,http://statistics.data.gov.uk/id/local-authority-district/22UN,Life Opportunities,7600 - Tourist Information Centres,9356 - Commission Sales,12/02/2013,2105813-1,462.65,2110032 - National Express Ltd,January Commission
Tendring DC,http://statistics.data.gov.uk/id/local-authority-district/22UN,Life Opportunities,8540 - Leisure Centre Clacton,2100 - Building Repairs,05/02/2013,2105533-1,216.8,REDACTED PERSONAL DATA,REDACTED PERSONAL DATA
Tendring DC,http://statistics.data.gov.uk/id/local-authority-district/22UN,Life Opportunities,8540 - Leisure Centre Clacton,2100 - Building Repairs,12/02/2013,2105920-1,151.9,REDACTED PERSONAL DATA,REDACTED PERSONAL DATA
Tendring DC,http://statistics.data.gov.uk/id/local-authority-district/22UN,Life Opportunities,6160 - Princes Theatre,5160 - Advertising,05/02/2013,2105460-1,205,2100989 - Newsquest (London) Ltd,Theatre Ads
Tendring DC,http://statistics.data.gov.uk/id/local-authority-district/22UN,Life Opportunities,8540 - Leisure Centre Clacton,5160 - Advertising,12/02/2013,2105905-1,682.8,2100989 - Newsquest (London) Ltd,
Tendring DC,http://statistics.data.gov.uk/id/local-authority-district/22UN,Life Opportunities,6160 - Princes Theatre,5160 - Advertising,20/02/2013,2106322-1,53.4,REDACTED PERSONAL DATA,REDACTED PERSONAL DATA
Tendring DC,http://statistics.data.gov.uk/id/local-authority-district/22UN,Life Opportunities,6160 - Princes Theatre,5160 - Advertising,20/02/2013,2106323-1,214.08,REDACTED PERSONAL DATA,REDACTED PERSONAL DATA
Tendring DC,http://statistics.data.gov.uk/id/local-authority-district/22UN,Life Opportunities,6160 - Princes Theatre,5160 - Advertising,20/02/2013,2106324-1,165,REDACTED PERSONAL DATA,REDACTED PERSONAL DATA
Tendring DC,http://statistics.data.gov.uk/id/local-authority-district/22UN,Life Opportunities,6160 - Princes Theatre,5160 - Advertising,26/02/2013,7008983-1,228.5,2100989 - Newsquest (London) Ltd,THEATRE ADVERT
Tendring DC,http://statistics.data.gov.uk/id/local-authority-district/22UN,Life Opportunities,6160 - Princes Theatre,5160 - Advertising,26/02/2013,7008984-1,80.1,2100989 - Newsquest (London) Ltd,THEATRE ADVERTS
Tendring DC,http://statistics.data.gov.uk/id/local-authority-district/22UN,Life Opportunities,1650 - Building Services Service Unit,4355 - Books & Periodicals,12/02/2013,2105943-1,34.3,REDACTED COMMERCIAL CONFIDENTIALITY,REDACTED COMMERCIAL CONFIDENTIALITY
Tendring DC,http://statistics.data.gov.uk/id/local-authority-district/22UN,Life Opportunities,5860 - Manningtree Sports Centre,4597 - Hired Services - Payments to Contractors,12/02/2013,2105890-1,100,2112824 - Nick Boucher,Pilates Instructor x 4 Hrs
Tendring DC,http://statistics.data.gov.uk/id/local-authority-district/22UN,Life Opportunities,5820 - Harwich Sports Centre,4597 - Hired Services - Payments to Contractors,12/02/2013,2105939-1,100,2112824 - Nick Boucher,Fitness Classes
Tendring DC,http://statistics.data.gov.uk/id/local-authority-district/22UN,Life Opportunities,5260 - HRA - Rent Collection And Accounting,4757 - IT External Charges,05/02/2013,2105519-1,570.44,REDACTED COMMERCIAL CONFIDENTIALITY,REDACTED COMMERCIAL CONFIDENTIALITY
Tendring DC,http://statistics.data.gov.uk/id/local-authority-district/22UN,Life Opportunities,5140 - Homelessness,4683 - Other Homelessness Expenses,12/02/2013,2105947-1,220,REDACTED COMMERCIAL CONFIDENTIALITY,REDACTED COMMERCIAL CONFIDENTIALITY
Tendring DC,http://statistics.data.gov.uk/id/local-authority-district/22UN,Life Opportunities,5240 - HRA - Managing Tenancies,4044 - Building & Safety Equipment,20/02/2013,2106267-1,350,REDACTED PERSONAL DATA,REDACTED PERSONAL DATA
Tendring DC,http://statistics.data.gov.uk/id/local-authority-district/22UN,Life Opportunities,8520 - Frinton & Walton Swimming Pool,2100 - Building Repairs,20/02/2013,7008912-1,194.04,2108273 - Nursing & Hygeine Maintenance,FRINTON & WALTON POOL
Tendring DC,http://statistics.data.gov.uk/id/local-authority-district/22UN,Life Opportunities,5260 - HRA - Rent Collection And Accounting,4757 - IT External Charges,20/02/2013,2106278-1,10.08,REDACTED COMMERCIAL CONFIDENTIALITY,REDACTED COMMERCIAL CONFIDENTIALITY
Tendring DC,http://statistics.data.gov.uk/id/local-authority-district/22UN,Life Opportunities,5260 - HRA - Rent Collection And Accounting,4757 - IT External Charges,20/02/2013,2106279-1,47.23,REDACTED COMMERCIAL CONFIDENTIALITY,REDACTED COMMERCIAL CONFIDENTIALITY
Tendring DC,http://statistics.data.gov.uk/id/local-authority-district/22UN,Life Opportunities,5140 - Homelessness,4683 - Other Homelessness Expenses,20/02/2013,2106206-1,500,REDACTED PERSONAL DATA,REDACTED PERSONAL DATA
Tendring DC,http://statistics.data.gov.uk/id/local-authority-district/22UN,Life Opportunities,H920 - DFGs,C400 - Grant payments,05/02/2013,2105631-1,465.42,REDACTED PERSONAL DATA,REDACTED PERSONAL DATA
Tendring DC,http://statistics.data.gov.uk/id/local-authority-district/22UN,Life Opportunities,H920 - DFGs,C400 - Grant payments,05/02/2013,7008867-1,4591.32,REDACTED PERSONAL DATA,REDACTED PERSONAL DATA
Tendring DC,http://statistics.data.gov.uk/id/local-authority-district/22UN,Life Opportunities,H920 - DFGs,C400 - Grant payments,05/02/2013,7008877-1,5229.58,REDACTED PERSONAL DATA,REDACTED PERSONAL DATA
Tendring DC,http://statistics.data.gov.uk/id/local-authority-district/22UN,Life Opportunities,5820 - Harwich Sports Centre,5311 - General Provisions - Vending,05/02/2013,2105538-1,95.13,REDACTED PERSONAL DATA,REDACTED PERSONAL DATA
Tendring DC,http://statistics.data.gov.uk/id/local-authority-district/22UN,Life Opportunities,5820 - Harwich Sports Centre,5311 - General Provisions - Vending,12/02/2013,2105822-1,26.02,2101083 - Osgood Smith,Canteen Goods
Tendring DC,http://statistics.data.gov.uk/id/local-authority-district/22UN,Life Opportunities,5860 - Manningtree Sports Centre,5311 - General Provisions - Vending,12/02/2013,2105892-1,95.11,2101083 - Osgood Smith,Vending Supplies
Tendring DC,http://statistics.data.gov.uk/id/local-authority-district/22UN,Life Opportunities,5820 - Harwich Sports Centre,5311 - General Provisions - Vending,12/02/2013,2105897-1,50.57,2101083 - Osgood Smith,Canteen Goods
Tendring DC,http://statistics.data.gov.uk/id/local-authority-district/22UN,Life Opportunities,8520 - Frinton & Walton Swimming Pool,5311 - General Provisions - Vending,12/02/2013,2105910-1,229.62,2101083 - Osgood Smith,Frinton & Walton Pool
Tendring DC,http://statistics.data.gov.uk/id/local-authority-district/22UN,Life Opportunities,8520 - Frinton & Walton Swimming Pool,5311 - General Provisions - Vending,12/02/2013,2105911-1,84.52,2101083 - Osgood Smith,Frinton & Walton Pool
Tendring DC,http://statistics.data.gov.uk/id/local-authority-district/22UN,Life Opportunities,5820 - Harwich Sports Centre,5311 - General Provisions - Vending,20/02/2013,2106252-1,60.31,REDACTED PERSONAL DATA,REDACTED PERSONAL DATA
Tendring DC,http://statistics.data.gov.uk/id/local-authority-district/22UN,Life Opportunities,5860 - Manningtree Sports Centre,5311 - General Provisions - Vending,20/02/2013,2106259-1,106.26,REDACTED PERSONAL DATA,REDACTED PERSONAL DATA
Tendring DC,http://statistics.data.gov.uk/id/local-authority-district/22UN,Life Opportunities,5800 - Brightlingsea Sports Centre,5316 - General Provisions,20/02/2013,2106360-1,143.13,2101083 - Osgood Smith,Osgood Smith
Tendring DC,http://statistics.data.gov.uk/id/local-authority-district/22UN,Life Opportunities,8510 - Dovercourt Swimming Pool & All Weather Facilities,5311 - General Provisions - Vending,26/02/2013,2106434-1,146.01,REDACTED PERSONAL DATA,REDACTED PERSONAL DATA
Tendring DC,http://statistics.data.gov.uk/id/local-authority-district/22UN,Life Opportunities,8510 - Dovercourt Swimming Pool & All Weather Facilities,5311 - General Provisions - Vending,26/02/2013,2106435-1,14.2,REDACTED PERSONAL DATA,REDACTED PERSONAL DATA
Tendring DC,http://statistics.data.gov.uk/id/local-authority-district/22UN,Life Opportunities,8510 - Dovercourt Swimming Pool & All Weather Facilities,5311 - General Provisions - Vending,26/02/2013,2106469-1,-13.82,2101083 - Osgood Smith,Dovercourt Pool
Tendring DC,http://statistics.data.gov.uk/id/local-authority-district/22UN,Life Opportunities,8520 - Frinton & Walton Swimming Pool,5311 - General Provisions - Vending,20/02/2013,7008911-1,120.02,2101083 - Osgood Smith,FRINTON & WALTON POOL
Tendring DC,http://statistics.data.gov.uk/id/local-authority-district/22UN,Life Opportunities,8520 - Frinton & Walton Swimming Pool,5311 - General Provisions - Vending,26/02/2013,7008973-1,164.84,2101083 - Osgood Smith,FRINTON WALTON POOL
Tendring DC,http://statistics.data.gov.uk/id/local-authority-district/22UN,Life Opportunities,8520 - Frinton & Walton Swimming Pool,5311 - General Provisions - Vending,26/02/2013,7008974-1,11.98,2101083 - Osgood Smith,FRINTON WALTON POOL
Tendring DC,http://statistics.data.gov.uk/id/local-authority-district/22UN,Life Opportunities,5860 - Manningtree Sports Centre,5311 - General Provisions - Vending,26/02/2013,7008989-1,268.67,2101083 - Osgood Smith,VENDING SUPPLIES
Tendring DC,http://statistics.data.gov.uk/id/local-authority-district/22UN,Life Opportunities,5820 - Harwich Sports Centre,5311 - General Provisions - Vending,26/02/2013,7008991-1,81.54,2101083 - Osgood Smith,CANTEEN GOODS
Tendring DC,http://statistics.data.gov.uk/id/local-authority-district/22UN,Life Opportunities,5480 - HRA - Repair & Maintenance,2017 - Mechanical Equipment /Extract Fans,20/02/2013,2106121-1,1218,REDACTED PERSONAL DATA,REDACTED PERSONAL DATA
Tendring DC,http://statistics.data.gov.uk/id/local-authority-district/22UN,Life Opportunities,5480 - HRA - Repair & Maintenance,2017 - Mechanical Equipment /Extract Fans,20/02/2013,2106121-2,747,REDACTED PERSONAL DATA,REDACTED PERSONAL DATA
Tendring DC,http://statistics.data.gov.uk/id/local-authority-district/22UN,Life Opportunities,8540 - Leisure Centre Clacton,4000 - Furniture,26/02/2013,7008971-1,263.35,2101047 - Perris Archery,
Tendring DC,http://statistics.data.gov.uk/id/local-authority-district/22UN,Life Opportunities,8540 - Leisure Centre Clacton,5160 - Advertising,12/02/2013,2105918-1,250,2101097 - Peter Lockyer Advertising Ltd,
Tendring DC,http://statistics.data.gov.uk/id/local-authority-district/22UN,Life Opportunities,8540 - Leisure Centre Clacton,5160 - Advertising,20/02/2013,2106143-1,250,2101097 - Peter Lockyer Advertising Ltd,
Tendring DC,http://statistics.data.gov.uk/id/local-authority-district/22UN,Life Opportunities,8510 - Dovercourt Swimming Pool & All Weather Facilities,9250 - Premium Option Card,05/02/2013,2105467-1,8.75,REDACTED PERSONAL DATA,REDACTED PERSONAL DATA
Tendring DC,http://statistics.data.gov.uk/id/local-authority-district/22UN,Life Opportunities,8540 - Leisure Centre Clacton,4000 - Furniture,12/02/2013,2105906-1,144,2101068 - Physical Company,
Tendring DC,http://statistics.data.gov.uk/id/local-authority-district/22UN,Life Opportunities,8540 - Leisure Centre Clacton,4000 - Furniture,26/02/2013,2106546-1,75,REDACTED PERSONAL DATA,REDACTED PERSONAL DATA
Tendring DC,http://statistics.data.gov.uk/id/local-authority-district/22UN,Life Opportunities,5420 - HRA - Communal Cleaning,2706 - Communal Areas Cleaning Expenses,05/02/2013,2105456-1,3521.58,REDACTED COMMERCIAL CONFIDENTIALITY,REDACTED COMMERCIAL CONFIDENTIALITY
Tendring DC,http://statistics.data.gov.uk/id/local-authority-district/22UN,Life Opportunities,7520 - Tourism Publicity Marketing Promotion,5160 - Advertising,12/02/2013,2105887-1,80,2102483 - Plum Publishing Ltd,Coach Tourism
Tendring DC,http://statistics.data.gov.uk/id/local-authority-district/22UN,Life Opportunities,5480 - HRA - Repair & Maintenance,2090 - Fencing,26/02/2013,2106389-1,468,REDACTED PERSONAL DATA,REDACTED PERSONAL DATA
Tendring DC,http://statistics.data.gov.uk/id/local-authority-district/22UN,Life Opportunities,5480 - HRA - Repair & Maintenance,2090 - Fencing,26/02/2013,2106390-1,382.14,REDACTED PERSONAL DATA,REDACTED PERSONAL DATA
Tendring DC,http://statistics.data.gov.uk/id/local-authority-district/22UN,Life Opportunities,7620 - Air Show,4307 - Attractions Leaflet Printing,12/02/2013,2105803-1,597.05,REDACTED PERSONAL DATA,REDACTED PERSONAL DATA
Tendring DC,http://statistics.data.gov.uk/id/local-authority-district/22UN,Life Opportunities,6160 - Princes Theatre,5160 - Advertising,12/02/2013,2105878-1,150,2107459 - Prospector,Poster Distribution
Tendring DC,http://statistics.data.gov.uk/id/local-authority-district/22UN,Life Opportunities,6160 - Princes Theatre,5160 - Advertising,26/02/2013,7008985-1,411,2107459 - Prospector,POST DISTRIBUTION
Tendring DC,http://statistics.data.gov.uk/id/local-authority-district/22UN,Life Opportunities,6160 - Princes Theatre,2900 - Premises Licensing - Public Entertainment,12/02/2013,2100550-1,739.26,REDACTED PERSONAL DATA,REDACTED PERSONAL DATA
Tendring DC,http://statistics.data.gov.uk/id/local-authority-district/22UN,Life Opportunities,6160 - Princes Theatre,2900 - Premises Licensing - Public Entertainment,12/02/2013,2100550-2,-509.38,REDACTED PERSONAL DATA,REDACTED PERSONAL DATA
Tendring DC,http://statistics.data.gov.uk/id/local-authority-district/22UN,Life Opportunities,6160 - Princes Theatre,2900 - Premises Licensing - Public Entertainment,12/02/2013,2106003-1,712.26,2103406 - PRS,PRS Period July 11
Tendring DC,http://statistics.data.gov.uk/id/local-authority-district/22UN,Life Opportunities,6160 - Princes Theatre,2900 - Premises Licensing - Public Entertainment,12/02/2013,2106004-1,1438.66,2103406 - PRS,PRS Period April 11
Tendring DC,http://statistics.data.gov.uk/id/local-authority-district/22UN,Life Opportunities,5880 - Management Of Sport & Leisure Facilities,2100 - Building Repairs,20/02/2013,2106258-1,600,REDACTED PERSONAL DATA,REDACTED PERSONAL DATA
Tendring DC,http://statistics.data.gov.uk/id/local-authority-district/22UN,Life Opportunities,8540 - Leisure Centre Clacton,2100 - Building Repairs,12/02/2013,2105898-1,275.5,2101103 - Quality Air UK Ltd,
